Workbook

Sheet Main
B10: 2021-07-26
B12: Sheet No. | C12: Template Name | D12: Summary
B13: 1 | C13: Future Intra | D13: For Intraday trading in F&O segment
B14: 2 | C14: Cash Intra | D14: For Intraday trading in cash market segment
B15: 3 | C15: Mid-cap Intra | D15: For Intraday trading in Mid-cap stocks
B16: 4 | C16: Bulk Deals | D16: Reveals Bulk Deals carried on NSE & BSE
B17: 5 | C17: Call Tracker
K27: `

Sheet Future Intra
M5: Back to Main Page
A6: FOR INTRA DAY TRADING | L6: =Main!B10 -> 2021-07-26
A9: Sr.no | B9: Sector | C9: Scrip | D9: Expiry Date | E9: CLOSE RATE | F9: Pivot Point | G9: Supports | J9: Resistances
E10: Point | F10: Point | G10: S1 | H10: S2 | I10: S3 | J10: R1 | K10: R2 | L10: R3 | M10: HIGH | N10: LOW | O10: OI | P10: % Change in OI
A11: 1 | B11: Index | C11: BANKNIFTY | D11: 2021-07-29 | E11: 35040.90 | F11: 34858.77 | G11: 34587.63 | H11: 34134.37 | I11: 33863.23 | J11: 35312.03 | K11: 35583.17 | L11: 36036.43 | M11: 35129.9 | N11: 34405.5 | O11: 1958050 | P11: -18.88%
A12: 2 | B12: Index | C12: NIFTY | D12: 2021-07-29 | E12: 15853.10 | F12: 15837.97 | G12: 15778.33 | H12: 15703.57 | I12: 15643.93 | J12: 15912.73 | K12: 15972.37 | L12: 16047.13 | M12: 15897.6 | N12: 15763.2 | O12: 10320550 | P12: 2.86%
A13: 3 | B13: Index | C13: FINNIFTY | D13: 2021-07-29 | E13: 16629.20 | F13: 16554.90 | G13: 16449.80 | H13: 16270.40 | I13: 16165.30 | J13: 16734.30 | K13: 16839.40 | L13: 17018.80 | M13: 16660 | N13: 16375.5 | O13: 7720 | P13: 9.66%
A14: 4 | B14: Chemical | C14: AARTIIND | D14: 2021-07-29 | E14: 889.85 | F14: 889.77 | G14: 881.63 | H14: 873.42 | I14: 865.28 | J14: 897.98 | K14: 906.12 | L14: 914.33 | M14: 897.9 | N14: 881.55 | O14: 3437400 | P14: -1.22%
A15: 5 | B15: Textile | C15: ABFRL | D15: 2021-07-29 | E15: 218.05 | F15: 218.37 | G15: 215.23 | H15: 212.42 | I15: 209.28 | J15: 221.18 | K15: 224.32 | L15: 227.13 | M15: 221.5 | N15: 215.55 | O15: 7025200 | P15: -3.15%
A16: 6 | B16: Cement | C16: ACC | D16: 2021-07-29 | E16: 2339.40 | F16: 2337.00 | G16: 2298.40 | H16: 2257.40 | I16: 2218.80 | J16: 2378.00 | K16: 2416.60 | L16: 2457.60 | M16: 2375.6 | N16: 2296 | O16: 4152500 | P16: -2.41%
A17: 7 | B17: Others | C17: ADANIENT | D17: 2021-07-29 | E17: 1405.70 | F17: 1409.92 | G17: 1383.28 | H17: 1360.87 | I17: 1334.23 | J17: 1432.33 | K17: 1458.97 | L17: 1481.38 | M17: 1436.55 | N17: 1387.5 | O17: 15603000 | P17: 1.29%
A18: 8 | B18: Others | C18: ADANIPORTS | D18: 2021-07-29 | E18: 680.10 | F18: 685.72 | G18: 672.18 | H18: 664.27 | I18: 650.73 | J18: 693.63 | K18: 707.17 | L18: 715.08 | M18: 699.25 | N18: 677.8 | O18: 87460000 | P18: 0.43%
A19: 9 | B19: Pharma | C19: ALKEM | D19: 2021-07-29 | E19: 3403.00 | F19: 3395.00 | G19: 3355.85 | H19: 3308.70 | I19: 3269.55 | J19: 3442.15 | K19: 3481.30 | L19: 3528.45 | M19: 3434.15 | N19: 3347.85 | O19: 722200 | P19: -1.12%
A20: 10 | B20: Automobile | C20: AMARAJABAT | D20: 2021-07-29 | E20: 717.90 | F20: 717.65 | G20: 713.80 | H20: 709.70 | I20: 705.85 | J20: 721.75 | K20: 725.60 | L20: 729.70 | M20: 721.5 | N20: 713.55 | O20: 11312000 | P20: 0.07%
A21: 11 | B21: Cement | C21: AMBUJACEM | D21: 2021-07-29 | E21: 403.50 | F21: 405.28 | G21: 400.17 | H21: 396.83 | I21: 391.72 | J21: 408.62 | K21: 413.73 | L21: 417.07 | M21: 410.4 | N21: 401.95 | O21: 26250000 | P21: 0.71%
A22: 12 | B22: Pharma | C22: APLLTD | D22: 2021-07-29 | E22: 947.15 | F22: 948.63 | G22: 938.27 | H22: 929.38 | I22: 919.02 | J22: 957.52 | K22: 967.88 | L22: 976.77 | M22: 959 | N22: 939.75 | O22: 1813350 | P22: 1.38%
A23: 13 | B23: Others | C23: APOLLOHOSP | D23: 2021-07-29 | E23: 3930.15 | F23: 3951.63 | G23: 3902.27 | H23: 3874.38 | I23: 3825.02 | J23: 3979.52 | K23: 4028.88 | L23: 4056.77 | M23: 4001 | N23: 3923.75 | O23: 2318250 | P23: -4.22%
A24: 14 | B24: Automobile | C24: APOLLOTYRE | D24: 2021-07-29 | E24: 226.50 | F24: 226.15 | G24: 224.55 | H24: 222.60 | I24: 221.00 | J24: 228.10 | K24: 229.70 | L24: 231.65 | M24: 227.75 | N24: 224.2 | O24: 14922500 | P24: -3.16%
A25: 15 | B25: Automobile | C25: ASHOKLEY | D25: 2021-07-29 | E25: 124.55 | F25: 124.52 | G25: 123.78 | H25: 123.02 | I25: 122.28 | J25: 125.28 | K25: 126.02 | L25: 126.78 | M25: 125.25 | N25: 123.75 | O25: 33939000 | P25: 2.21%
A26: 16 | B26: FMCG | C26: ASIANPAINT | D26: 2021-07-29 | E26: 3087.40 | F26: 3100.72 | G26: 3069.83 | H26: 3052.27 | I26: 3021.38 | J26: 3118.28 | K26: 3149.17 | L26: 3166.73 | M26: 3131.6 | N26: 3083.15 | O26: 4315800 | P26: -4.56%
A27: 17 | B27: Banking | C27: AUBANK | D27: 2021-07-29 | E27: 1166.50 | F27: 1163.67 | G27: 1151.38 | H27: 1136.27 | I27: 1123.98 | J27: 1178.78 | K27: 1191.07 | L27: 1206.18 | M27: 1175.95 | N27: 1148.55 | O27: 2650500 | P27: -7.84%
A28: 18 | B28: Pharma | C28: AUROPHARMA | D28: 2021-07-29 | E28: 963.80 | F28: 966.92 | G28: 957.48 | H28: 951.17 | I28: 941.73 | J28: 973.23 | K28: 982.67 | L28: 988.98 | M28: 976.35 | N28: 960.6 | O28: 10652850 | P28: -0.36%
A29: 19 | B29: Banking | C29: AXISBANK | D29: 2021-07-29 | E29: 755.90 | F29: 753.77 | G29: 742.83 | H29: 729.77 | I29: 718.83 | J29: 766.83 | K29: 777.77 | L29: 790.83 | M29: 764.7 | N29: 740.7 | O29: 33561600 | P29: -1.30%
A30: 20 | B30: Automobile | C30: BAJAJ-AUTO | D30: 2021-07-29 | E30: 3838.65 | F30: 3861.35 | G30: 3799.85 | H30: 3761.05 | I30: 3699.55 | J30: 3900.15 | K30: 3961.65 | L30: 4000.45 | M30: 3922.85 | N30: 3822.55 | O30: 2329250 | P30: -4.69%
A31: 21 | B31: Finance | C31: BAJAJFINSV | D31: 2021-07-29 | E31: 13183.05 | F31: 13120.68 | G31: 13012.37 | H31: 12841.68 | I31: 12733.37 | J31: 13291.37 | K31: 13399.68 | L31: 13570.37 | M31: 13229 | N31: 12950 | O31: 763125 | P31: 3.72%
A32: 22 | B32: Finance | C32: BAJFINANCE | D32: 2021-07-29 | E32: 6189.90 | F32: 6190.18 | G32: 6145.37 | H32: 6100.83 | I32: 6056.02 | J32: 6234.72 | K32: 6279.53 | L32: 6324.07 | M32: 6235 | N32: 6145.65 | O32: 4803500 | P32: -2.68%
A33: 23 | B33: Automobile | C33: BALKRISIND | D33: 2021-07-29 | E33: 2339.45 | F33: 2343.98 | G33: 2321.47 | H33: 2303.48 | I33: 2280.97 | J33: 2361.97 | K33: 2384.48 | L33: 2402.47 | M33: 2366.5 | N33: 2326 | O33: 1096800 | P33: 2.05%
A34: 24 | B34: Banking | C34: BANDHANBNK | D34: 2021-07-29 | E34: 303.85 | F34: 304.97 | G34: 301.43 | H34: 299.02 | I34: 295.48 | J34: 307.38 | K34: 310.92 | L34: 313.33 | M34: 308.5 | N34: 302.55 | O34: 22026600 | P34: -1.68%
A35: 25 | B35: Banking | C35: BANKBARODA | D35: 2021-07-29 | E35: 80.00 | F35: 79.88 | G35: 79.12 | H35: 78.23 | I35: 77.47 | J35: 80.77 | K35: 81.53 | L35: 82.42 | M35: 80.65 | N35: 79 | O35: 173007900 | P35: -1.01%
A36: 26 | B36: FMCG | C36: BATAINDIA | D36: 2021-07-29 | E36: 1600.95 | F36: 1594.32 | G36: 1580.68 | H36: 1560.42 | I36: 1546.78 | J36: 1614.58 | K36: 1628.22 | L36: 1648.48 | M36: 1607.95 | N36: 1574.05 | O36: 1996500 | P36: 3.42%
A37: 27 | B37: Capital_Goods | C37: BEL | D37: 2021-07-29 | E37: 183.05 | F37: 183.42 | G37: 181.63 | H37: 180.22 | I37: 178.43 | J37: 184.83 | K37: 186.62 | L37: 188.03 | M37: 185.2 | N37: 182 | O37: 24042600 | P37: -0.89%
A38: 28 | B38: FMCG | C38: BERGEPAINT | D38: 2021-07-29 | E38: 856.75 | F38: 857.73 | G38: 851.17 | H38: 845.58 | I38: 839.02 | J38: 863.32 | K38: 869.88 | L38: 875.47 | M38: 864.3 | N38: 852.15 | O38: 3936900 | P38: -5.34%
A39: 29 | B39: Automobile | C39: BHARATFORG | D39: 2021-07-29 | E39: 790.30 | F39: 795.70 | G39: 781.50 | H39: 772.70 | I39: 758.50 | J39: 804.50 | K39: 818.70 | L39: 827.50 | M39: 809.9 | N39: 786.9 | O39: 5691000 | P39: -4.02%
A40: 30 | B40: Telecom | C40: BHARTIARTL | D40: 2021-07-29 | E40: 547.70 | F40: 546.82 | G40: 533.68 | H40: 519.67 | I40: 506.53 | J40: 560.83 | K40: 573.97 | L40: 587.98 | M40: 559.95 | N40: 532.8 | O40: 105097929 | P40: -5.75%
A41: 31 | B41: Capital_Goods | C41: BHEL | D41: 2021-07-29 | E41: 64.05 | F41: 64.37 | G41: 63.48 | H41: 62.92 | I41: 62.03 | J41: 64.93 | K41: 65.82 | L41: 66.38 | M41: 65.25 | N41: 63.8 | O41: 108633000 | P41: -2.04%
A42: 32 | B42: Pharma | C42: BIOCON | D42: 2021-07-29 | E42: 398.85 | F42: 397.87 | G42: 393.28 | H42: 387.72 | I42: 383.13 | J42: 403.43 | K42: 408.02 | L42: 413.58 | M42: 402.45 | N42: 392.3 | O42: 18781800 | P42: 1.74%
A43: 33 | B43: Automobile | C43: BOSCHLTD | D43: 2021-07-29 | E43: 15034.25 | F43: 15076.37 | G43: 14972.88 | H43: 14911.52 | I43: 14808.03 | J43: 15137.73 | K43: 15241.22 | L43: 15302.58 | M43: 15179.85 | N43: 15015 | O43: 146000 | P43: -1.52%
A44: 34 | B44: Oil_Gas | C44: BPCL | D44: 2021-07-29 | E44: 461.25 | F44: 461.98 | G44: 458.57 | H44: 455.88 | I44: 452.47 | J44: 464.67 | K44: 468.08 | L44: 470.77 | M44: 465.4 | N44: 459.3 | O44: 39963600 | P44: 1.24%
A45: 35 | B45: FMCG | C45: BRITANNIA | D45: 2021-07-29 | E45: 3443.55 | F45: 3442.03 | G45: 3430.92 | H45: 3418.28 | I45: 3407.17 | J45: 3454.67 | K45: 3465.78 | L45: 3478.42 | M45: 3453.15 | N45: 3429.4 | O45: 2659600 | P45: -0.81%
A46: 36 | B46: Pharma | C46: CADILAHC | D46: 2021-07-29 | E46: 610.55 | F46: 611.52 | G46: 604.03 | H46: 597.52 | I46: 590.03 | J46: 618.03 | K46: 625.52 | L46: 632.03 | M46: 619 | N46: 605 | O46: 24371600 | P46: -1.67%
A47: 37 | B47: Banking | C47: CANBK | D47: 2021-07-29 | E47: 145.90 | F47: 145.18 | G47: 144.37 | H47: 142.83 | I47: 142.02 | J47: 146.72 | K47: 147.53 | L47: 149.07 | M47: 146 | N47: 143.65 | O47: 60971400 | P47: -3.04%
A48: 38 | B48: Finance | C48: CHOLAFIN | D48: 2021-07-29 | E48: 500.05 | F48: 498.97 | G48: 492.73 | H48: 485.42 | I48: 479.18 | J48: 506.28 | K48: 512.52 | L48: 519.83 | M48: 505.2 | N48: 491.65 | O48: 12517500 | P48: -0.29%
A49: 39 | B49: Pharma | C49: CIPLA | D49: 2021-07-29 | E49: 949.65 | F49: 951.88 | G49: 946.02 | H49: 942.38 | I49: 936.52 | J49: 955.52 | K49: 961.38 | L49: 965.02 | M49: 957.75 | N49: 948.25 | O49: 9953450 | P49: 1.37%
A50: 40 | B50: Others | C50: COALINDIA | D50: 2021-07-29 | E50: 144.30 | F50: 144.35 | G50: 143.40 | H50: 142.50 | I50: 141.55 | J50: 145.25 | K50: 146.20 | L50: 147.10 | M50: 145.3 | N50: 143.45 | O50: 61593000 | P50: 1.41%
A51: 41 | B51: Technology | C51: COFORGE | D51: 2021-07-29 | E51: 4676.50 | F51: 4698.13 | G51: 4637.27 | H51: 4598.03 | I51: 4537.17 | J51: 4737.37 | K51: 4798.23 | L51: 4837.47 | M51: 4759 | N51: 4658.9 | O51: 557200 | P51: 4.19%
A52: 42 | B52: FMCG | C52: COLPAL | D52: 2021-07-29 | E52: 1793.75 | F52: 1794.03 | G52: 1778.07 | H52: 1762.38 | I52: 1746.42 | J52: 1809.72 | K52: 1825.68 | L52: 1841.37 | M52: 1810 | N52: 1778.35 | O52: 2268000 | P52: -2.09%
A53: 43 | B53: Others | C53: CONCOR | D53: 2021-07-29 | E53: 665.20 | F53: 667.93 | G53: 661.32 | H53: 657.43 | I53: 650.82 | J53: 671.82 | K53: 678.43 | L53: 682.32 | M53: 674.55 | N53: 664.05 | O53: 7822815 | P53: 1.46%
A54: 44 | B54: Others | C54: COROMANDEL | D54: 2021-07-29 | E54: 870.80 | F54: 873.87 | G54: 865.48 | H54: 860.17 | I54: 851.78 | J54: 879.18 | K54: 887.57 | L54: 892.88 | M54: 882.25 | N54: 868.55 | O54: 1252500 | P54: 1.93%
A55: 45 | B55: Banking | C55: CUB | D55: 2021-07-29 | E55: 155.70 | F55: 155.43 | G55: 154.07 | H55: 152.43 | I55: 151.07 | J55: 157.07 | K55: 158.43 | L55: 160.07 | M55: 156.8 | N55: 153.8 | O55: 11200300 | P55: 0.25%
A56: 46 | B56: Capital_Goods | C56: CUMMINSIND | D56: 2021-07-29 | E56: 858.85 | F56: 861.85 | G56: 853.80 | H56: 848.75 | I56: 840.70 | J56: 866.90 | K56: 874.95 | L56: 880.00 | M56: 869.9 | N56: 856.8 | O56: 2514600 | P56: -3.99%
A57: 47 | B57: FMCG | C57: DABUR | D57: 2021-07-29 | E57: 587.90 | F57: 587.70 | G57: 584.70 | H57: 581.50 | I57: 578.50 | J57: 590.90 | K57: 593.90 | L57: 597.10 | M57: 590.7 | N57: 584.5 | O57: 9003750 | P57: -1.38%
A58: 48 | B58: Chemical | C58: DEEPAKNTR | D58: 2021-07-29 | E58: 1936.75 | F58: 1939.03 | G58: 1923.32 | H58: 1909.88 | I58: 1894.17 | J58: 1952.47 | K58: 1968.18 | L58: 1981.62 | M58: 1954.75 | N58: 1925.6 | O58: 3093000 | P58: 1.61%
A59: 49 | B59: Pharma | C59: DIVISLAB | D59: 2021-07-29 | E59: 4833.45 | F59: 4829.00 | G59: 4811.45 | H59: 4789.45 | I59: 4771.90 | J59: 4851.00 | K59: 4868.55 | L59: 4890.55 | M59: 4846.55 | N59: 4807 | O59: 2185400 | P59: -0.76%
A60: 50 | B60: Realty | C60: DLF | D60: 2021-07-29 | E60: 334.60 | F60: 331.93 | G60: 328.07 | H60: 321.53 | I60: 317.67 | J60: 338.47 | K60: 342.33 | L60: 348.87 | M60: 335.8 | N60: 325.4 | O60: 47843400 | P60: 7.58%
A61: 51 | B61: Pharma | C61: DRREDDY | D61: 2021-07-29 | E61: 5424.95 | F61: 5408.78 | G61: 5383.62 | H61: 5342.28 | I61: 5317.12 | J61: 5450.12 | K61: 5475.28 | L61: 5516.62 | M61: 5433.95 | N61: 5367.45 | O61: 2442875 | P61: -2.13%
A62: 52 | B62: Automobile | C62: EICHERMOT | D62: 2021-07-29 | E62: 2552.80 | F62: 2560.67 | G62: 2538.13 | H62: 2523.47 | I62: 2500.93 | J62: 2575.33 | K62: 2597.87 | L62: 2612.53 | M62: 2583.2 | N62: 2546 | O62: 2444750 | P62: -1.17%
A63: 53 | B63: Automobile | C63: ESCORTS | D63: 2021-07-29 | E63: 1160.45 | F63: 1162.15 | G63: 1154.40 | H63: 1148.35 | I63: 1140.60 | J63: 1168.20 | K63: 1175.95 | L63: 1182.00 | M63: 1169.9 | N63: 1156.1 | O63: 4896650 | P63: 1.41%
A64: 54 | B64: Automobile | C64: EXIDEIND | D64: 2021-07-29 | E64: 178.65 | F64: 179.28 | G64: 177.82 | H64: 176.98 | I64: 175.52 | J64: 180.12 | K64: 181.58 | L64: 182.42 | M64: 180.75 | N64: 178.45 | O64: 17035200 | P64: 0.77%
A65: 55 | B65: Banking | C65: FEDERALBNK | D65: 2021-07-29 | E65: 85.25 | F65: 85.28 | G65: 83.57 | H65: 81.88 | I65: 80.17 | J65: 86.97 | K65: 88.68 | L65: 90.37 | M65: 87 | N65: 83.6 | O65: 88520000 | P65: -1.96%
A66: 56 | B66: Oil_Gas | C66: GAIL | D66: 2021-07-29 | E66: 142.70 | F66: 143.45 | G66: 141.50 | H66: 140.30 | I66: 138.35 | J66: 144.65 | K66: 146.60 | L66: 147.80 | M66: 145.4 | N66: 142.25 | O66: 34160000 | P66: 3.05%
A67: 57 | B67: Pharma | C67: GLENMARK | D67: 2021-07-29 | E67: 651.60 | F67: 657.12 | G67: 639.83 | H67: 628.07 | I67: 610.78 | J67: 668.88 | K67: 686.17 | L67: 697.93 | M67: 674.4 | N67: 645.35 | O67: 7577350 | P67: 6.65%
A68: 58 | B68: Infrastructure | C68: GMRINFRA | D68: 2021-07-29 | E68: 29.05 | F68: 29.13 | G68: 28.62 | H68: 28.18 | I68: 27.67 | J68: 29.57 | K68: 30.08 | L68: 30.52 | M68: 29.65 | N68: 28.7 | O68: 123232500 | P68: 2.05%
A69: 59 | B69: FMCG | C69: GODREJCP | D69: 2021-07-29 | E69: 979.60 | F69: 975.60 | G69: 968.00 | H69: 956.40 | I69: 948.80 | J69: 987.20 | K69: 994.80 | L69: 1006.40 | M69: 983.2 | N69: 964 | O69: 3886000 | P69: 0.31%
A70: 60 | B70: Realty | C70: GODREJPROP | D70: 2021-07-29 | E70: 1562.65 | F70: 1563.47 | G70: 1544.93 | H70: 1527.22 | I70: 1508.68 | J70: 1581.18 | K70: 1599.72 | L70: 1617.43 | M70: 1582 | N70: 1545.75 | O70: 2075450 | P70: 3.43%
A71: 61 | B71: Pharma | C71: GRANULES | D71: 2021-07-29 | E71: 379.60 | F71: 381.78 | G71: 375.82 | H71: 372.03 | I71: 366.07 | J71: 385.57 | K71: 391.53 | L71: 395.32 | M71: 387.75 | N71: 378 | O71: 12593750 | P71: -0.90%
A72: 62 | B72: Cement | C72: GRASIM | D72: 2021-07-29 | E72: 1548.40 | F72: 1560.70 | G72: 1531.45 | H72: 1514.50 | I72: 1485.25 | J72: 1577.65 | K72: 1606.90 | L72: 1623.85 | M72: 1589.95 | N72: 1543.75 | O72: 12030325 | P72: -3.49%
A73: 63 | B73: Oil_Gas | C73: GUJGASLTD | D73: 2021-07-29 | E73: 732.30 | F73: 731.23 | G73: 718.52 | H73: 704.73 | I73: 692.02 | J73: 745.02 | K73: 757.73 | L73: 771.52 | M73: 743.95 | N73: 717.45 | O73: 1997500 | P73: 4.86%
A74: 64 | B74: Capital_Goods | C74: HAVELLS | D74: 2021-07-29 | E74: 1146.10 | F74: 1150.42 | G74: 1134.83 | H74: 1123.57 | I74: 1107.98 | J74: 1161.68 | K74: 1177.27 | L74: 1188.53 | M74: 1166 | N74: 1139.15 | O74: 5124000 | P74: -4.51%
A75: 65 | B75: Technology | C75: HCLTECH | D75: 2021-07-29 | E75: 988.30 | F75: 988.05 | G75: 978.75 | H75: 969.20 | I75: 959.90 | J75: 997.60 | K75: 1006.90 | L75: 1016.45 | M75: 997.35 | N75: 978.5 | O75: 18249000 | P75: -4.63%
A76: 66 | B76: Finance | C76: HDFC | D76: 2021-07-29 | E76: 2486.90 | F76: 2485.67 | G76: 2471.33 | H76: 2455.77 | I76: 2441.43 | J76: 2501.23 | K76: 2515.57 | L76: 2531.13 | M76: 2500 | N76: 2470.1 | O76: 14653200 | P76: -1.49%
A77: 67 | B77: Finance | C77: HDFCAMC | D77: 2021-07-29 | E77: 2897.05 | F77: 2895.32 | G77: 2881.98 | H77: 2866.92 | I77: 2853.58 | J77: 2910.38 | K77: 2923.72 | L77: 2938.78 | M77: 2908.65 | N77: 2880.25 | O77: 1032600 | P77: -4.86%
A78: 68 | B78: Banking | C78: HDFCBANK | D78: 2021-07-29 | E78: 1445.50 | F78: 1447.75 | G78: 1435.65 | H78: 1425.80 | I78: 1413.70 | J78: 1457.60 | K78: 1469.70 | L78: 1479.55 | M78: 1459.85 | N78: 1437.9 | O78: 30906150 | P78: 0.45%
A79: 69 | B79: Finance | C79: HDFCLIFE | D79: 2021-07-29 | E79: 666.25 | F79: 665.83 | G79: 662.92 | H79: 659.58 | I79: 656.67 | J79: 669.17 | K79: 672.08 | L79: 675.42 | M79: 668.75 | N79: 662.5 | O79: 21050700 | P79: 0.02%
A80: 70 | B80: Automobile | C80: HEROMOTOCO | D80: 2021-07-29 | E80: 2832.90 | F80: 2840.50 | G80: 2818.10 | H80: 2803.30 | I80: 2780.90 | J80: 2855.30 | K80: 2877.70 | L80: 2892.50 | M80: 2862.9 | N80: 2825.7 | O80: 5092500 | P80: 0.12%
A81: 71 | B81: Metals | C81: HINDALCO | D81: 2021-07-29 | E81: 392.65 | F81: 393.83 | G81: 390.57 | H81: 388.48 | I81: 385.22 | J81: 395.92 | K81: 399.18 | L81: 401.27 | M81: 397.1 | N81: 391.75 | O81: 28898150 | P81: -0.35%
A82: 72 | B82: Oil_Gas | C82: HINDPETRO | D82: 2021-07-29 | E82: 277.55 | F82: 277.48 | G82: 275.52 | H82: 273.48 | I82: 271.52 | J82: 279.52 | K82: 281.48 | L82: 283.52 | M82: 279.45 | N82: 275.45 | O82: 18368100 | P82: -0.85%
A83: 73 | B83: FMCG | C83: HINDUNILVR | D83: 2021-07-29 | E83: 2363.05 | F83: 2370.68 | G83: 2351.37 | H83: 2339.68 | I83: 2320.37 | J83: 2382.37 | K83: 2401.68 | L83: 2413.37 | M83: 2390 | N83: 2359 | O83: 7463100 | P83: 4.65%
A84: 74 | B84: Finance | C84: IBULHSGFIN | D84: 2021-07-29 | E84: 283.40 | F84: 279.33 | G84: 274.17 | H84: 264.93 | I84: 259.77 | J84: 288.57 | K84: 293.73 | L84: 302.97 | M84: 284.5 | N84: 270.1 | O84: 28206900 | P84: -5.54%
A85: 75 | B85: Banking | C85: ICICIBANK | D85: 2021-07-29 | E85: 674.70 | F85: 666.60 | G85: 657.20 | H85: 639.70 | I85: 630.30 | J85: 684.10 | K85: 693.50 | L85: 711.00 | M85: 676 | N85: 649.1 | O85: 74795875 | P85: 7.29%
A86: 76 | B86: Finance | C86: ICICIGI | D86: 2021-07-29 | E86: 1485.05 | F86: 1490.25 | G86: 1466.80 | H86: 1448.55 | I86: 1425.10 | J86: 1508.50 | K86: 1531.95 | L86: 1550.20 | M86: 1513.7 | N86: 1472 | O86: 1319200 | P86: 3.60%
A87: 77 | B87: Finance | C87: ICICIPRULI | D87: 2021-07-29 | E87: 645.85 | F87: 642.65 | G87: 637.15 | H87: 628.45 | I87: 622.95 | J87: 651.35 | K87: 656.85 | L87: 665.55 | M87: 648.15 | N87: 633.95 | O87: 7516500 | P87: -1.05%
A88: 78 | B88: Telecom | C88: IDEA | D88: 2021-07-29 | E88: 8.35 | F88: 8.62 | G88: 7.68 | H88: 7.02 | I88: 6.08 | J88: 9.28 | K88: 10.22 | L88: 10.88 | M88: 9.55 | N88: 7.95 | O88: 710080000 | P88: -2.29%
A89: 79 | B89: Banking | C89: IDFCFIRSTB | D89: 2021-07-29 | E89: 51.10 | F89: 51.20 | G89: 49.85 | H89: 48.60 | I89: 47.25 | J89: 52.45 | K89: 53.80 | L89: 55.05 | M89: 52.55 | N89: 49.95 | O89: 201409500 | P89: 3.17%
A90: 80 | B90: Oil_Gas | C90: IGL | D90: 2021-07-29 | E90: 539.20 | F90: 540.95 | G90: 535.20 | H90: 531.20 | I90: 525.45 | J90: 544.95 | K90: 550.70 | L90: 554.70 | M90: 546.7 | N90: 536.95 | O90: 11552750 | P90: 4.82%
A91: 81 | B91: Infrastructure | C91: INDHOTEL | D91: 2021-07-29 | E91: 146.65 | F91: 146.45 | G91: 145.65 | H91: 144.65 | I91: 143.85 | J91: 147.45 | K91: 148.25 | L91: 149.25 | M91: 147.25 | N91: 145.45 | O91: 7160400 | P91: -5.65%
A92: 82 | B92: Others | C92: INDIGO | D92: 2021-07-29 | E92: 1725.70 | F92: 1718.88 | G92: 1689.97 | H92: 1654.23 | I92: 1625.32 | J92: 1754.62 | K92: 1783.53 | L92: 1819.27 | M92: 1747.8 | N92: 1683.15 | O92: 2219000 | P92: -0.27%
A93: 83 | B93: Banking | C93: INDUSINDBK | D93: 2021-07-29 | E93: 991.70 | F93: 989.02 | G93: 978.28 | H93: 964.87 | I93: 954.13 | J93: 1002.43 | K93: 1013.17 | L93: 1026.58 | M93: 999.75 | N93: 975.6 | O93: 15706800 | P93: 2.62%
A94: 84 | B94: Telecom | C94: INDUSTOWER | D94: 2021-07-29 | E94: 220.70 | F94: 223.15 | G94: 213.10 | H94: 205.50 | I94: 195.45 | J94: 230.75 | K94: 240.80 | L94: 248.40 | M94: 233.2 | N94: 215.55 | O94: 20367200 | P94: 8.52%
A95: 85 | B95: Technology | C95: INFY | D95: 2021-07-29 | E95: 1589.95 | F95: 1590.95 | G95: 1584.20 | H95: 1578.45 | I95: 1571.70 | J95: 1596.70 | K95: 1603.45 | L95: 1609.20 | M95: 1597.7 | N95: 1585.2 | O95: 28645200 | P95: 0.12%
A96: 86 | B96: Oil_Gas | C96: IOC | D96: 2021-07-29 | E96: 106.25 | F96: 106.42 | G96: 105.48 | H96: 104.72 | I96: 103.78 | J96: 107.18 | K96: 108.12 | L96: 108.88 | M96: 107.35 | N96: 105.65 | O96: 62445500 | P96: 2.44%
A97: 87 | B97: Others | C97: IRCTC | D97: 2021-07-29 | E97: 2328.45 | F97: 2344.48 | G97: 2305.07 | H97: 2281.68 | I97: 2242.27 | J97: 2367.87 | K97: 2407.28 | L97: 2430.67 | M97: 2383.9 | N97: 2321.1 | O97: 1996150 | P97: 0.52%
A98: 88 | B98: FMCG | C98: ITC | D98: 2021-07-29 | E98: 212.40 | F98: 211.00 | G98: 208.15 | H98: 203.90 | I98: 201.05 | J98: 215.25 | K98: 218.10 | L98: 222.35 | M98: 213.85 | N98: 206.75 | O98: 174819200 | P98: -2.28%
A99: 89 | B99: Metals | C99: JINDALSTEL | D99: 2021-07-29 | E99: 398.45 | F99: 398.38 | G99: 395.07 | H99: 391.68 | I99: 388.37 | J99: 401.77 | K99: 405.08 | L99: 408.47 | M99: 401.7 | N99: 395 | O99: 41355000 | P99: 1.24%
A100: 90 | B100: Metals | C100: JSWSTEEL | D100: 2021-07-29 | E100: 718.50 | F100: 719.73 | G100: 711.52 | H100: 704.53 | I100: 696.32 | J100: 726.72 | K100: 734.93 | L100: 741.92 | M100: 727.95 | N100: 712.75 | O100: 45023850 | P100: 0.50%
A101: 91 | B101: Others | C101: JUBLFOOD | D101: 2021-07-29 | E101: 3564.25 | F101: 3533.00 | G101: 3430.05 | H101: 3295.85 | I101: 3192.90 | J101: 3667.20 | K101: 3770.15 | L101: 3904.35 | M101: 3635.95 | N101: 3398.8 | O101: 1877500 | P101: -2.37%
A102: 92 | B102: Banking | C102: KOTAKBANK | D102: 2021-07-29 | E102: 1720.20 | F102: 1713.30 | G102: 1700.60 | H102: 1681.00 | I102: 1668.30 | J102: 1732.90 | K102: 1745.60 | L102: 1765.20 | M102: 1726 | N102: 1693.7 | O102: 18730400 | P102: -3.68%
A103: 93 | B103: Finance | C103: L&TFH | D103: 2021-07-29 | E103: 88.25 | F103: 88.35 | G103: 87.85 | H103: 87.45 | I103: 86.95 | J103: 88.75 | K103: 89.25 | L103: 89.65 | M103: 88.85 | N103: 87.95 | O103: 77567408 | P103: -1.59%
A104: 94 | B104: Others | C104: LALPATHLAB | D104: 2021-07-29 | E104: 3450.25 | F104: 3427.40 | G104: 3360.45 | H104: 3270.65 | I104: 3203.70 | J104: 3517.20 | K104: 3584.15 | L104: 3673.95 | M104: 3494.35 | N104: 3337.6 | O104: 547000 | P104: 14.26%
A105: 95 | B105: Finance | C105: LICHSGFIN | D105: 2021-07-29 | E105: 454.90 | F105: 456.92 | G105: 452.03 | H105: 449.17 | I105: 444.28 | J105: 459.78 | K105: 464.67 | L105: 467.53 | M105: 461.8 | N105: 454.05 | O105: 14788000 | P105: 0.15%
A106: 96 | B106: Capital_Goods | C106: LT | D106: 2021-07-29 | E106: 1597.30 | F106: 1605.82 | G106: 1581.63 | H106: 1565.97 | I106: 1541.78 | J106: 1621.48 | K106: 1645.67 | L106: 1661.33 | M106: 1630 | N106: 1590.15 | O106: 14621100 | P106: 0.13%
A107: 97 | B107: Technology | C107: LTI | D107: 2021-07-29 | E107: 4368.45 | F107: 4386.83 | G107: 4331.07 | H107: 4293.68 | I107: 4237.92 | J107: 4424.22 | K107: 4479.98 | L107: 4517.37 | M107: 4442.6 | N107: 4349.45 | O107: 704250 | P107: -4.26%
A108: 98 | B108: Technology | C108: LTTS | D108: 2021-07-29 | E108: 3499.60 | F108: 3519.63 | G108: 3461.52 | H108: 3423.43 | I108: 3365.32 | J108: 3557.72 | K108: 3615.83 | L108: 3653.92 | M108: 3577.75 | N108: 3481.55 | O108: 702800 | P108: -5.99%
A109: 99 | B109: Pharma | C109: LUPIN | D109: 2021-07-29 | E109: 1176.60 | F109: 1174.97 | G109: 1170.53 | H109: 1164.47 | I109: 1160.03 | J109: 1181.03 | K109: 1185.47 | L109: 1191.53 | M109: 1179.4 | N109: 1168.9 | O109: 7063500 | P109: -2.82%
A110: 100 | B110: Automobile | C110: M&M | D110: 2021-07-29 | E110: 764.25 | F110: 763.57 | G110: 759.63 | H110: 755.02 | I110: 751.08 | J110: 768.18 | K110: 772.12 | L110: 776.73 | M110: 767.5 | N110: 758.95 | O110: 11551400 | P110: -1.32%
A111: 101 | B111: Finance | C111: M&MFIN | D111: 2021-07-29 | E111: 154.15 | F111: 155.03 | G111: 152.77 | H111: 151.38 | I111: 149.12 | J111: 156.42 | K111: 158.68 | L111: 160.07 | M111: 157.3 | N111: 153.65 | O111: 43612000 | P111: 1.11%
A112: 102 | B112: Finance | C112: MANAPPURAM | D112: 2021-07-29 | E112: 195.15 | F112: 195.05 | G112: 191.80 | H112: 188.45 | I112: 185.20 | J112: 198.40 | K112: 201.65 | L112: 205.00 | M112: 198.3 | N112: 191.7 | O112: 25188000 | P112: -0.45%
A113: 103 | B113: FMCG | C113: MARICO | D113: 2021-07-29 | E113: 533.60 | F113: 532.65 | G113: 528.75 | H113: 523.90 | I113: 520.00 | J113: 537.50 | K113: 541.40 | L113: 546.25 | M113: 536.55 | N113: 527.8 | O113: 7186000 | P113: -2.47%
A114: 104 | B114: Automobile | C114: MARUTI | D114: 2021-07-29 | E114: 7284.50 | F114: 7307.42 | G114: 7245.83 | H114: 7207.17 | I114: 7145.58 | J114: 7346.08 | K114: 7407.67 | L114: 7446.33 | M114: 7369 | N114: 7268.75 | O114: 2278900 | P114: -2.15%
A115: 105 | B115: FMCG | C115: MCDOWELL-N | D115: 2021-07-29 | E115: 683.10 | F115: 678.20 | G115: 668.40 | H115: 653.70 | I115: 643.90 | J115: 692.90 | K115: 702.70 | L115: 717.40 | M115: 688 | N115: 663.5 | O115: 14283750 | P115: -2.43%
A116: 106 | B116: Pharma | C116: METROPOLIS | D116: 2021-07-29 | E116: 2826.80 | F116: 2824.62 | G116: 2790.23 | H116: 2753.67 | I116: 2719.28 | J116: 2861.18 | K116: 2895.57 | L116: 2932.13 | M116: 2859 | N116: 2788.05 | O116: 305800 | P116: -5.97%
A117: 107 | B117: Finance | C117: MFSL | D117: 2021-07-29 | E117: 1084.50 | F117: 1088.02 | G117: 1054.43 | H117: 1024.37 | I117: 990.78 | J117: 1118.08 | K117: 1151.67 | L117: 1181.73 | M117: 1121.6 | N117: 1057.95 | O117: 3004950 | P117: 3.86%
A118: 108 | B118: Oil_Gas | C118: MGL | D118: 2021-07-29 | E118: 1143.90 | F118: 1150.02 | G118: 1135.33 | H118: 1126.77 | I118: 1112.08 | J118: 1158.58 | K118: 1173.27 | L118: 1181.83 | M118: 1164.7 | N118: 1141.45 | O118: 1937400 | P118: -2.00%
A119: 109 | B119: Technology | C119: MINDTREE | D119: 2021-07-29 | E119: 2729.80 | F119: 2748.03 | G119: 2699.07 | H119: 2668.33 | I119: 2619.37 | J119: 2778.77 | K119: 2827.73 | L119: 2858.47 | M119: 2797 | N119: 2717.3 | O119: 2553600 | P119: -2.53%
A120: 110 | B120: Automobile | C120: MOTHERSUMI | D120: 2021-07-29 | E120: 235.75 | F120: 235.95 | G120: 232.65 | H120: 229.55 | I120: 226.25 | J120: 239.05 | K120: 242.35 | L120: 245.45 | M120: 239.25 | N120: 232.85 | O120: 30450000 | P120: 0.69%
A121: 111 | B121: Technology | C121: MPHASIS | D121: 2021-07-29 | E121: 2527.30 | F121: 2559.40 | G121: 2440.90 | H121: 2354.50 | I121: 2236.00 | J121: 2645.80 | K121: 2764.30 | L121: 2850.70 | M121: 2677.9 | N121: 2473 | O121: 1000025 | P121: -4.85%
A122: 112 | B122: Automobile | C122: MRF | D122: 2021-07-29 | E122: 81316.25 | F122: 81505.42 | G122: 81010.83 | H122: 80705.42 | I122: 80210.83 | J122: 81810.83 | K122: 82305.42 | L122: 82610.83 | M122: 82000 | N122: 81200 | O122: 41500 | P122: 0.34%
A123: 113 | B123: Finance | C123: MUTHOOTFIN | D123: 2021-07-29 | E123: 1565.25 | F123: 1580.05 | G123: 1545.85 | H123: 1526.45 | I123: 1492.25 | J123: 1599.45 | K123: 1633.65 | L123: 1653.05 | M123: 1614.25 | N123: 1560.65 | O123: 3326250 | P123: -8.52%
A124: 114 | B124: Others | C124: NAM-INDIA | D124: 2021-07-29 | E124: 402.80 | F124: 405.57 | G124: 396.18 | H124: 389.57 | I124: 380.18 | J124: 412.18 | K124: 421.57 | L124: 428.18 | M124: 414.95 | N124: 398.95 | O124: 3030400 | P124: 1.45%
A125: 115 | B125: Metals | C125: NATIONALUM | D125: 2021-07-29 | E125: 82.70 | F125: 83.32 | G125: 81.38 | H125: 80.07 | I125: 78.13 | J125: 84.63 | K125: 86.57 | L125: 87.88 | M125: 85.25 | N125: 82 | O125: 95268000 | P125: -1.72%
A126: 116 | B126: Others | C126: NAUKRI | D126: 2021-07-29 | E126: 5156.30 | F126: 5217.90 | G126: 5071.85 | H126: 4987.40 | I126: 4841.35 | J126: 5302.35 | K126: 5448.40 | L126: 5532.85 | M126: 5363.95 | N126: 5133.45 | O126: 1363250 | P126: 10.28%
A127: 117 | B127: Chemical | C127: NAVINFLUOR | D127: 2021-07-29 | E127: 3945.55 | F127: 3933.35 | G127: 3900.85 | H127: 3856.15 | I127: 3823.65 | J127: 3978.05 | K127: 4010.55 | L127: 4055.25 | M127: 3965.85 | N127: 3888.65 | O127: 389700 | P127: 1.70%
A128: 118 | B128: FMCG | C128: NESTLEIND | D128: 2021-07-29 | E128: 18115.20 | F128: 18045.72 | G128: 17892.58 | H128: 17669.97 | I128: 17516.83 | J128: 18268.33 | K128: 18421.47 | L128: 18644.08 | M128: 18198.85 | N128: 17823.1 | O128: 243550 | P128: 8.87%
A129: 119 | B129: Metals | C129: NMDC | D129: 2021-07-29 | E129: 173.90 | F129: 175.47 | G129: 171.43 | H129: 168.97 | I129: 164.93 | J129: 177.93 | K129: 181.97 | L129: 184.43 | M129: 179.5 | N129: 173 | O129: 95086400 | P129: 28.99%
A130: 120 | B130: Power | C130: NTPC | D130: 2021-07-29 | E130: 118.75 | F130: 119.07 | G130: 118.13 | H130: 117.52 | I130: 116.58 | J130: 119.68 | K130: 120.62 | L130: 121.23 | M130: 120 | N130: 118.45 | O130: 54913800 | P130: 4.38%
A131: 121 | B131: Oil_Gas | C131: ONGC | D131: 2021-07-29 | E131: 115.50 | F131: 115.80 | G131: 114.60 | H131: 113.70 | I131: 112.50 | J131: 116.70 | K131: 117.90 | L131: 118.80 | M131: 117 | N131: 114.9 | O131: 57303400 | P131: -0.89%
A132: 122 | B132: Textile | C132: PAGEIND | D132: 2021-07-29 | E132: 33361.40 | F132: 33310.10 | G132: 32800.15 | H132: 32238.90 | I132: 31728.95 | J132: 33871.35 | K132: 34381.30 | L132: 34942.55 | M132: 33820.05 | N132: 32748.85 | O132: 68670 | P132: 4.62%
A133: 123 | B133: Pharma | C133: PEL | D133: 2021-07-29 | E133: 2252.45 | F133: 2247.25 | G133: 2212.60 | H133: 2172.75 | I133: 2138.10 | J133: 2287.10 | K133: 2321.75 | L133: 2361.60 | M133: 2281.9 | N133: 2207.4 | O133: 3299175 | P133: 1.35%
A134: 124 | B134: Oil_Gas | C134: PETRONET | D134: 2021-07-29 | E134: 219.50 | F134: 220.05 | G134: 218.75 | H134: 218.00 | I134: 216.70 | J134: 220.80 | K134: 222.10 | L134: 222.85 | M134: 221.35 | N134: 219.3 | O134: 26001000 | P134: 1.33%
A135: 125 | B135: Finance | C135: PFC | D135: 2021-07-29 | E135: 128.70 | F135: 128.98 | G135: 128.12 | H135: 127.53 | I135: 126.67 | J135: 129.57 | K135: 130.43 | L135: 131.02 | M135: 129.85 | N135: 128.4 | O135: 33641200 | P135: -0.53%
A136: 126 | B136: Pharma | C136: PFIZER | D136: 2021-07-29 | E136: 5621.30 | F136: 5615.25 | G136: 5572.50 | H136: 5523.70 | I136: 5480.95 | J136: 5664.05 | K136: 5706.80 | L136: 5755.60 | M136: 5658 | N136: 5566.45 | O136: 318250 | P136: -1.32%
A137: 127 | B137: FMCG | C137: PIDILITIND | D137: 2021-07-29 | E137: 2300.40 | F137: 2305.25 | G137: 2289.00 | H137: 2277.60 | I137: 2261.35 | J137: 2316.65 | K137: 2332.90 | L137: 2344.30 | M137: 2321.5 | N137: 2293.85 | O137: 2086000 | P137: -2.43%
A138: 128 | B138: Chemical | C138: PIIND | D138: 2021-07-29 | E138: 3030.15 | F138: 3058.33 | G138: 2986.92 | H138: 2943.68 | I138: 2872.27 | J138: 3101.57 | K138: 3172.98 | L138: 3216.22 | M138: 3129.75 | N138: 3015.1 | O138: 921250 | P138: 1.01%
A139: 129 | B139: Banking | C139: PNB | D139: 2021-07-29 | E139: 40.15 | F139: 40.07 | G139: 39.78 | H139: 39.42 | I139: 39.13 | J139: 40.43 | K139: 40.72 | L139: 41.08 | M139: 40.35 | N139: 39.7 | O139: 329568000 | P139: 3.36%
A140: 130 | B140: Power | C140: POWERGRID | D140: 2021-07-29 | E140: 232.90 | F140: 232.88 | G140: 231.87 | H140: 230.83 | I140: 229.82 | J140: 233.92 | K140: 234.93 | L140: 235.97 | M140: 233.9 | N140: 231.85 | O140: 21244000 | P140: -5.21%
A141: 131 | B141: Media | C141: PVR | D141: 2021-07-29 | E141: 1321.80 | F141: 1329.90 | G141: 1311.50 | H141: 1301.20 | I141: 1282.80 | J141: 1340.20 | K141: 1358.60 | L141: 1368.90 | M141: 1348.3 | N141: 1319.6 | O141: 1445257 | P141: 1.95%
A142: 132 | B142: Cement | C142: RAMCOCEM | D142: 2021-07-29 | E142: 1097.10 | F142: 1103.00 | G142: 1088.10 | H142: 1079.10 | I142: 1064.20 | J142: 1112.00 | K142: 1126.90 | L142: 1135.90 | M142: 1117.9 | N142: 1094 | O142: 2237200 | P142: 2.65%
A143: 133 | B143: Banking | C143: RBLBANK | D143: 2021-07-29 | E143: 204.10 | F143: 204.67 | G143: 202.73 | H143: 201.37 | I143: 199.43 | J143: 206.03 | K143: 207.97 | L143: 209.33 | M143: 206.6 | N143: 203.3 | O143: 35951300 | P143: 2.14%
A144: 134 | B144: Power | C144: RECLTD | D144: 2021-07-29 | E144: 153.00 | F144: 153.48 | G144: 152.17 | H144: 151.33 | I144: 150.02 | J144: 154.32 | K144: 155.63 | L144: 156.47 | M144: 154.8 | N144: 152.65 | O144: 21810000 | P144: 3.06%
A145: 135 | B145: Oil_Gas | C145: RELIANCE | D145: 2021-07-29 | E145: 2104.60 | F145: 2113.35 | G145: 2092.90 | H145: 2081.20 | I145: 2060.75 | J145: 2125.05 | K145: 2145.50 | L145: 2157.20 | M145: 2133.8 | N145: 2101.65 | O145: 39865250 | P145: -1.48%
A146: 136 | B146: Metals | C146: SAIL | D146: 2021-07-29 | E146: 126.95 | F146: 128.28 | G146: 125.12 | H146: 123.28 | I146: 120.12 | J146: 130.12 | K146: 133.28 | L146: 135.12 | M146: 131.45 | N146: 126.45 | O146: 188964500 | P146: 5.55%
A147: 137 | B147: Finance | C147: SBILIFE | D147: 2021-07-29 | E147: 1049.95 | F147: 1043.92 | G147: 1034.88 | H147: 1019.82 | I147: 1010.78 | J147: 1058.98 | K147: 1068.02 | L147: 1083.08 | M147: 1052.95 | N147: 1028.85 | O147: 4317000 | P147: 8.93%
A148: 138 | B148: Banking | C148: SBIN | D148: 2021-07-29 | E148: 430.00 | F148: 426.90 | G148: 422.70 | H148: 415.40 | I148: 411.20 | J148: 434.20 | K148: 438.40 | L148: 445.70 | M148: 431.1 | N148: 419.6 | O148: 87576000 | P148: 0.86%
A149: 139 | B149: Cement | C149: SHREECEM | D149: 2021-07-29 | E149: 28047.55 | F149: 28087.87 | G149: 27886.73 | H149: 27725.92 | I149: 27524.78 | J149: 28248.68 | K149: 28449.82 | L149: 28610.63 | M149: 28289 | N149: 27927.05 | O149: 195525 | P149: 1.73%
A150: 140 | B150: Capital_Goods | C150: SIEMENS | D150: 2021-07-29 | E150: 1978.50 | F150: 1981.70 | G150: 1964.45 | H150: 1950.40 | I150: 1933.15 | J150: 1995.75 | K150: 2013.00 | L150: 2027.05 | M150: 1998.95 | N150: 1967.65 | O150: 1588400 | P150: 0.07%
A151: 141 | B151: Textile | C151: SRF | D151: 2021-07-29 | E151: 7915.10 | F151: 7926.80 | G151: 7878.60 | H151: 7842.10 | I151: 7793.90 | J151: 7963.30 | K151: 8011.50 | L151: 8048.00 | M151: 7975 | N151: 7890.3 | O151: 439875 | P151: -1.32%
A152: 142 | B152: Finance | C152: SRTRANSFIN | D152: 2021-07-29 | E152: 1387.65 | F152: 1389.60 | G152: 1369.35 | H152: 1351.05 | I152: 1330.80 | J152: 1407.90 | K152: 1428.15 | L152: 1446.45 | M152: 1409.85 | N152: 1371.3 | O152: 3424400 | P152: -1.31%
A153: 143 | B153: Pharma | C153: SUNPHARMA | D153: 2021-07-29 | E153: 695.40 | F153: 692.77 | G153: 685.18 | H153: 674.97 | I153: 667.38 | J153: 702.98 | K153: 710.57 | L153: 720.78 | M153: 700.35 | N153: 682.55 | O153: 44734200 | P153: 10.53%
A154: 144 | B154: Media | C154: SUNTV | D154: 2021-07-29 | E154: 532.05 | F154: 532.82 | G154: 530.33 | H154: 528.62 | I154: 526.13 | J154: 534.53 | K154: 537.02 | L154: 538.73 | M154: 535.3 | N154: 531.1 | O154: 12654000 | P154: -0.93%
A155: 145 | B155: Chemical | C155: TATACHEM | D155: 2021-07-29 | E155: 755.10 | F155: 760.05 | G155: 747.80 | H155: 740.50 | I155: 728.25 | J155: 767.35 | K155: 779.60 | L155: 786.90 | M155: 772.3 | N155: 752.75 | O155: 9086000 | P155: -2.12%
A156: 146 | B156: FMCG | C156: TATACONSUM | D156: 2021-07-29 | E156: 777.50 | F156: 774.40 | G156: 769.80 | H156: 762.10 | I156: 757.50 | J156: 782.10 | K156: 786.70 | L156: 794.40 | M156: 779 | N156: 766.7 | O156: 7789500 | P156: 2.47%
A157: 147 | B157: Automobile | C157: TATAMOTORS | D157: 2021-07-29 | E157: 295.45 | F157: 296.93 | G157: 292.67 | H157: 289.88 | I157: 285.62 | J157: 299.72 | K157: 303.98 | L157: 306.77 | M157: 301.2 | N157: 294.15 | O157: 148792800 | P157: 5.16%
A158: 148 | B158: Power | C158: TATAPOWER | D158: 2021-07-29 | E158: 123.00 | F158: 123.73 | G158: 121.97 | H158: 120.93 | I158: 119.17 | J158: 124.77 | K158: 126.53 | L158: 127.57 | M158: 125.5 | N158: 122.7 | O158: 142593750 | P158: -2.17%
A159: 149 | B159: Metals | C159: TATASTEEL | D159: 2021-07-29 | E159: 1280.30 | F159: 1283.33 | G159: 1270.27 | H159: 1260.23 | I159: 1247.17 | J159: 1293.37 | K159: 1306.43 | L159: 1316.47 | M159: 1296.4 | N159: 1273.3 | O159: 44739750 | P159: 0.64%
A160: 150 | B160: Technology | C160: TCS | D160: 2021-07-29 | E160: 3218.10 | F160: 3225.02 | G160: 3208.08 | H160: 3198.07 | I160: 3181.13 | J160: 3235.03 | K160: 3251.97 | L160: 3261.98 | M160: 3241.95 | N160: 3215 | O160: 10048800 | P160: -1.76%
A161: 151 | B161: Technology | C161: TECHM | D161: 2021-07-29 | E161: 1129.90 | F161: 1124.38 | G161: 1108.87 | H161: 1087.83 | I161: 1072.32 | J161: 1145.42 | K161: 1160.93 | L161: 1181.97 | M161: 1139.9 | N161: 1103.35 | O161: 16110000 | P161: -3.73%
A162: 152 | B162: FMCG | C162: TITAN | D162: 2021-07-29 | E162: 1705.00 | F162: 1710.97 | G162: 1695.03 | H162: 1685.07 | I162: 1669.13 | J162: 1720.93 | K162: 1736.87 | L162: 1746.83 | M162: 1726.9 | N162: 1701 | O162: 5054625 | P162: 1.54%
A163: 153 | B163: Pharma | C163: TORNTPHARM | D163: 2021-07-29 | E163: 3049.00 | F163: 3044.07 | G163: 3009.88 | H163: 2970.77 | I163: 2936.58 | J163: 3083.18 | K163: 3117.37 | L163: 3156.48 | M163: 3078.25 | N163: 3004.95 | O163: 824000 | P163: 8.96%
A164: 154 | B164: Power | C164: TORNTPOWER | D164: 2021-07-29 | E164: 471.65 | F164: 472.37 | G164: 468.78 | H164: 465.92 | I164: 462.33 | J164: 475.23 | K164: 478.82 | L164: 481.68 | M164: 475.95 | N164: 469.5 | O164: 2938500 | P164: -0.10%
A165: 155 | B165: Others | C165: TRENT | D165: 2021-07-29 | E165: 892.45 | F165: 901.48 | G165: 878.97 | H165: 865.48 | I165: 842.97 | J165: 914.97 | K165: 937.48 | L165: 950.97 | M165: 924 | N165: 888 | O165: 1106350 | P165: -6.84%
A166: 156 | B166: Automobile | C166: TVSMOTOR | D166: 2021-07-29 | E166: 581.55 | F166: 580.12 | G166: 576.63 | H166: 571.72 | I166: 568.23 | J166: 585.03 | K166: 588.52 | L166: 593.43 | M166: 583.6 | N166: 575.2 | O166: 6666800 | P166: -1.55%
A167: 157 | B167: FMCG | C167: UBL | D167: 2021-07-29 | E167: 1447.30 | F167: 1440.97 | G167: 1427.93 | H167: 1408.57 | I167: 1395.53 | J167: 1460.33 | K167: 1473.37 | L167: 1492.73 | M167: 1454 | N167: 1421.6 | O167: 1686300 | P167: 5.06%
A168: 158 | B168: Cement | C168: ULTRACEMCO | D168: 2021-07-29 | E168: 7479.25 | F168: 7525.28 | G168: 7416.22 | H168: 7353.18 | I168: 7244.12 | J168: 7588.32 | K168: 7697.38 | L168: 7760.42 | M168: 7634.35 | N168: 7462.25 | O168: 2323800 | P168: -7.35%
A169: 159 | B169: Chemical | C169: UPL | D169: 2021-07-29 | E169: 820.15 | F169: 821.72 | G169: 815.43 | H169: 810.72 | I169: 804.43 | J169: 826.43 | K169: 832.72 | L169: 837.43 | M169: 828 | N169: 817 | O169: 23939500 | P169: 0.22%
A170: 160 | B170: Metals | C170: VEDL | D170: 2021-07-29 | E170: 267.95 | F170: 267.43 | G170: 264.02 | H170: 260.08 | I170: 256.67 | J170: 271.37 | K170: 274.78 | L170: 278.72 | M170: 270.85 | N170: 263.5 | O170: 119074100 | P170: 0.23%
A171: 161 | B171: Capital_Goods | C171: VOLTAS | D171: 2021-07-29 | E171: 1047.50 | F171: 1049.25 | G171: 1042.25 | H171: 1037.00 | I171: 1030.00 | J171: 1054.50 | K171: 1061.50 | L171: 1066.75 | M171: 1056.25 | N171: 1044 | O171: 3171500 | P171: 0.99%
A172: 162 | B172: Technology | C172: WIPRO | D172: 2021-07-29 | E172: 598.35 | F172: 594.58 | G172: 587.77 | H172: 577.18 | I172: 570.37 | J172: 605.17 | K172: 611.98 | L172: 622.57 | M172: 601.4 | N172: 584 | O172: 33345600 | P172: 2.55%
A173: 163 | B173: Media | C173: ZEEL | D173: 2021-07-29 | E173: 205.85 | F173: 205.92 | G173: 204.43 | H173: 203.02 | I173: 201.53 | J173: 207.33 | K173: 208.82 | L173: 210.23 | M173: 207.4 | N173: 204.5 | O173: 63759000 | P173: 0.84%
A184: Pivot Point: This is trigger point for intra day buy/sell based on the price range of the previous day
A185: As per the tool,the trader should take BUY position just above Pivot and keep the stop loss of pivot point and the first target would be Resistance 1(R1)
A186: If R1 is crossed then R2 becomes the next target with stop loss of at R1
A187: Similarly if price goes below pivot point then the trader should sell and keep a stop loss of pivot point and the first target would be S1
A188: If S1 is crossed then S2 becomes the next target with stop loss of at S1
A190: Disclaimer:
A191: This document has been prepared by the Retail Research Desk of Asit C Mehta
A192: Investment Intermediates Ltd. and is meant for use of the recipient only
A193: and is not for circulation. This document is not to be reported or
A194: copied or made available to others. It should not be considered to be
A195: taken as an offer to sell or a solicitation to buy any security. The
A196: information contained herein is from sources believed reliable. We do
A197: not represent that it is accurate or complete and it should not be
A198: relied upon as such. We may from time to time have positions in and buy
A199: and sell securities referred to herein

Sheet Cash Intra
M5: Back to Main Page
A6: FOR INTRA DAY TRADING | K6: =Main!B10 -> 2021-07-26
A8: Sr.no | C8: CLOSE RATE | D8: Pivot Point | E8: Supports | H8: Resistances
E9: S1 | F9: S2 | G9: S3 | H9: R1 | I9: R2 | J9: R3 | K9: HIGH | L9: LOW | M9: Total Trade Quanity in Lakhs
A10: 1 | B10: Nifty 50 | C10: 15856.05 | D10: 15841.42 | E10: 15783.03 | F10: 15710.02 | G10: 15651.63 | H10: 15914.43 | I10: 15972.82 | J10: 16045.83 | K10: 15899.8 | L10: 15768.4
A11: 2 | B11: Nifty Bank | C11: 35034.4 | D11: 34842.38 | E11: 34596.77 | F11: 34159.13 | G11: 33913.52 | H11: 35280.02 | I11: 35525.63 | J11: 35963.27 | K11: 35088 | L11: 34404.75
A12: 3 | B12: Nifty CPSE | C12: 2040.6 | D12: 2046.27 | E12: 2033.18 | F12: 2025.77 | G12: 2012.68 | H12: 2053.68 | I12: 2066.77 | J12: 2074.18 | K12: 2059.35 | L12: 2038.85
A13: 4 | B13: Nifty Infra | C13: 4456.35 | D13: 4471.35 | E13: 4437.60 | F13: 4418.85 | G13: 4385.10 | H13: 4490.10 | I13: 4523.85 | J13: 4542.60 | K13: 4505.1 | L13: 4452.6
A14: 5 | B14: Nifty IT | C14: 29894.3 | D14: 29934.02 | E14: 29808.33 | F14: 29722.37 | G14: 29596.68 | H14: 30019.98 | I14: 30145.67 | J14: 30231.63 | K14: 30059.7 | L14: 29848.05
A15: 6 | B15: Nifty PSE | C15: 3597.9 | D15: 3608.90 | E15: 3583.20 | F15: 3568.50 | G15: 3542.80 | H15: 3623.60 | I15: 3649.30 | J15: 3664.00 | K15: 3634.6 | L15: 3594.2
A16: 7 | B16: Nifty Midcap 50 | C16: 7574.35 | D16: 7592.68 | E16: 7546.37 | F16: 7518.38 | G16: 7472.07 | H16: 7620.67 | I16: 7666.98 | J16: 7694.97 | K16: 7639 | L16: 7564.7
A17: 8 | B17: ACC | C17: 2337.55 | D17: 2335.02 | E17: 2295.03 | F17: 2252.52 | G17: 2212.53 | H17: 2377.53 | I17: 2417.52 | J17: 2460.03 | K17: 2375 | L17: 2292.5 | M17: 16.649
A18: 9 | B18: AUBANK | C18: 1165.75 | D18: 1161.93 | E18: 1149.87 | F18: 1133.98 | G18: 1121.92 | H18: 1177.82 | I18: 1189.88 | J18: 1205.77 | K18: 1174 | L18: 1146.05 | M18: 9.78986
A19: 10 | B19: AARTIIND | C19: 890.9 | D19: 889.40 | E19: 881.80 | F19: 872.70 | G19: 865.10 | H19: 898.50 | I19: 906.10 | J19: 915.20 | K19: 897 | L19: 880.3 | M19: 18.85059
A20: 11 | B20: ABBOTINDIA | C20: 17815.85 | D20: 17694.80 | E20: 17539.60 | F20: 17263.35 | G20: 17108.15 | H20: 17971.05 | I20: 18126.25 | J20: 18402.50 | K20: 17850 | L20: 17418.55 | M20: 0.08469
A21: 12 | B21: ADANIENT | C21: 1401.65 | D21: 1407.57 | E21: 1380.28 | F21: 1358.92 | G21: 1331.63 | H21: 1428.93 | I21: 1456.22 | J21: 1477.58 | K21: 1434.85 | L21: 1386.2 | M21: 46.9414
A22: 13 | B22: ADANIGREEN | C22: 980.25 | D22: 974.17 | E22: 957.33 | F22: 934.42 | G22: 917.58 | H22: 997.08 | I22: 1013.92 | J22: 1036.83 | K22: 991 | L22: 951.25 | M22: 0.79379
A23: 14 | B23: ADANIPORTS | C23: 680.05 | D23: 685.75 | E23: 671.50 | F23: 662.95 | G23: 648.70 | H23: 694.30 | I23: 708.55 | J23: 717.10 | K23: 700 | L23: 677.2 | M23: 86.82097
A24: 15 | B24: ATGL | C24: 880.6 | D24: 873.17 | E24: 857.33 | F24: 834.07 | G24: 818.23 | H24: 896.43 | I24: 912.27 | J24: 935.53 | K24: 889 | L24: 849.9 | M24: 1.89493
A25: 16 | B25: ADANITRANS | C25: 963.6 | D25: 958.73 | E25: 927.47 | F25: 891.33 | G25: 860.07 | H25: 994.87 | I25: 1026.13 | J25: 1062.27 | K25: 990 | L25: 922.6 | M25: 0.82138
A26: 17 | B26: ABCAPITAL | C26: 118.65 | D26: 119.43 | E26: 117.37 | F26: 116.08 | G26: 114.02 | H26: 120.72 | I26: 122.78 | J26: 124.07 | K26: 121.5 | L26: 118.15 | M26: 23.90785
A27: 18 | B27: ABFRL | C27: 218.4 | D27: 218.50 | E27: 215.20 | F27: 212.00 | G27: 208.70 | H27: 221.70 | I27: 225.00 | J27: 228.20 | K27: 221.8 | L27: 215.3 | M27: 25.1742
A28: 19 | B28: AJANTPHARM | C28: 2166.3 | D28: 2154.43 | E28: 2128.92 | F28: 2091.53 | G28: 2066.02 | H28: 2191.82 | I28: 2217.33 | J28: 2254.72 | K28: 2179.95 | L28: 2117.05 | M28: 0.54749
A29: 20 | B29: APLLTD | C29: 946 | D29: 948.50 | E29: 937.50 | F29: 929.00 | G29: 918.00 | H29: 957.00 | I29: 968.00 | J29: 976.50 | K29: 959.5 | L29: 940 | M29: 2.91593
A30: 21 | B30: ALKEM | C30: 3394.7 | D30: 3390.22 | E30: 3348.48 | F30: 3302.27 | G30: 3260.53 | H30: 3436.43 | I30: 3478.17 | J30: 3524.38 | K30: 3431.95 | L30: 3344 | M30: 1.03885
A31: 22 | B31: AMARAJABAT | C31: 723.25 | D31: 723.88 | E31: 719.47 | F31: 715.68 | G31: 711.27 | H31: 727.67 | I31: 732.08 | J31: 735.87 | K31: 728.3 | L31: 720.1 | M31: 4.6338
A32: 23 | B32: AMBUJACEM | C32: 402.3 | D32: 404.10 | E32: 398.70 | F32: 395.10 | G32: 389.70 | H32: 407.70 | I32: 413.10 | J32: 416.70 | K32: 409.5 | L32: 400.5 | M32: 77.85242
A33: 24 | B33: APOLLOHOSP | C33: 3918.9 | D33: 3943.88 | E33: 3888.02 | F33: 3857.13 | G33: 3801.27 | H33: 3974.77 | I33: 4030.63 | J33: 4061.52 | K33: 3999.75 | L33: 3913 | M33: 3.35985
A34: 25 | B34: APOLLOTYRE | C34: 226.8 | D34: 226.28 | E34: 224.72 | F34: 222.63 | G34: 221.07 | H34: 228.37 | I34: 229.93 | J34: 232.02 | K34: 227.85 | L34: 224.2 | M34: 30.74785
A35: 26 | B35: ASHOKLEY | C35: 124.3 | D35: 124.27 | E35: 123.48 | F35: 122.67 | G35: 121.88 | H35: 125.08 | I35: 125.87 | J35: 126.68 | K35: 125.05 | L35: 123.45 | M35: 84.432
A36: 27 | B36: ASIANPAINT | C36: 3083.75 | D36: 3097.13 | E36: 3064.67 | F36: 3045.58 | G36: 3013.12 | H36: 3116.22 | I36: 3148.68 | J36: 3167.77 | K36: 3129.6 | L36: 3078.05 | M36: 8.15329
A37: 28 | B37: AUROPHARMA | C37: 963.7 | D37: 966.67 | E37: 957.33 | F37: 950.97 | G37: 941.63 | H37: 973.03 | I37: 982.37 | J37: 988.73 | K37: 976 | L37: 960.3 | M37: 5.5334
A38: 29 | B38: DMART | C38: 3413.2 | D38: 3410.42 | E38: 3395.83 | F38: 3378.47 | G38: 3363.88 | H38: 3427.78 | I38: 3442.37 | J38: 3459.73 | K38: 3425 | L38: 3393.05 | M38: 1.55192
A39: 30 | B39: AXISBANK | C39: 755.4 | D39: 753.17 | E39: 742.33 | F39: 729.27 | G39: 718.43 | H39: 766.23 | I39: 777.07 | J39: 790.13 | K39: 764 | L39: 740.1 | M39: 66.04465
A40: 31 | B40: BAJAJ-AUTO | C40: 3841.9 | D40: 3863.98 | E40: 3802.97 | F40: 3764.03 | G40: 3703.02 | H40: 3902.92 | I40: 3963.93 | J40: 4002.87 | K40: 3925 | L40: 3825.05 | M40: 7.09478
A41: 32 | B41: BAJFINANCE | C41: 6180.9 | D41: 6181.97 | E41: 6138.93 | F41: 6096.97 | G41: 6053.93 | H41: 6223.93 | I41: 6266.97 | J41: 6308.93 | K41: 6225 | L41: 6140 | M41: 9.53739
A42: 33 | B42: BAJAJFINSV | C42: 13201.2 | D42: 13130.07 | E42: 13016.18 | F42: 12831.17 | G42: 12717.28 | H42: 13315.08 | I42: 13428.97 | J42: 13613.98 | K42: 13243.95 | L42: 12945.05 | M42: 2.8987
A43: 34 | B43: BAJAJHLDNG | C43: 3837.55 | D43: 3862.82 | E43: 3729.78 | F43: 3622.02 | G43: 3488.98 | H43: 3970.58 | I43: 4103.62 | J43: 4211.38 | K43: 3995.85 | L43: 3755.05 | M43: 0.89977
A44: 35 | B44: BALKRISIND | C44: 2333.05 | D44: 2337.08 | E44: 2314.17 | F44: 2295.28 | G44: 2272.37 | H44: 2355.97 | I44: 2378.88 | J44: 2397.77 | K44: 2360 | L44: 2318.2 | M44: 3.97458
A45: 36 | B45: BANDHANBNK | C45: 305.05 | D45: 305.90 | E45: 302.35 | F45: 299.65 | G45: 296.10 | H45: 308.60 | I45: 312.15 | J45: 314.85 | K45: 309.45 | L45: 303.2 | M45: 38.36967
A46: 37 | B46: BANKBARODA | C46: 79.85 | D46: 79.82 | E46: 79.03 | F46: 78.22 | G46: 77.43 | H46: 80.63 | I46: 81.42 | J46: 82.23 | K46: 80.6 | L46: 79 | M46: 237.17707
A47: 38 | B47: BANKINDIA | C47: 72.75 | D47: 72.68 | E47: 71.62 | F47: 70.48 | G47: 69.42 | H47: 73.82 | I47: 74.88 | J47: 76.02 | K47: 73.75 | L47: 71.55 | M47: 24.40865
A48: 39 | B48: BATAINDIA | C48: 1598.55 | D48: 1592.63 | E48: 1577.82 | F48: 1557.08 | G48: 1542.27 | H48: 1613.37 | I48: 1628.18 | J48: 1648.92 | K48: 1607.45 | L48: 1571.9 | M48: 6.43778
A49: 40 | B49: BERGEPAINT | C49: 854.25 | D49: 856.53 | E49: 849.07 | F49: 843.88 | G49: 836.42 | H49: 861.72 | I49: 869.18 | J49: 874.37 | K49: 864 | L49: 851.35 | M49: 6.34421
A50: 41 | B50: BEL | C50: 182.65 | D50: 183.15 | E50: 181.10 | F50: 179.55 | G50: 177.50 | H50: 184.70 | I50: 186.75 | J50: 188.30 | K50: 185.2 | L50: 181.6 | M50: 42.56737
A51: 42 | B51: BHARATFORG | C51: 788.9 | D51: 794.68 | E51: 780.62 | F51: 772.33 | G51: 758.27 | H51: 802.97 | I51: 817.03 | J51: 825.32 | K51: 808.75 | L51: 786.4 | M51: 5.55945
A52: 43 | B52: BHEL | C52: 63.95 | D52: 64.23 | E52: 63.37 | F52: 62.78 | G52: 61.92 | H52: 64.82 | I52: 65.68 | J52: 66.27 | K52: 65.1 | L52: 63.65 | M52: 218.431
A53: 44 | B53: BPCL | C53: 461.35 | D53: 462.15 | E53: 458.50 | F53: 455.65 | G53: 452.00 | H53: 465.00 | I53: 468.65 | J53: 471.50 | K53: 465.8 | L53: 459.3 | M53: 34.77404
A54: 45 | B54: BHARTIARTL | C54: 548.3 | D54: 547.23 | E54: 533.82 | F54: 519.33 | G54: 505.92 | H54: 561.72 | I54: 575.13 | J54: 589.62 | K54: 560.65 | L54: 532.75 | M54: 325.88978
A55: 46 | B55: BIOCON | C55: 398.15 | D55: 395.67 | E55: 389.78 | F55: 381.42 | G55: 375.53 | H55: 404.03 | I55: 409.92 | J55: 418.28 | K55: 401.55 | L55: 387.3 | M55: 58.03946
A56: 47 | B56: BBTC | C56: 1272.85 | D56: 1278.75 | E56: 1260.50 | F56: 1248.15 | G56: 1229.90 | H56: 1291.10 | I56: 1309.35 | J56: 1321.70 | K56: 1297 | L56: 1266.4 | M56: 0.65224
A57: 48 | B57: BOSCHLTD | C57: 15055.35 | D57: 15095.83 | E57: 14999.52 | F57: 14943.68 | G57: 14847.37 | H57: 15151.67 | I57: 15247.98 | J57: 15303.82 | K57: 15192.15 | L57: 15040 | M57: 0.16832
A58: 49 | B58: BRITANNIA | C58: 3439.8 | D58: 3439.20 | E58: 3425.90 | F58: 3412.00 | G58: 3398.70 | H58: 3453.10 | I58: 3466.40 | J58: 3480.30 | K58: 3452.5 | L58: 3425.3 | M58: 2.47778
A59: 50 | B59: CESC | C59: 818.35 | D59: 821.98 | E59: 810.37 | F59: 802.38 | G59: 790.77 | H59: 829.97 | I59: 841.58 | J59: 849.57 | K59: 833.6 | L59: 814 | M59: 1.62299
A60: 51 | B60: CADILAHC | C60: 615.25 | D60: 616.58 | E60: 610.67 | F60: 606.08 | G60: 600.17 | H60: 621.17 | I60: 627.08 | J60: 631.67 | K60: 622.5 | L60: 612 | M60: 21.75134
A61: 52 | B61: CANBK | C61: 146.05 | D61: 145.40 | E61: 144.50 | F61: 142.95 | G61: 142.05 | H61: 146.95 | I61: 147.85 | J61: 149.40 | K61: 146.3 | L61: 143.85 | M61: 55.88143
A62: 53 | B62: CASTROLIND | C62: 143.75 | D62: 143.70 | E62: 142.85 | F62: 141.95 | G62: 141.10 | H62: 144.60 | I62: 145.45 | J62: 146.35 | K62: 144.55 | L62: 142.8 | M62: 3.99026
A63: 54 | B63: CHOLAFIN | C63: 499.05 | D63: 498.67 | E63: 491.48 | F63: 483.92 | G63: 476.73 | H63: 506.23 | I63: 513.42 | J63: 520.98 | K63: 505.85 | L63: 491.1 | M63: 26.14875
A64: 55 | B64: CIPLA | C64: 948 | D64: 950.88 | E64: 944.07 | F64: 940.13 | G64: 933.32 | H64: 954.82 | I64: 961.63 | J64: 965.57 | K64: 957.7 | L64: 946.95 | M64: 10.56183
A65: 56 | B65: CUB | C65: 155.6 | D65: 155.58 | E65: 154.17 | F65: 152.73 | G65: 151.32 | H65: 157.02 | I65: 158.43 | J65: 159.87 | K65: 157 | L65: 154.15 | M65: 9.5222
A66: 57 | B66: COALINDIA | C66: 144.1 | D66: 144.15 | E66: 143.30 | F66: 142.50 | G66: 141.65 | H66: 144.95 | I66: 145.80 | J66: 146.60 | K66: 145 | L66: 143.35 | M66: 34.19739
A67: 58 | B67: COFORGE | C67: 4688.45 | D67: 4709.02 | E67: 4650.73 | F67: 4613.02 | G67: 4554.73 | H67: 4746.73 | I67: 4805.02 | J67: 4842.73 | K67: 4767.3 | L67: 4671.3 | M67: 3.70756
A68: 59 | B68: COLPAL | C68: 1795.05 | D68: 1795.65 | E68: 1779.40 | F68: 1763.75 | G68: 1747.50 | H68: 1811.30 | I68: 1827.55 | J68: 1843.20 | K68: 1811.9 | L68: 1780 | M68: 5.78168
A69: 60 | B69: CONCOR | C69: 663.5 | D69: 672.20 | E69: 653.60 | F69: 643.70 | G69: 625.10 | H69: 682.10 | I69: 700.70 | J69: 710.60 | K69: 690.8 | L69: 662.3 | M69: 8.2688
A70: 61 | B70: COROMANDEL | C70: 868.95 | D70: 872.72 | E70: 863.23 | F70: 857.52 | G70: 848.03 | H70: 878.43 | I70: 887.92 | J70: 893.63 | K70: 882.2 | L70: 867 | M70: 3.54258
A71: 62 | B71: CROMPTON | C71: 458.9 | D71: 465.92 | E71: 446.93 | F71: 434.97 | G71: 415.98 | H71: 477.88 | I71: 496.87 | J71: 508.83 | K71: 484.9 | L71: 453.95 | M71: 45.13804
A72: 63 | B72: CUMMINSIND | C72: 858.3 | D72: 860.95 | E72: 850.90 | F72: 843.50 | G72: 833.45 | H72: 868.35 | I72: 878.40 | J72: 885.80 | K72: 871 | L72: 853.55 | M72: 3.98781
A73: 64 | B73: DLF | C73: 334.15 | D73: 331.55 | E73: 327.60 | F73: 321.05 | G73: 317.10 | H73: 338.10 | I73: 342.05 | J73: 348.60 | K73: 335.5 | L73: 325 | M73: 117.05345
A74: 65 | B74: DABUR | C74: 590.15 | D74: 589.97 | E74: 585.83 | F74: 581.52 | G74: 577.38 | H74: 594.28 | I74: 598.42 | J74: 602.73 | K74: 594.1 | L74: 585.65 | M74: 6.66936
A75: 66 | B75: DALBHARAT | C75: 2291.45 | D75: 2275.65 | E75: 2251.30 | F75: 2211.15 | G75: 2186.80 | H75: 2315.80 | I75: 2340.15 | J75: 2380.30 | K75: 2300 | L75: 2235.5 | M75: 2.01366
A76: 67 | B76: DEEPAKNTR | C76: 1933.4 | D76: 1937.75 | E76: 1920.65 | F76: 1907.90 | G76: 1890.80 | H76: 1950.50 | I76: 1967.60 | J76: 1980.35 | K76: 1954.85 | L76: 1925 | M76: 6.08475
A77: 68 | B77: DHANI | C77: 210.4 | D77: 207.20 | E77: 202.20 | F77: 194.00 | G77: 189.00 | H77: 215.40 | I77: 220.40 | J77: 228.60 | K77: 212.2 | L77: 199 | M77: 21.75073
A78: 69 | B78: DIVISLAB | C78: 4824.75 | D78: 4825.48 | E78: 4800.97 | F78: 4777.18 | G78: 4752.67 | H78: 4849.27 | I78: 4873.78 | J78: 4897.57 | K78: 4850 | L78: 4801.7 | M78: 1.77874
A79: 70 | B79: DIXON | C79: 4550.4 | D79: 4567.43 | E79: 4515.87 | F79: 4481.33 | G79: 4429.77 | H79: 4601.97 | I79: 4653.53 | J79: 4688.07 | K79: 4619 | L79: 4532.9 | M79: 1.00993
A80: 71 | B80: LALPATHLAB | C80: 3441.85 | D80: 3419.57 | E80: 3355.23 | F80: 3268.62 | G80: 3204.28 | H80: 3506.18 | I80: 3570.52 | J80: 3657.13 | K80: 3483.9 | L80: 3332.95 | M80: 4.1317
A81: 72 | B81: DRREDDY | C81: 5422.15 | D81: 5404.75 | E81: 5377.50 | F81: 5332.85 | G81: 5305.60 | H81: 5449.40 | I81: 5476.65 | J81: 5521.30 | K81: 5432 | L81: 5360.1 | M81: 3.06761
A82: 73 | B82: EICHERMOT | C82: 2549.65 | D82: 2556.55 | E82: 2535.10 | F82: 2520.55 | G82: 2499.10 | H82: 2571.10 | I82: 2592.55 | J82: 2607.10 | K82: 2578 | L82: 2542 | M82: 3.79798
A83: 74 | B83: EMAMILTD | C83: 549.95 | D83: 552.50 | E83: 545.55 | F83: 541.15 | G83: 534.20 | H83: 556.90 | I83: 563.85 | J83: 568.25 | K83: 559.45 | L83: 548.1 | M83: 3.8973
A84: 75 | B84: ENDURANCE | C84: 1657.5 | D84: 1649.32 | E84: 1635.88 | F84: 1614.27 | G84: 1600.83 | H84: 1670.93 | I84: 1684.37 | J84: 1705.98 | K84: 1662.75 | L84: 1627.7 | M84: 1.33921
A85: 76 | B85: ESCORTS | C85: 1160.65 | D85: 1161.55 | E85: 1154.10 | F85: 1147.55 | G85: 1140.10 | H85: 1168.10 | I85: 1175.55 | J85: 1182.10 | K85: 1169 | L85: 1155 | M85: 4.50466
A86: 77 | B86: EXIDEIND | C86: 178.7 | D86: 179.12 | E86: 177.88 | F86: 177.07 | G86: 175.83 | H86: 179.93 | I86: 181.17 | J86: 181.98 | K86: 180.35 | L86: 178.3 | M86: 13.43616
A87: 78 | B87: FEDERALBNK | C87: 85.4 | D87: 85.37 | E87: 83.73 | F87: 82.07 | G87: 80.43 | H87: 87.03 | I87: 88.67 | J87: 90.33 | K87: 87 | L87: 83.7 | M87: 521.35646
A88: 79 | B88: FORTIS | C88: 241.9 | D88: 240.98 | E88: 238.17 | F88: 234.43 | G88: 231.62 | H88: 244.72 | I88: 247.53 | J88: 251.27 | K88: 243.8 | L88: 237.25 | M88: 18.97182
A89: 80 | B89: GAIL | C89: 142.4 | D89: 143.13 | E89: 141.27 | F89: 140.13 | G89: 138.27 | H89: 144.27 | I89: 146.13 | J89: 147.27 | K89: 145 | L89: 142 | M89: 73.67072
A90: 81 | B90: GMRINFRA | C90: 29 | D90: 29.08 | E90: 28.57 | F90: 28.13 | G90: 27.62 | H90: 29.52 | I90: 30.03 | J90: 30.47 | K90: 29.6 | L90: 28.65 | M90: 155.11883
A91: 82 | B91: GLAND | C91: 4016.85 | D91: 4043.58 | E91: 3915.17 | F91: 3813.48 | G91: 3685.07 | H91: 4145.27 | I91: 4273.68 | J91: 4375.37 | K91: 4172 | L91: 3941.9 | M91: 7.27749
A92: 83 | B92: GLENMARK | C92: 649.9 | D92: 656.48 | E92: 638.42 | F92: 626.93 | G92: 608.87 | H92: 667.97 | I92: 686.03 | J92: 697.52 | K92: 674.55 | L92: 645 | M92: 32.92401
A93: 84 | B93: GODREJAGRO | C93: 649.5 | D93: 649.13 | E93: 643.47 | F93: 637.43 | G93: 631.77 | H93: 655.17 | I93: 660.83 | J93: 666.87 | K93: 654.8 | L93: 643.1 | M93: 1.55267
A94: 85 | B94: GODREJCP | C94: 980.15 | D94: 975.47 | E94: 966.93 | F94: 953.72 | G94: 945.18 | H94: 988.68 | I94: 997.22 | J94: 1010.43 | K94: 984 | L94: 962.25 | M94: 10.52281
A95: 86 | B95: GODREJIND | C95: 547.2 | D95: 546.18 | E95: 535.02 | F95: 522.83 | G95: 511.67 | H95: 558.37 | I95: 569.53 | J95: 581.72 | K95: 557.35 | L95: 534 | M95: 2.84694
A96: 87 | B96: GODREJPROP | C96: 1561.55 | D96: 1561.85 | E96: 1543.70 | F96: 1525.85 | G96: 1507.70 | H96: 1579.70 | I96: 1597.85 | J96: 1615.70 | K96: 1580 | L96: 1544 | M96: 4.83303
A97: 88 | B97: GRASIM | C97: 1549.5 | D97: 1561.20 | E97: 1533.45 | F97: 1517.40 | G97: 1489.65 | H97: 1577.25 | I97: 1605.00 | J97: 1621.05 | K97: 1588.95 | L97: 1545.15 | M97: 14.09312
A98: 89 | B98: GUJGASLTD | C98: 730.6 | D98: 729.97 | E98: 717.13 | F98: 703.67 | G98: 690.83 | H98: 743.43 | I98: 756.27 | J98: 769.73 | K98: 742.8 | L98: 716.5 | M98: 41.02053
A99: 90 | B99: GSPL | C99: 338.35 | D99: 337.47 | E99: 331.18 | F99: 324.02 | G99: 317.73 | H99: 344.63 | I99: 350.92 | J99: 358.08 | K99: 343.75 | L99: 330.3 | M99: 13.81749
A100: 91 | B100: HCLTECH | C100: 994 | D100: 993.50 | E100: 983.10 | F100: 972.20 | G100: 961.80 | H100: 1004.40 | I100: 1014.80 | J100: 1025.70 | K100: 1003.9 | L100: 982.6 | M100: 52.65839
A101: 92 | B101: HDFCAMC | C101: 2899.6 | D101: 2898.15 | E101: 2884.45 | F101: 2869.30 | G101: 2855.60 | H101: 2913.30 | I101: 2927.00 | J101: 2942.15 | K101: 2911.85 | L101: 2883 | M101: 2.36653
A102: 93 | B102: HDFCBANK | C102: 1442.75 | D102: 1445.17 | E102: 1432.88 | F102: 1423.02 | G102: 1410.73 | H102: 1455.03 | I102: 1467.32 | J102: 1477.18 | K102: 1457.45 | L102: 1435.3 | M102: 65.63342
A103: 94 | B103: HDFCLIFE | C103: 665.35 | D103: 665.03 | E103: 662.12 | F103: 658.88 | G103: 655.97 | H103: 668.27 | I103: 671.18 | J103: 674.42 | K103: 667.95 | L103: 661.8 | M103: 27.96725
A104: 95 | B104: HAVELLS | C104: 1143.75 | D104: 1149.98 | E104: 1133.02 | F104: 1122.28 | G104: 1105.32 | H104: 1160.72 | I104: 1177.68 | J104: 1188.42 | K104: 1166.95 | L104: 1139.25 | M104: 15.67974
A105: 96 | B105: HEROMOTOCO | C105: 2835 | D105: 2840.00 | E105: 2816.00 | F105: 2797.00 | G105: 2773.00 | H105: 2859.00 | I105: 2883.00 | J105: 2902.00 | K105: 2864 | L105: 2821 | M105: 4.30659
A106: 97 | B106: HINDALCO | C106: 391.75 | D106: 393.03 | E106: 389.52 | F106: 387.28 | G106: 383.77 | H106: 395.27 | I106: 398.78 | J106: 401.02 | K106: 396.55 | L106: 390.8 | M106: 52.17004
A107: 98 | B107: HAL | C107: 1103.05 | D107: 1117.02 | E107: 1084.03 | F107: 1065.02 | G107: 1032.03 | H107: 1136.03 | I107: 1169.02 | J107: 1188.03 | K107: 1150 | L107: 1098 | M107: 6.18867
A108: 99 | B108: HINDPETRO | C108: 277.4 | D108: 277.15 | E108: 275.30 | F108: 273.20 | G108: 271.35 | H108: 279.25 | I108: 281.10 | J108: 283.20 | K108: 279 | L108: 275.05 | M108: 17.48491
A109: 100 | B109: HINDUNILVR | C109: 2358.1 | D109: 2368.18 | E109: 2344.62 | F109: 2331.13 | G109: 2307.57 | H109: 2381.67 | I109: 2405.23 | J109: 2418.72 | K109: 2391.75 | L109: 2354.7 | M109: 15.17589
A110: 101 | B110: HINDZINC | C110: 328.55 | D110: 329.87 | E110: 323.83 | F110: 319.12 | G110: 313.08 | H110: 334.58 | I110: 340.62 | J110: 345.33 | K110: 335.9 | L110: 325.15 | M110: 16.91393
A111: 102 | B111: HDFC | C111: 2482.5 | D111: 2484.70 | E111: 2467.80 | F111: 2453.10 | G111: 2436.20 | H111: 2499.40 | I111: 2516.30 | J111: 2531.00 | K111: 2501.6 | L111: 2470 | M111: 12.75979
A112: 103 | B112: ICICIBANK | C112: 676.65 | D112: 668.42 | E112: 658.98 | F112: 641.32 | G112: 631.88 | H112: 686.08 | I112: 695.52 | J112: 713.18 | K112: 677.85 | L112: 650.75 | M112: 192.98083
A113: 104 | B113: ICICIGI | C113: 1484.8 | D113: 1488.85 | E113: 1465.75 | F113: 1446.70 | G113: 1423.60 | H113: 1507.90 | I113: 1531.00 | J113: 1550.05 | K113: 1511.95 | L113: 1469.8 | M113: 20.37167
A114: 105 | B114: ICICIPRULI | C114: 645.05 | D114: 641.52 | E114: 635.53 | F114: 626.02 | G114: 620.03 | H114: 651.03 | I114: 657.02 | J114: 666.53 | K114: 647.5 | L114: 632 | M114: 17.88239
A115: 106 | B115: ISEC | C115: 725.45 | D115: 735.02 | E115: 710.43 | F115: 695.42 | G115: 670.83 | H115: 750.03 | I115: 774.62 | J115: 789.63 | K115: 759.6 | L115: 720 | M115: 9.42632
A116: 107 | B116: IDFCFIRSTB | C116: 51.15 | D116: 51.23 | E116: 49.92 | F116: 48.68 | G116: 47.37 | H116: 52.47 | I116: 53.78 | J116: 55.02 | K116: 52.55 | L116: 50 | M116: 405.59304
A117: 108 | B117: ITC | C117: 212.4 | D117: 210.83 | E117: 208.07 | F117: 203.73 | G117: 200.97 | H117: 215.17 | I117: 217.93 | J117: 222.27 | K117: 213.6 | L117: 206.5 | M117: 445.26781
A118: 109 | B118: IBULHSGFIN | C118: 283.65 | D118: 280.28 | E118: 275.57 | F118: 267.48 | G118: 262.77 | H118: 288.37 | I118: 293.08 | J118: 301.17 | K118: 285 | L118: 272.2 | M118: 174.46328
A119: 110 | B119: INDIAMART | C119: 7250.5 | D119: 7247.02 | E119: 7109.53 | F119: 6968.57 | G119: 6831.08 | H119: 7387.98 | I119: 7525.47 | J119: 7666.43 | K119: 7384.5 | L119: 7106.05 | M119: 2.1803
A120: 111 | B120: INDHOTEL | C120: 146.8 | D120: 146.50 | E120: 145.60 | F120: 144.40 | G120: 143.50 | H120: 147.70 | I120: 148.60 | J120: 149.80 | K120: 147.4 | L120: 145.3 | M120: 19.76521
A121: 112 | B121: IOC | C121: 106 | D121: 106.22 | E121: 105.23 | F121: 104.47 | G121: 103.48 | H121: 106.98 | I121: 107.97 | J121: 108.73 | K121: 107.2 | L121: 105.45 | M121: 73.31144
A122: 113 | B122: IRCTC | C122: 2325.35 | D122: 2341.27 | E122: 2300.08 | F122: 2274.82 | G122: 2233.63 | H122: 2366.53 | I122: 2407.72 | J122: 2432.98 | K122: 2382.45 | L122: 2316 | M122: 10.48692
A123: 114 | B123: IGL | C123: 538.15 | D123: 539.65 | E123: 533.60 | F123: 529.05 | G123: 523.00 | H123: 544.20 | I123: 550.25 | J123: 554.80 | K123: 545.7 | L123: 535.1 | M123: 45.59632
A124: 115 | B124: INDUSTOWER | C124: 220.5 | D124: 223.30 | E124: 212.65 | F124: 204.80 | G124: 194.15 | H124: 231.15 | I124: 241.80 | J124: 249.65 | K124: 233.95 | L124: 215.45 | M124: 56.54561
A125: 116 | B125: INDUSINDBK | C125: 989.3 | D125: 988.77 | E125: 977.53 | F125: 965.77 | G125: 954.53 | H125: 1000.53 | I125: 1011.77 | J125: 1023.53 | K125: 1000 | L125: 977 | M125: 34.49852
A126: 117 | B126: NAUKRI | C126: 5142.55 | D126: 5207.43 | E126: 5055.12 | F126: 4967.68 | G126: 4815.37 | H126: 5294.87 | I126: 5447.18 | J126: 5534.62 | K126: 5359.75 | L126: 5120 | M126: 13.79814
A127: 118 | B127: INFY | C127: 1590.45 | D127: 1591.33 | E127: 1584.17 | F127: 1577.88 | G127: 1570.72 | H127: 1597.62 | I127: 1604.78 | J127: 1611.07 | K127: 1598.5 | L127: 1585.05 | M127: 41.79719
A128: 119 | B128: INDIGO | C128: 1727.1 | D128: 1719.33 | E128: 1687.77 | F128: 1648.43 | G128: 1616.87 | H128: 1758.67 | I128: 1790.23 | J128: 1829.57 | K128: 1750.9 | L128: 1680 | M128: 11.08929
A129: 120 | B129: IPCALAB | C129: 2203.65 | D129: 2194.92 | E129: 2178.78 | F129: 2153.92 | G129: 2137.78 | H129: 2219.78 | I129: 2235.92 | J129: 2260.78 | K129: 2211.05 | L129: 2170.05 | M129: 1.5102
A130: 121 | B130: JSWENERGY | C130: 240.75 | D130: 234.80 | E130: 223.20 | F130: 205.65 | G130: 194.05 | H130: 252.35 | I130: 263.95 | J130: 281.50 | K130: 246.4 | L130: 217.25 | M130: 162.99716
A131: 122 | B131: JSWSTEEL | C131: 717.55 | D131: 718.85 | E131: 710.70 | F131: 703.85 | G131: 695.70 | H131: 725.70 | I131: 733.85 | J131: 740.70 | K131: 727 | L131: 712 | M131: 87.31309
A132: 123 | B132: JINDALSTEL | C132: 397.7 | D132: 397.42 | E132: 394.28 | F132: 390.87 | G132: 387.73 | H132: 400.83 | I132: 403.97 | J132: 407.38 | K132: 400.55 | L132: 394 | M132: 84.59294
A133: 124 | B133: JUBLFOOD | C133: 3569.35 | D133: 3532.65 | E133: 3426.75 | F133: 3284.15 | G133: 3178.25 | H133: 3675.25 | I133: 3781.15 | J133: 3923.75 | K133: 3638.55 | L133: 3390.05 | M133: 34.98895
A134: 125 | B134: KOTAKBANK | C134: 1722.95 | D134: 1714.80 | E134: 1702.30 | F134: 1681.65 | G134: 1669.15 | H134: 1735.45 | I134: 1747.95 | J134: 1768.60 | K134: 1727.3 | L134: 1694.15 | M134: 19.958
A135: 126 | B135: L&TFH | C135: 88.25 | D135: 88.38 | E135: 87.87 | F135: 87.48 | G135: 86.97 | H135: 88.77 | I135: 89.28 | J135: 89.67 | K135: 88.9 | L135: 88 | M135: 57.75331
A136: 127 | B136: LTTS | C136: 3496.2 | D136: 3517.58 | E136: 3455.17 | F136: 3414.13 | G136: 3351.72 | H136: 3558.62 | I136: 3621.03 | J136: 3662.07 | K136: 3580 | L136: 3476.55 | M136: 2.49878
A137: 128 | B137: LICHSGFIN | C137: 454.5 | D137: 456.50 | E137: 451.10 | F137: 447.70 | G137: 442.30 | H137: 459.90 | I137: 465.30 | J137: 468.70 | K137: 461.9 | L137: 453.1 | M137: 11.11818
A138: 129 | B138: LTI | C138: 4361.2 | D138: 4376.73 | E138: 4328.47 | F138: 4295.73 | G138: 4247.47 | H138: 4409.47 | I138: 4457.73 | J138: 4490.47 | K138: 4425 | L138: 4344 | M138: 2.15746
A139: 130 | B139: LT | C139: 1611.75 | D139: 1621.52 | E139: 1597.08 | F139: 1582.42 | G139: 1557.98 | H139: 1636.18 | I139: 1660.62 | J139: 1675.28 | K139: 1645.95 | L139: 1606.85 | M139: 22.59058
A140: 131 | B140: LAURUSLABS | C140: 647.8 | D140: 650.95 | E140: 642.50 | F140: 637.20 | G140: 628.75 | H140: 656.25 | I140: 664.70 | J140: 670.00 | K140: 659.4 | L140: 645.65 | M140: 15.38912
A141: 132 | B141: LUPIN | C141: 1181.2 | D141: 1181.08 | E141: 1176.17 | F141: 1171.13 | G141: 1166.22 | H141: 1186.12 | I141: 1191.03 | J141: 1196.07 | K141: 1186 | L141: 1176.05 | M141: 8.28212
A142: 133 | B142: MRF | C142: 81174.85 | D142: 81381.53 | E142: 80793.32 | F142: 80411.78 | G142: 79823.57 | H142: 81763.07 | I142: 82351.28 | J142: 82732.82 | K142: 81969.75 | L142: 81000 | M142: 0.04471
A143: 134 | B143: MGL | C143: 1144.25 | D143: 1150.43 | E143: 1134.37 | F143: 1124.48 | G143: 1108.42 | H143: 1160.32 | I143: 1176.38 | J143: 1186.27 | K143: 1166.5 | L143: 1140.55 | M143: 3.41985
A144: 135 | B144: M&MFIN | C144: 154.15 | D144: 154.92 | E144: 152.88 | F144: 151.62 | G144: 149.58 | H144: 156.18 | I144: 158.22 | J144: 159.48 | K144: 156.95 | L144: 153.65 | M144: 32.41734
A145: 136 | B145: M&M | C145: 764.2 | D145: 763.43 | E145: 759.02 | F145: 753.83 | G145: 749.42 | H145: 768.62 | I145: 773.03 | J145: 778.22 | K145: 767.85 | L145: 758.25 | M145: 11.79241
A146: 137 | B146: MANAPPURAM | C146: 195.45 | D146: 195.17 | E146: 191.93 | F146: 188.42 | G146: 185.18 | H146: 198.68 | I146: 201.92 | J146: 205.43 | K146: 198.4 | L146: 191.65 | M146: 87.12717
A147: 138 | B147: MARICO | C147: 533.95 | D147: 533.17 | E147: 528.98 | F147: 524.02 | G147: 519.83 | H147: 538.13 | I147: 542.32 | J147: 547.28 | K147: 537.35 | L147: 528.2 | M147: 14.35904
A148: 139 | B148: MARUTI | C148: 7293.85 | D148: 7315.28 | E148: 7255.57 | F148: 7217.28 | G148: 7157.57 | H148: 7353.57 | I148: 7413.28 | J148: 7451.57 | K148: 7375 | L148: 7277 | M148: 4.3633
A149: 140 | B149: MFSL | C149: 1081.5 | D149: 1086.50 | E149: 1053.00 | F149: 1024.50 | G149: 991.00 | H149: 1115.00 | I149: 1148.50 | J149: 1177.00 | K149: 1120 | L149: 1058 | M149: 21.25615
A150: 141 | B150: MINDTREE | C150: 2721.25 | D150: 2739.53 | E150: 2689.77 | F150: 2658.28 | G150: 2608.52 | H150: 2771.02 | I150: 2820.78 | J150: 2852.27 | K150: 2789.3 | L150: 2708.05 | M150: 7.18806
A151: 142 | B151: MPHASIS | C151: 2530.15 | D151: 2559.73 | E151: 2442.47 | F151: 2354.78 | G151: 2237.52 | H151: 2647.42 | I151: 2764.68 | J151: 2852.37 | K151: 2677 | L151: 2472.05 | M151: 63.46868
A152: 143 | B152: MUTHOOTFIN | C152: 1567.05 | D152: 1581.03 | E152: 1546.02 | F152: 1524.98 | G152: 1489.97 | H152: 1602.07 | I152: 1637.08 | J152: 1658.12 | K152: 1616.05 | L152: 1560 | M152: 8.96456
A153: 144 | B153: NATCOPHARM | C153: 1094.45 | D153: 1091.35 | E153: 1081.25 | F153: 1068.05 | G153: 1057.95 | H153: 1104.55 | I153: 1114.65 | J153: 1127.85 | K153: 1101.45 | L153: 1078.15 | M153: 2.88412
A154: 145 | B154: NMDC | C154: 173.5 | D154: 175.08 | E154: 171.07 | F154: 168.63 | G154: 164.62 | H154: 177.52 | I154: 181.53 | J154: 183.97 | K154: 179.1 | L154: 172.65 | M154: 480.51196
A155: 146 | B155: NTPC | C155: 118.5 | D155: 118.97 | E155: 117.83 | F155: 117.17 | G155: 116.03 | H155: 119.63 | I155: 120.77 | J155: 121.43 | K155: 120.1 | L155: 118.3 | M155: 104.424
A156: 147 | B156: NAVINFLUOR | C156: 3940.1 | D156: 3926.47 | E156: 3894.93 | F156: 3849.77 | G156: 3818.23 | H156: 3971.63 | I156: 4003.17 | J156: 4048.33 | K156: 3958 | L156: 3881.3 | M156: 1.39766
A157: 148 | B157: NESTLEIND | C157: 18143.95 | D157: 18083.40 | E157: 17942.80 | F157: 17741.65 | G157: 17601.05 | H157: 18284.55 | I157: 18425.15 | J157: 18626.30 | K157: 18224 | L157: 17882.25 | M157: 0.75231
A158: 149 | B158: NAM-INDIA | C158: 401.75 | D158: 404.85 | E158: 395.65 | F158: 389.55 | G158: 380.35 | H158: 410.95 | I158: 420.15 | J158: 426.25 | K158: 414.05 | L158: 398.75 | M158: 23.50609
A159: 150 | B159: OBEROIRLTY | C159: 696.5 | D159: 686.23 | E159: 672.47 | F159: 648.43 | G159: 634.67 | H159: 710.27 | I159: 724.03 | J159: 748.07 | K159: 700 | L159: 662.2 | M159: 4.68334
A160: 151 | B160: ONGC | C160: 115.3 | D160: 115.60 | E160: 114.45 | F160: 113.60 | G160: 112.45 | H160: 116.45 | I160: 117.60 | J160: 118.45 | K160: 116.75 | L160: 114.75 | M160: 78.4169
A161: 152 | B161: OIL | C161: 161.1 | D161: 161.80 | E161: 160.00 | F161: 158.90 | G161: 157.10 | H161: 162.90 | I161: 164.70 | J161: 165.80 | K161: 163.6 | L161: 160.7 | M161: 7.99097
A162: 153 | B162: PIIND | C162: 3026 | D162: 3056.18 | E162: 2982.37 | F162: 2938.73 | G162: 2864.92 | H162: 3099.82 | I162: 3173.63 | J162: 3217.27 | K162: 3130 | L162: 3012.55 | M162: 5.36188
A163: 154 | B163: PAGEIND | C163: 33376.95 | D163: 33262.35 | E163: 32735.15 | F163: 32093.35 | G163: 31566.15 | H163: 33904.15 | I163: 34431.35 | J163: 35073.15 | K163: 33789.55 | L163: 32620.55 | M163: 0.28887
A164: 155 | B164: PETRONET | C164: 219.65 | D164: 220.22 | E164: 218.78 | F164: 217.92 | G164: 216.48 | H164: 221.08 | I164: 222.52 | J164: 223.38 | K164: 221.65 | L164: 219.35 | M164: 18.71507
A165: 156 | B165: PFIZER | C165: 5625.35 | D165: 5612.25 | E165: 5574.30 | F165: 5523.25 | G165: 5485.30 | H165: 5663.30 | I165: 5701.25 | J165: 5752.30 | K165: 5650.2 | L165: 5561.2 | M165: 0.5823
A166: 157 | B166: PIDILITIND | C166: 2306.6 | D166: 2311.63 | E166: 2295.57 | F166: 2284.53 | G166: 2268.47 | H166: 2322.67 | I166: 2338.73 | J166: 2349.77 | K166: 2327.7 | L166: 2300.6 | M166: 1.64481
A167: 158 | B167: PEL | C167: 2255.05 | D167: 2246.88 | E167: 2215.37 | F167: 2175.68 | G167: 2144.17 | H167: 2286.57 | I167: 2318.08 | J167: 2357.77 | K167: 2278.4 | L167: 2207.2 | M167: 5.38472
A168: 159 | B168: POLYCAB | C168: 1889.25 | D168: 1914.75 | E168: 1859.50 | F168: 1829.75 | G168: 1774.50 | H168: 1944.50 | I168: 1999.75 | J168: 2029.50 | K168: 1970 | L168: 1885 | M168: 3.96771
A169: 160 | B169: PFC | C169: 128.45 | D169: 128.78 | E169: 127.82 | F169: 127.18 | G169: 126.22 | H169: 129.42 | I169: 130.38 | J169: 131.02 | K169: 129.75 | L169: 128.15 | M169: 36.03743
A170: 161 | B170: POWERGRID | C170: 233 | D170: 233.00 | E170: 232.05 | F170: 231.10 | G170: 230.15 | H170: 233.95 | I170: 234.90 | J170: 235.85 | K170: 233.95 | L170: 232.05 | M170: 37.46459
A171: 162 | B171: PRESTIGE | C171: 348.8 | D171: 348.35 | E171: 340.70 | F171: 332.60 | G171: 324.95 | H171: 356.45 | I171: 364.10 | J171: 372.20 | K171: 356 | L171: 340.25 | M171: 16.42866
A172: 163 | B172: PGHH | C172: 12798.95 | D172: 12832.03 | E172: 12746.92 | F172: 12694.88 | G172: 12609.77 | H172: 12884.07 | I172: 12969.18 | J172: 13021.22 | K172: 12917.15 | L172: 12780 | M172: 0.08829
A173: 164 | B173: PNB | C173: 40.05 | D173: 40.02 | E173: 39.73 | F173: 39.42 | G173: 39.13 | H173: 40.33 | I173: 40.62 | J173: 40.93 | K173: 40.3 | L173: 39.7 | M173: 429.58166
A174: 165 | B174: RBLBANK | C174: 204.5 | D174: 205.05 | E174: 203.25 | F174: 202.00 | G174: 200.20 | H174: 206.30 | I174: 208.10 | J174: 209.35 | K174: 206.85 | L174: 203.8 | M174: 41.72379
A175: 166 | B175: RECLTD | C175: 152.9 | D175: 153.42 | E175: 152.03 | F175: 151.17 | G175: 149.78 | H175: 154.28 | I175: 155.67 | J175: 156.53 | K175: 154.8 | L175: 152.55 | M175: 27.1961
A176: 167 | B176: RELIANCE | C176: 2105.7 | D176: 2114.07 | E176: 2093.68 | F176: 2081.67 | G176: 2061.28 | H176: 2126.08 | I176: 2146.47 | J176: 2158.48 | K176: 2134.45 | L176: 2102.05 | M176: 45.85938
A177: 168 | B177: SBICARD | C177: 956.9 | D177: 951.98 | E177: 942.02 | F177: 927.13 | G177: 917.17 | H177: 966.87 | I177: 976.83 | J177: 991.72 | K177: 961.95 | L177: 937.1 | M177: 22.55593
A178: 169 | B178: SBILIFE | C178: 1050.45 | D178: 1042.65 | E178: 1031.35 | F178: 1012.25 | G178: 1000.95 | H178: 1061.75 | I178: 1073.05 | J178: 1092.15 | K178: 1053.95 | L178: 1023.55 | M178: 12.90998
A179: 170 | B179: SRF | C179: 7901.9 | D179: 7915.30 | E179: 7861.60 | F179: 7821.30 | G179: 7767.60 | H179: 7955.60 | I179: 8009.30 | J179: 8049.60 | K179: 7969 | L179: 7875 | M179: 0.62374
A180: 171 | B180: SANOFI | C180: 7992.35 | D180: 7986.78 | E180: 7953.57 | F180: 7914.78 | G180: 7881.57 | H180: 8025.57 | I180: 8058.78 | J180: 8097.57 | K180: 8020 | L180: 7948 | M180: 0.06336
A181: 172 | B181: SHREECEM | C181: 27986.4 | D181: 28023.08 | E181: 27818.52 | F181: 27650.63 | G181: 27446.07 | H181: 28190.97 | I181: 28395.53 | J181: 28563.42 | K181: 28227.65 | L181: 27855.2 | M181: 0.28958
A182: 173 | B182: SRTRANSFIN | C182: 1385.6 | D182: 1387.18 | E182: 1367.42 | F182: 1349.23 | G182: 1329.47 | H182: 1405.37 | I182: 1425.13 | J182: 1443.32 | K182: 1406.95 | L182: 1369 | M182: 10.55206
A183: 174 | B183: SIEMENS | C183: 1975.1 | D183: 1979.20 | E183: 1961.45 | F183: 1947.80 | G183: 1930.05 | H183: 1992.85 | I183: 2010.60 | J183: 2024.25 | K183: 1996.95 | L183: 1965.55 | M183: 3.6851
A184: 175 | B184: SBIN | C184: 428.9 | D184: 426.12 | E184: 422.28 | F184: 415.67 | G184: 411.83 | H184: 432.73 | I184: 436.57 | J184: 443.18 | K184: 429.95 | L184: 419.5 | M184: 177.04661
A185: 176 | B185: SAIL | C185: 126.55 | D185: 127.85 | E185: 124.70 | F185: 122.85 | G185: 119.70 | H185: 129.70 | I185: 132.85 | J185: 134.70 | K185: 131 | L185: 126 | M185: 757.91978
A186: 177 | B186: SUNPHARMA | C186: 694 | D186: 691.52 | E186: 684.08 | F186: 674.17 | G186: 666.73 | H186: 701.43 | I186: 708.87 | J186: 718.78 | K186: 698.95 | L186: 681.6 | M186: 39.56261
A187: 178 | B187: SUNTV | C187: 532.25 | D187: 533.45 | E187: 528.90 | F187: 525.55 | G187: 521.00 | H187: 536.80 | I187: 541.35 | J187: 544.70 | K187: 538 | L187: 530.1 | M187: 6.85519
A188: 179 | B188: SYNGENE | C188: 628.15 | D188: 626.87 | E188: 615.73 | F188: 603.32 | G188: 592.18 | H188: 639.28 | I188: 650.42 | J188: 662.83 | K188: 638 | L188: 614.45 | M188: 8.10873
A189: 180 | B189: TVSMOTOR | C189: 582.35 | D189: 580.53 | E189: 576.32 | F189: 570.28 | G189: 566.07 | H189: 586.57 | I189: 590.78 | J189: 596.82 | K189: 584.75 | L189: 574.5 | M189: 14.47539
A190: 181 | B190: TATACHEM | C190: 755.05 | D190: 758.68 | E190: 748.37 | F190: 741.68 | G190: 731.37 | H190: 765.37 | I190: 775.68 | J190: 782.37 | K190: 769 | L190: 752 | M190: 9.756
A191: 182 | B191: TCS | C191: 3212.85 | D191: 3220.35 | E191: 3199.15 | F191: 3185.45 | G191: 3164.25 | H191: 3234.05 | I191: 3255.25 | J191: 3268.95 | K191: 3241.55 | L191: 3206.65 | M191: 17.76193
A192: 183 | B192: TATACONSUM | C192: 775.15 | D192: 772.72 | E192: 768.43 | F192: 761.72 | G192: 757.43 | H192: 779.43 | I192: 783.72 | J192: 790.43 | K192: 777 | L192: 766 | M192: 20.21122
A193: 184 | B193: TATAELXSI | C193: 4249.3 | D193: 4260.88 | E193: 4225.82 | F193: 4202.33 | G193: 4167.27 | H193: 4284.37 | I193: 4319.43 | J193: 4342.92 | K193: 4295.95 | L193: 4237.4 | M193: 1.11285
A194: 185 | B194: TATAMOTORS | C194: 295.55 | D194: 297.48 | E194: 293.07 | F194: 290.58 | G194: 286.17 | H194: 299.97 | I194: 304.38 | J194: 306.87 | K194: 301.9 | L194: 295 | M194: 334.3513
A195: 186 | B195: TATAPOWER | C195: 122.9 | D195: 123.65 | E195: 121.85 | F195: 120.80 | G195: 119.00 | H195: 124.70 | I195: 126.50 | J195: 127.55 | K195: 125.45 | L195: 122.6 | M195: 183.44408
A196: 187 | B196: TATASTEEL | C196: 1281.4 | D196: 1283.63 | E196: 1271.77 | F196: 1262.13 | G196: 1250.27 | H196: 1293.27 | I196: 1305.13 | J196: 1314.77 | K196: 1295.5 | L196: 1274 | M196: 86.41865
A197: 188 | B197: TECHM | C197: 1131 | D197: 1129.20 | E197: 1116.90 | F197: 1102.80 | G197: 1090.50 | H197: 1143.30 | I197: 1155.60 | J197: 1169.70 | K197: 1141.5 | L197: 1115.1 | M197: 28.40803
A198: 189 | B198: RAMCOCEM | C198: 1094.7 | D198: 1100.40 | E198: 1085.55 | F198: 1076.40 | G198: 1061.55 | H198: 1109.55 | I198: 1124.40 | J198: 1133.55 | K198: 1115.25 | L198: 1091.25 | M198: 2.47356
A199: 190 | B199: TITAN | C199: 1700.95 | D199: 1707.97 | E199: 1689.98 | F199: 1679.02 | G199: 1661.03 | H199: 1718.93 | I199: 1736.92 | J199: 1747.88 | K199: 1725.95 | L199: 1697 | M199: 10.53239
A200: 191 | B200: TORNTPHARM | C200: 3043.2 | D200: 3036.05 | E200: 3003.10 | F200: 2963.00 | G200: 2930.05 | H200: 3076.15 | I200: 3109.10 | J200: 3149.20 | K200: 3069 | L200: 2995.95 | M200: 2.28574
A201: 192 | B201: TORNTPOWER | C201: 473.45 | D201: 472.50 | E201: 469.45 | F201: 465.45 | G201: 462.40 | H201: 476.50 | I201: 479.55 | J201: 483.55 | K201: 475.55 | L201: 468.5 | M201: 3.76596
A202: 193 | B202: TRENT | C202: 891.15 | D202: 900.65 | E202: 878.35 | F202: 865.55 | G202: 843.25 | H202: 913.45 | I202: 935.75 | J202: 948.55 | K202: 922.95 | L202: 887.85 | M202: 6.14666
A203: 194 | B203: UPL | C203: 819.7 | D203: 821.10 | E203: 814.60 | F203: 809.50 | G203: 803.00 | H203: 826.20 | I203: 832.70 | J203: 837.80 | K203: 827.6 | L203: 816 | M203: 22.12963
A204: 195 | B204: ULTRACEMCO | C204: 7490.3 | D204: 7533.08 | E204: 7427.22 | F204: 7364.13 | G204: 7258.27 | H204: 7596.17 | I204: 7702.03 | J204: 7765.12 | K204: 7638.95 | L204: 7470 | M204: 8.13619
A205: 196 | B205: UNIONBANK | C205: 36.55 | D205: 36.30 | E205: 36.00 | F205: 35.45 | G205: 35.15 | H205: 36.85 | I205: 37.15 | J205: 37.70 | K205: 36.6 | L205: 35.75 | M205: 84.08854
... 29 more rows

Sheet MidCap Intra
L5: Back To Main Page
A6: FOR INTRA DAY TRADING | K6: =Main!B10 -> 2021-07-26
A9: Sr.no | B9: Scrip | C9: CLOSE RATE | D9: Pivot Point | E9: Supports | H9: Resistances
E10: S1 | F10: S2 | G10: S3 | H10: R1 | I10: R2 | J10: R3 | K10: HIGH | L10: LOW | M10: Total Trade Quanity in Lakhs
A11: 1 | B11: 3MINDIA | C11: 24216.95 | D11: 24172.32 | E11: 24044.63 | F11: 23872.32 | G11: 23744.63 | H11: 24344.63 | I11: 24472.32 | J11: 24644.63 | K11: 24300 | L11: 24000 | M11: 0.02311
A12: 2 | B12: ABB | C12: 1695.8 | D12: 1701.27 | E12: 1685.63 | F12: 1675.47 | G12: 1659.83 | H12: 1711.43 | I12: 1727.07 | J12: 1737.23 | K12: 1716.9 | L12: 1691.1 | M12: 0.42756
A13: 3 | B13: POWERINDIA | C13: 1871.4 | D13: 1896.13 | E13: 1837.27 | F13: 1803.13 | G13: 1744.27 | H13: 1930.27 | I13: 1989.13 | J13: 2023.27 | K13: 1955 | L13: 1862 | M13: 0.27905
A14: 4 | B14: ACC | C14: 2337.55 | D14: 2335.02 | E14: 2295.03 | F14: 2252.52 | G14: 2212.53 | H14: 2377.53 | I14: 2417.52 | J14: 2460.03 | K14: 2375 | L14: 2292.5 | M14: 16.649
A15: 5 | B15: AIAENG | C15: 2023.55 | D15: 2028.67 | E15: 2009.88 | F15: 1996.22 | G15: 1977.43 | H15: 2042.33 | I15: 2061.12 | J15: 2074.78 | K15: 2047.45 | L15: 2015 | M15: 0.0617
A16: 6 | B16: APLAPOLLO | C16: 1622.5 | D16: 1629.83 | E16: 1594.67 | F16: 1566.83 | G16: 1531.67 | H16: 1657.67 | I16: 1692.83 | J16: 1720.67 | K16: 1665 | L16: 1602 | M16: 1.73105
A17: 7 | B17: AUBANK | C17: 1165.75 | D17: 1161.93 | E17: 1149.87 | F17: 1133.98 | G17: 1121.92 | H17: 1177.82 | I17: 1189.88 | J17: 1205.77 | K17: 1174 | L17: 1146.05 | M17: 9.78986
A18: 8 | B18: AARTIDRUGS | C18: 717.15 | D18: 719.72 | E18: 712.43 | F18: 707.72 | G18: 700.43 | H18: 724.43 | I18: 731.72 | J18: 736.43 | K18: 727 | L18: 715 | M18: 2.02607
A19: 9 | B19: AARTIIND | C19: 890.9 | D19: 889.40 | E19: 881.80 | F19: 872.70 | G19: 865.10 | H19: 898.50 | I19: 906.10 | J19: 915.20 | K19: 897 | L19: 880.3 | M19: 18.85059
A20: 10 | B20: AAVAS | C20: 2683.3 | D20: 2711.22 | E20: 2627.43 | F20: 2571.57 | G20: 2487.78 | H20: 2767.08 | I20: 2850.87 | J20: 2906.73 | K20: 2795 | L20: 2655.35 | M20: 0.42085
A21: 11 | B21: ABBOTINDIA | C21: 17815.85 | D21: 17694.80 | E21: 17539.60 | F21: 17263.35 | G21: 17108.15 | H21: 17971.05 | I21: 18126.25 | J21: 18402.50 | K21: 17850 | L21: 17418.55 | M21: 0.08469
A22: 12 | B22: ADANIENT | C22: 1401.65 | D22: 1407.57 | E22: 1380.28 | F22: 1358.92 | G22: 1331.63 | H22: 1428.93 | I22: 1456.22 | J22: 1477.58 | K22: 1434.85 | L22: 1386.2 | M22: 46.9414
A23: 13 | B23: ADANIGREEN | C23: 980.25 | D23: 974.17 | E23: 957.33 | F23: 934.42 | G23: 917.58 | H23: 997.08 | I23: 1013.92 | J23: 1036.83 | K23: 991 | L23: 951.25 | M23: 0.79379
A24: 14 | B24: ADANIPORTS | C24: 680.05 | D24: 685.75 | E24: 671.50 | F24: 662.95 | G24: 648.70 | H24: 694.30 | I24: 708.55 | J24: 717.10 | K24: 700 | L24: 677.2 | M24: 86.82097
A25: 15 | B25: ATGL | C25: 880.6 | D25: 873.17 | E25: 857.33 | F25: 834.07 | G25: 818.23 | H25: 896.43 | I25: 912.27 | J25: 935.53 | K25: 889 | L25: 849.9 | M25: 1.89493
A26: 16 | B26: ADANITRANS | C26: 963.6 | D26: 958.73 | E26: 927.47 | F26: 891.33 | G26: 860.07 | H26: 994.87 | I26: 1026.13 | J26: 1062.27 | K26: 990 | L26: 922.6 | M26: 0.82138
A27: 17 | B27: ABCAPITAL | C27: 118.65 | D27: 119.43 | E27: 117.37 | F27: 116.08 | G27: 114.02 | H27: 120.72 | I27: 122.78 | J27: 124.07 | K27: 121.5 | L27: 118.15 | M27: 23.90785
A28: 18 | B28: ABFRL | C28: 218.4 | D28: 218.50 | E28: 215.20 | F28: 212.00 | G28: 208.70 | H28: 221.70 | I28: 225.00 | J28: 228.20 | K28: 221.8 | L28: 215.3 | M28: 25.1742
A29: 19 | B29: ADVENZYMES | C29: 398.85 | D29: 400.72 | E29: 396.43 | F29: 394.02 | G29: 389.73 | H29: 403.13 | I29: 407.42 | J29: 409.83 | K29: 405 | L29: 398.3 | M29: 1.77233
A30: 20 | B30: AEGISCHEM | C30: 321.3 | D30: 321.08 | E30: 317.72 | F30: 314.13 | G30: 310.77 | H30: 324.67 | I30: 328.03 | J30: 331.62 | K30: 324.45 | L30: 317.5 | M30: 4.69243
A31: 21 | B31: AFFLE | C31: 4357.45 | D31: 4362.15 | E31: 4325.30 | F31: 4293.15 | G31: 4256.30 | H31: 4394.30 | I31: 4431.15 | J31: 4463.30 | K31: 4399 | L31: 4330 | M31: 0.11607
A32: 22 | B32: AJANTPHARM | C32: 2166.3 | D32: 2154.43 | E32: 2128.92 | F32: 2091.53 | G32: 2066.02 | H32: 2191.82 | I32: 2217.33 | J32: 2254.72 | K32: 2179.95 | L32: 2117.05 | M32: 0.54749
A33: 23 | B33: AKZOINDIA | C33: 2288.85 | D33: 2288.95 | E33: 2264.90 | F33: 2240.95 | G33: 2216.90 | H33: 2312.90 | I33: 2336.95 | J33: 2360.90 | K33: 2313 | L33: 2265 | M33: 0.05647
A34: 24 | B34: ALEMBICLTD | C34: 129.9 | D34: 131.38 | E34: 128.02 | F34: 126.13 | G34: 122.77 | H34: 133.27 | I34: 136.63 | J34: 138.52 | K34: 134.75 | L34: 129.5 | M34: 8.61368
A35: 25 | B35: APLLTD | C35: 946 | D35: 948.50 | E35: 937.50 | F35: 929.00 | G35: 918.00 | H35: 957.00 | I35: 968.00 | J35: 976.50 | K35: 959.5 | L35: 940 | M35: 2.91593
A36: 26 | B36: ALKEM | C36: 3394.7 | D36: 3390.22 | E36: 3348.48 | F36: 3302.27 | G36: 3260.53 | H36: 3436.43 | I36: 3478.17 | J36: 3524.38 | K36: 3431.95 | L36: 3344 | M36: 1.03885
A37: 27 | B37: ALKYLAMINE | C37: 4024.6 | D37: 4008.20 | E37: 3891.40 | F37: 3758.20 | G37: 3641.40 | H37: 4141.40 | I37: 4258.20 | J37: 4391.40 | K37: 4125 | L37: 3875 | M37: 2.74857
A38: 28 | B38: ALOKINDS | C38: 25.5 | D38: 25.78 | E38: 25.07 | F38: 24.63 | G38: 23.92 | H38: 26.22 | I38: 26.93 | J38: 27.37 | K38: 26.5 | L38: 25.35 | M38: 86.24532
A39: 29 | B39: AMARAJABAT | C39: 723.25 | D39: 723.88 | E39: 719.47 | F39: 715.68 | G39: 711.27 | H39: 727.67 | I39: 732.08 | J39: 735.87 | K39: 728.3 | L39: 720.1 | M39: 4.6338
A40: 30 | B40: AMBER | C40: 3012.1 | D40: 3010.37 | E40: 2991.73 | F40: 2971.37 | G40: 2952.73 | H40: 3030.73 | I40: 3049.37 | J40: 3069.73 | K40: 3029 | L40: 2990 | M40: 0.43315
A41: 31 | B41: AMBUJACEM | C41: 402.3 | D41: 404.10 | E41: 398.70 | F41: 395.10 | G41: 389.70 | H41: 407.70 | I41: 413.10 | J41: 416.70 | K41: 409.5 | L41: 400.5 | M41: 77.85242
A42: 32 | B42: ANGELBRKG | C42: 1305.8 | D42: 1303.25 | E42: 1258.10 | F42: 1210.40 | G42: 1165.25 | H42: 1350.95 | I42: 1396.10 | J42: 1443.80 | K42: 1348.4 | L42: 1255.55 | M42: 3.77479
A43: 33 | B43: APOLLOHOSP | C43: 3918.9 | D43: 3943.88 | E43: 3888.02 | F43: 3857.13 | G43: 3801.27 | H43: 3974.77 | I43: 4030.63 | J43: 4061.52 | K43: 3999.75 | L43: 3913 | M43: 3.35985
A44: 34 | B44: APOLLOTYRE | C44: 226.8 | D44: 226.28 | E44: 224.72 | F44: 222.63 | G44: 221.07 | H44: 228.37 | I44: 229.93 | J44: 232.02 | K44: 227.85 | L44: 224.2 | M44: 30.74785
A45: 35 | B45: ASAHIINDIA | C45: 363.35 | D45: 364.48 | E45: 360.02 | F45: 356.68 | G45: 352.22 | H45: 367.82 | I45: 372.28 | J45: 375.62 | K45: 368.95 | L45: 361.15 | M45: 0.527
A46: 36 | B46: ASHOKLEY | C46: 124.3 | D46: 124.27 | E46: 123.48 | F46: 122.67 | G46: 121.88 | H46: 125.08 | I46: 125.87 | J46: 126.68 | K46: 125.05 | L46: 123.45 | M46: 84.432
A47: 37 | B47: ASHOKA | C47: 104.4 | D47: 105.13 | E47: 103.37 | F47: 102.33 | G47: 100.57 | H47: 106.17 | I47: 107.93 | J47: 108.97 | K47: 106.9 | L47: 104.1 | M47: 9.29835
A48: 38 | B48: ASIANPAINT | C48: 3083.75 | D48: 3097.13 | E48: 3064.67 | F48: 3045.58 | G48: 3013.12 | H48: 3116.22 | I48: 3148.68 | J48: 3167.77 | K48: 3129.6 | L48: 3078.05 | M48: 8.15329
A49: 39 | B49: ASTERDM | C49: 159.8 | D49: 160.47 | E49: 158.43 | F49: 157.07 | G49: 155.03 | H49: 161.83 | I49: 163.87 | J49: 165.23 | K49: 162.5 | L49: 159.1 | M49: 3.57399
A50: 40 | B50: ASTRAZEN | C50: 3498.05 | D50: 3507.95 | E50: 3451.90 | F50: 3405.75 | G50: 3349.70 | H50: 3554.10 | I50: 3610.15 | J50: 3656.30 | K50: 3564 | L50: 3461.8 | M50: 0.21372
A51: 41 | B51: ASTRAL | C51: 2012.45 | D51: 2027.25 | E51: 1987.50 | F51: 1962.55 | G51: 1922.80 | H51: 2052.20 | I51: 2091.95 | J51: 2116.90 | K51: 2067 | L51: 2002.3 | M51: 1.73628
A52: 42 | B52: ATUL | C52: 9254.35 | D52: 9348.12 | E52: 9096.23 | F52: 8938.12 | G52: 8686.23 | H52: 9506.23 | I52: 9758.12 | J52: 9916.23 | K52: 9600 | L52: 9190 | M52: 0.65748
A53: 43 | B53: AUROPHARMA | C53: 963.7 | D53: 966.67 | E53: 957.33 | F53: 950.97 | G53: 941.63 | H53: 973.03 | I53: 982.37 | J53: 988.73 | K53: 976 | L53: 960.3 | M53: 5.5334
A54: 44 | B54: AVANTIFEED | C54: 627.8 | D54: 628.05 | E54: 616.30 | F54: 604.80 | G54: 593.05 | H54: 639.55 | I54: 651.30 | J54: 662.80 | K54: 639.8 | L54: 616.55 | M54: 4.05242
A55: 45 | B55: DMART | C55: 3413.2 | D55: 3410.42 | E55: 3395.83 | F55: 3378.47 | G55: 3363.88 | H55: 3427.78 | I55: 3442.37 | J55: 3459.73 | K55: 3425 | L55: 3393.05 | M55: 1.55192
A56: 46 | B56: AXISBANK | C56: 755.4 | D56: 753.17 | E56: 742.33 | F56: 729.27 | G56: 718.43 | H56: 766.23 | I56: 777.07 | J56: 790.13 | K56: 764 | L56: 740.1 | M56: 66.04465
A57: 47 | B57: BASF | C57: 2726.6 | D57: 2737.02 | E57: 2694.33 | F57: 2662.07 | G57: 2619.38 | H57: 2769.28 | I57: 2811.97 | J57: 2844.23 | K57: 2779.7 | L57: 2704.75 | M57: 0.23806
A58: 48 | B58: BEML | C58: 1290.8 | D58: 1287.38 | E58: 1280.67 | F58: 1270.53 | G58: 1263.82 | H58: 1297.52 | I58: 1304.23 | J58: 1314.37 | K58: 1294.1 | L58: 1277.25 | M58: 1.70883
A59: 49 | B59: BSE | C59: 1164.85 | D59: 1193.13 | E59: 1130.77 | F59: 1096.68 | G59: 1034.32 | H59: 1227.22 | I59: 1289.58 | J59: 1323.67 | K59: 1255.5 | L59: 1159.05 | M59: 17.61607
A60: 50 | B60: BAJAJ-AUTO | C60: 3841.9 | D60: 3863.98 | E60: 3802.97 | F60: 3764.03 | G60: 3703.02 | H60: 3902.92 | I60: 3963.93 | J60: 4002.87 | K60: 3925 | L60: 3825.05 | M60: 7.09478
A61: 51 | B61: BAJAJCON | C61: 291 | D61: 289.27 | E61: 285.18 | F61: 279.37 | G61: 275.28 | H61: 295.08 | I61: 299.17 | J61: 304.98 | K61: 293.35 | L61: 283.45 | M61: 8.5278
A62: 52 | B62: BAJAJELEC | C62: 1121.8 | D62: 1107.60 | E62: 1085.20 | F62: 1048.60 | G62: 1026.20 | H62: 1144.20 | I62: 1166.60 | J62: 1203.20 | K62: 1130 | L62: 1071 | M62: 7.15573
A63: 53 | B63: BAJFINANCE | C63: 6180.9 | D63: 6181.97 | E63: 6138.93 | F63: 6096.97 | G63: 6053.93 | H63: 6223.93 | I63: 6266.97 | J63: 6308.93 | K63: 6225 | L63: 6140 | M63: 9.53739
A64: 54 | B64: BAJAJFINSV | C64: 13201.2 | D64: 13130.07 | E64: 13016.18 | F64: 12831.17 | G64: 12717.28 | H64: 13315.08 | I64: 13428.97 | J64: 13613.98 | K64: 13243.95 | L64: 12945.05 | M64: 2.8987
A65: 55 | B65: BAJAJHLDNG | C65: 3837.55 | D65: 3862.82 | E65: 3729.78 | F65: 3622.02 | G65: 3488.98 | H65: 3970.58 | I65: 4103.62 | J65: 4211.38 | K65: 3995.85 | L65: 3755.05 | M65: 0.89977
A66: 56 | B66: BALAMINES | C66: 3045.9 | D66: 3042.02 | E66: 2964.03 | F66: 2882.17 | G66: 2804.18 | H66: 3123.88 | I66: 3201.87 | J66: 3283.73 | K66: 3120 | L66: 2960.15 | M66: 1.96346
A67: 57 | B67: BALKRISIND | C67: 2333.05 | D67: 2337.08 | E67: 2314.17 | F67: 2295.28 | G67: 2272.37 | H67: 2355.97 | I67: 2378.88 | J67: 2397.77 | K67: 2360 | L67: 2318.2 | M67: 3.97458
A68: 58 | B68: BALMLAWRIE | C68: 137.05 | D68: 137.45 | E68: 136.30 | F68: 135.55 | G68: 134.40 | H68: 138.20 | I68: 139.35 | J68: 140.10 | K68: 138.6 | L68: 136.7 | M68: 1.85895
A69: 59 | B69: BALRAMCHIN | C69: 343.15 | D69: 341.82 | E69: 337.93 | F69: 332.72 | G69: 328.83 | H69: 347.03 | I69: 350.92 | J69: 356.13 | K69: 345.7 | L69: 336.6 | M69: 5.38533
A70: 60 | B70: BANDHANBNK | C70: 305.05 | D70: 305.90 | E70: 302.35 | F70: 299.65 | G70: 296.10 | H70: 308.60 | I70: 312.15 | J70: 314.85 | K70: 309.45 | L70: 303.2 | M70: 38.36967
A71: 61 | B71: BANKBARODA | C71: 79.85 | D71: 79.82 | E71: 79.03 | F71: 78.22 | G71: 77.43 | H71: 80.63 | I71: 81.42 | J71: 82.23 | K71: 80.6 | L71: 79 | M71: 237.17707
A72: 62 | B72: BANKINDIA | C72: 72.75 | D72: 72.68 | E72: 71.62 | F72: 70.48 | G72: 69.42 | H72: 73.82 | I72: 74.88 | J72: 76.02 | K72: 73.75 | L72: 71.55 | M72: 24.40865
A73: 63 | B73: MAHABANK | C73: 23.15 | D73: 23.27 | E73: 22.88 | F73: 22.62 | G73: 22.23 | H73: 23.53 | I73: 23.92 | J73: 24.18 | K73: 23.65 | L73: 23 | M73: 71.94113
A74: 64 | B74: BATAINDIA | C74: 1598.55 | D74: 1592.63 | E74: 1577.82 | F74: 1557.08 | G74: 1542.27 | H74: 1613.37 | I74: 1628.18 | J74: 1648.92 | K74: 1607.45 | L74: 1571.9 | M74: 6.43778
A75: 65 | B75: BAYERCROP | C75: 5783.95 | D75: 5810.87 | E75: 5724.08 | F75: 5664.22 | G75: 5577.43 | H75: 5870.73 | I75: 5957.52 | J75: 6017.38 | K75: 5897.65 | L75: 5751 | M75: 0.10354
A76: 66 | B76: BERGEPAINT | C76: 854.25 | D76: 856.53 | E76: 849.07 | F76: 843.88 | G76: 836.42 | H76: 861.72 | I76: 869.18 | J76: 874.37 | K76: 864 | L76: 851.35 | M76: 6.34421
A77: 67 | B77: BDL | C77: 394.75 | D77: 398.47 | E77: 388.28 | F77: 381.82 | G77: 371.63 | H77: 404.93 | I77: 415.12 | J77: 421.58 | K77: 408.65 | L77: 392 | M77: 3.48013
A78: 68 | B78: BEL | C78: 182.65 | D78: 183.15 | E78: 181.10 | F78: 179.55 | G78: 177.50 | H78: 184.70 | I78: 186.75 | J78: 188.30 | K78: 185.2 | L78: 181.6 | M78: 42.56737
A79: 69 | B79: BHARATFORG | C79: 788.9 | D79: 794.68 | E79: 780.62 | F79: 772.33 | G79: 758.27 | H79: 802.97 | I79: 817.03 | J79: 825.32 | K79: 808.75 | L79: 786.4 | M79: 5.55945
A80: 70 | B80: BHEL | C80: 63.95 | D80: 64.23 | E80: 63.37 | F80: 62.78 | G80: 61.92 | H80: 64.82 | I80: 65.68 | J80: 66.27 | K80: 65.1 | L80: 63.65 | M80: 218.431
A81: 71 | B81: BPCL | C81: 461.35 | D81: 462.15 | E81: 458.50 | F81: 455.65 | G81: 452.00 | H81: 465.00 | I81: 468.65 | J81: 471.50 | K81: 465.8 | L81: 459.3 | M81: 34.77404
A82: 72 | B82: BHARATRAS | C82: 13412 | D82: 13434.63 | E82: 13277.37 | F82: 13142.73 | G82: 12985.47 | H82: 13569.27 | I82: 13726.53 | J82: 13861.17 | K82: 13591.9 | L82: 13300 | M82: 0.01339
A83: 73 | B83: BHARTIARTL | C83: 548.3 | D83: 547.23 | E83: 533.82 | F83: 519.33 | G83: 505.92 | H83: 561.72 | I83: 575.13 | J83: 589.62 | K83: 560.65 | L83: 532.75 | M83: 325.88978
A84: 74 | B84: BIOCON | C84: 398.15 | D84: 395.67 | E84: 389.78 | F84: 381.42 | G84: 375.53 | H84: 404.03 | I84: 409.92 | J84: 418.28 | K84: 401.55 | L84: 387.3 | M84: 58.03946
A85: 75 | B85: BIRLACORPN | C85: 1474.25 | D85: 1501.08 | E85: 1417.17 | F85: 1360.08 | G85: 1276.17 | H85: 1558.17 | I85: 1642.08 | J85: 1699.17 | K85: 1585 | L85: 1444 | M85: 2.79016
A86: 76 | B86: BSOFT | C86: 398 | D86: 404.43 | E86: 390.57 | F86: 383.13 | G86: 369.27 | H86: 411.87 | I86: 425.73 | J86: 433.17 | K86: 418.3 | L86: 397 | M86: 41.19395
A87: 77 | B87: BLISSGVS | C87: 110.95 | D87: 111.48 | E87: 110.02 | F87: 109.08 | G87: 107.62 | H87: 112.42 | I87: 113.88 | J87: 114.82 | K87: 112.95 | L87: 110.55 | M87: 2.09089
A88: 78 | B88: BLUEDART | C88: 5692.45 | D88: 5715.18 | E88: 5647.27 | F88: 5602.08 | G88: 5534.17 | H88: 5760.37 | I88: 5828.28 | J88: 5873.47 | K88: 5783.1 | L88: 5670 | M88: 0.16564
A89: 79 | B89: BLUESTARCO | C89: 850.65 | D89: 850.73 | E89: 843.57 | F89: 836.48 | G89: 829.32 | H89: 857.82 | I89: 864.98 | J89: 872.07 | K89: 857.9 | L89: 843.65 | M89: 0.44318
A90: 80 | B90: BBTC | C90: 1272.85 | D90: 1278.75 | E90: 1260.50 | F90: 1248.15 | G90: 1229.90 | H90: 1291.10 | I90: 1309.35 | J90: 1321.70 | K90: 1297 | L90: 1266.4 | M90: 0.65224
A91: 81 | B91: BOSCHLTD | C91: 15055.35 | D91: 15095.83 | E91: 14999.52 | F91: 14943.68 | G91: 14847.37 | H91: 15151.67 | I91: 15247.98 | J91: 15303.82 | K91: 15192.15 | L91: 15040 | M91: 0.16832
A92: 82 | B92: BRIGADE | C92: 315.05 | D92: 317.35 | E92: 310.70 | F92: 306.35 | G92: 299.70 | H92: 321.70 | I92: 328.35 | J92: 332.70 | K92: 324 | L92: 313 | M92: 4.63757
A93: 83 | B93: BRITANNIA | C93: 3439.8 | D93: 3439.20 | E93: 3425.90 | F93: 3412.00 | G93: 3398.70 | H93: 3453.10 | I93: 3466.40 | J93: 3480.30 | K93: 3452.5 | L93: 3425.3 | M93: 2.47778
A94: 84 | B94: BURGERKING | C94: 178.3 | D94: 180.17 | E94: 175.33 | F94: 172.37 | G94: 167.53 | H94: 183.13 | I94: 187.97 | J94: 190.93 | K94: 185 | L94: 177.2 | M94: 42.36854
A95: 85 | B95: CCL | C95: 421.35 | D95: 416.78 | E95: 403.67 | F95: 385.98 | G95: 372.87 | H95: 434.47 | I95: 447.58 | J95: 465.27 | K95: 429.9 | L95: 399.1 | M95: 19.78184
A96: 86 | B96: CESC | C96: 818.35 | D96: 821.98 | E96: 810.37 | F96: 802.38 | G96: 790.77 | H96: 829.97 | I96: 841.58 | J96: 849.57 | K96: 833.6 | L96: 814 | M96: 1.62299
A97: 87 | B97: CRISIL | C97: 3053.55 | D97: 3087.52 | E97: 2948.03 | F97: 2842.52 | G97: 2703.03 | H97: 3193.03 | I97: 3332.52 | J97: 3438.03 | K97: 3227 | L97: 2982 | M97: 2.45698
A98: 88 | B98: CSBBANK | C98: 351.2 | D98: 342.90 | E98: 328.80 | F98: 306.40 | G98: 292.30 | H98: 365.30 | I98: 379.40 | J98: 401.80 | K98: 357 | L98: 320.5 | M98: 18.17733
A99: 89 | B99: CADILAHC | C99: 615.25 | D99: 616.58 | E99: 610.67 | F99: 606.08 | G99: 600.17 | H99: 621.17 | I99: 627.08 | J99: 631.67 | K99: 622.5 | L99: 612 | M99: 21.75134
A100: 90 | B100: CANFINHOME | C100: 532.3 | D100: 538.15 | E100: 523.30 | F100: 514.30 | G100: 499.45 | H100: 547.15 | I100: 562.00 | J100: 571.00 | K100: 553 | L100: 529.15 | M100: 5.59213
A101: 91 | B101: CANBK | C101: 146.05 | D101: 145.40 | E101: 144.50 | F101: 142.95 | G101: 142.05 | H101: 146.95 | I101: 147.85 | J101: 149.40 | K101: 146.3 | L101: 143.85 | M101: 55.88143
A102: 92 | B102: CAPLIPOINT | C102: 791.95 | D102: 778.22 | E102: 756.43 | F102: 720.92 | G102: 699.13 | H102: 813.73 | I102: 835.52 | J102: 871.03 | K102: 800 | L102: 742.7 | M102: 14.0374
A103: 93 | B103: CGCL | C103: 524.35 | D103: 525.98 | E103: 520.52 | F103: 516.68 | G103: 511.22 | H103: 529.82 | I103: 535.28 | J103: 539.12 | K103: 531.45 | L103: 522.15 | M103: 0.36822
A104: 94 | B104: CARBORUNIV | C104: 666.3 | D104: 658.32 | E104: 644.33 | F104: 622.37 | G104: 608.38 | H104: 680.28 | I104: 694.27 | J104: 716.23 | K104: 672.3 | L104: 636.35 | M104: 3.56372
A105: 95 | B105: CASTROLIND | C105: 143.75 | D105: 143.70 | E105: 142.85 | F105: 141.95 | G105: 141.10 | H105: 144.60 | I105: 145.45 | J105: 146.35 | K105: 144.55 | L105: 142.8 | M105: 3.99026
A106: 96 | B106: CEATLTD | C106: 1372 | D106: 1375.00 | E106: 1365.00 | F106: 1358.00 | G106: 1348.00 | H106: 1382.00 | I106: 1392.00 | J106: 1399.00 | K106: 1385 | L106: 1368 | M106: 1.52526
A107: 97 | B107: CENTRALBK | C107: 25.45 | D107: 25.28 | E107: 24.37 | F107: 23.28 | G107: 22.37 | H107: 26.37 | I107: 27.28 | J107: 28.37 | K107: 26.2 | L107: 24.2 | M107: 203.17755
A108: 98 | B108: CDSL | C108: 1355.35 | D108: 1369.60 | E108: 1341.10 | F108: 1326.85 | G108: 1298.35 | H108: 1383.85 | I108: 1412.35 | J108: 1426.60 | K108: 1398.1 | L108: 1355.35 | M108: 2.43278
A109: 99 | B109: CENTURYPLY | C109: 425.8 | D109: 427.60 | E109: 421.20 | F109: 416.60 | G109: 410.20 | H109: 432.20 | I109: 438.60 | J109: 443.20 | K109: 434 | L109: 423 | M109: 1.24783
A110: 100 | B110: CENTURYTEX | C110: 703.8 | D110: 708.93 | E110: 694.87 | F110: 685.93 | G110: 671.87 | H110: 717.87 | I110: 731.93 | J110: 740.87 | K110: 723 | L110: 700 | M110: 4.89311
A111: 101 | B111: CERA | C111: 4370.2 | D111: 4394.68 | E111: 4293.32 | F111: 4216.43 | G111: 4115.07 | H111: 4471.57 | I111: 4572.93 | J111: 4649.82 | K111: 4496.05 | L111: 4317.8 | M111: 0.04419
A112: 102 | B112: CHALET | C112: 171 | D112: 172.35 | E112: 168.85 | F112: 166.70 | G112: 163.20 | H112: 174.50 | I112: 178.00 | J112: 180.15 | K112: 175.85 | L112: 170.2 | M112: 2.39498
A113: 103 | B113: CHAMBLFERT | C113: 304 | D113: 304.42 | E113: 302.03 | F113: 300.07 | G113: 297.68 | H113: 306.38 | I113: 308.77 | J113: 310.73 | K113: 306.8 | L113: 302.45 | M113: 4.62934
A114: 104 | B114: CHOLAHLDNG | C114: 664.5 | D114: 670.20 | E114: 655.40 | F114: 646.30 | G114: 631.50 | H114: 679.30 | I114: 694.10 | J114: 703.20 | K114: 685 | L114: 661.1 | M114: 0.87258
A115: 105 | B115: CHOLAFIN | C115: 499.05 | D115: 498.67 | E115: 491.48 | F115: 483.92 | G115: 476.73 | H115: 506.23 | I115: 513.42 | J115: 520.98 | K115: 505.85 | L115: 491.1 | M115: 26.14875
A116: 106 | B116: CIPLA | C116: 948 | D116: 950.88 | E116: 944.07 | F116: 940.13 | G116: 933.32 | H116: 954.82 | I116: 961.63 | J116: 965.57 | K116: 957.7 | L116: 946.95 | M116: 10.56183
A117: 107 | B117: CUB | C117: 155.6 | D117: 155.58 | E117: 154.17 | F117: 152.73 | G117: 151.32 | H117: 157.02 | I117: 158.43 | J117: 159.87 | K117: 157 | L117: 154.15 | M117: 9.5222
A118: 108 | B118: COALINDIA | C118: 144.1 | D118: 144.15 | E118: 143.30 | F118: 142.50 | G118: 141.65 | H118: 144.95 | I118: 145.80 | J118: 146.60 | K118: 145 | L118: 143.35 | M118: 34.19739
A119: 109 | B119: COCHINSHIP | C119: 373.5 | D119: 374.35 | E119: 369.70 | F119: 365.90 | G119: 361.25 | H119: 378.15 | I119: 382.80 | J119: 386.60 | K119: 379 | L119: 370.55 | M119: 2.43335
A120: 110 | B120: COFORGE | C120: 4688.45 | D120: 4709.02 | E120: 4650.73 | F120: 4613.02 | G120: 4554.73 | H120: 4746.73 | I120: 4805.02 | J120: 4842.73 | K120: 4767.3 | L120: 4671.3 | M120: 3.70756
A121: 111 | B121: COLPAL | C121: 1795.05 | D121: 1795.65 | E121: 1779.40 | F121: 1763.75 | G121: 1747.50 | H121: 1811.30 | I121: 1827.55 | J121: 1843.20 | K121: 1811.9 | L121: 1780 | M121: 5.78168
A122: 112 | B122: CAMS | C122: 3310.3 | D122: 3328.58 | E122: 3258.97 | F122: 3207.63 | G122: 3138.02 | H122: 3379.92 | I122: 3449.53 | J122: 3500.87 | K122: 3398.2 | L122: 3277.25 | M122: 1.64076
A123: 113 | B123: CONCOR | C123: 663.5 | D123: 672.20 | E123: 653.60 | F123: 643.70 | G123: 625.10 | H123: 682.10 | I123: 700.70 | J123: 710.60 | K123: 690.8 | L123: 662.3 | M123: 8.2688
A124: 114 | B124: COROMANDEL | C124: 868.95 | D124: 872.72 | E124: 863.23 | F124: 857.52 | G124: 848.03 | H124: 878.43 | I124: 887.92 | J124: 893.63 | K124: 882.2 | L124: 867 | M124: 3.54258
A125: 115 | B125: CREDITACC | C125: 703.35 | D125: 704.40 | E125: 699.40 | F125: 695.45 | G125: 690.45 | H125: 708.35 | I125: 713.35 | J125: 717.30 | K125: 709.4 | L125: 700.45 | M125: 0.27795
A126: 116 | B126: CROMPTON | C126: 458.9 | D126: 465.92 | E126: 446.93 | F126: 434.97 | G126: 415.98 | H126: 477.88 | I126: 496.87 | J126: 508.83 | K126: 484.9 | L126: 453.95 | M126: 45.13804
A127: 117 | B127: CUMMINSIND | C127: 858.3 | D127: 860.95 | E127: 850.90 | F127: 843.50 | G127: 833.45 | H127: 868.35 | I127: 878.40 | J127: 885.80 | K127: 871 | L127: 853.55 | M127: 3.98781
A128: 118 | B128: CYIENT | C128: 1002.9 | D128: 1022.75 | E128: 978.20 | F128: 953.50 | G128: 908.95 | H128: 1047.45 | I128: 1092.00 | J128: 1116.70 | K128: 1067.3 | L128: 998.05 | M128: 4.13942
A129: 119 | B129: DCBBANK | C129: 104.05 | D129: 103.95 | E129: 103.10 | F129: 102.15 | G129: 101.30 | H129: 104.90 | I129: 105.75 | J129: 106.70 | K129: 104.8 | L129: 103 | M129: 7.50711
A130: 120 | B130: DCMSHRIRAM | C130: 953.35 | D130: 958.30 | E130: 931.60 | F130: 909.85 | G130: 883.15 | H130: 980.05 | I130: 1006.75 | J130: 1028.50 | K130: 985 | L130: 936.55 | M130: 1.9281
A131: 121 | B131: DLF | C131: 334.15 | D131: 331.55 | E131: 327.60 | F131: 321.05 | G131: 317.10 | H131: 338.10 | I131: 342.05 | J131: 348.60 | K131: 335.5 | L131: 325 | M131: 117.05345
A132: 122 | B132: DABUR | C132: 590.15 | D132: 589.97 | E132: 585.83 | F132: 581.52 | G132: 577.38 | H132: 594.28 | I132: 598.42 | J132: 602.73 | K132: 594.1 | L132: 585.65 | M132: 6.66936
A133: 123 | B133: DALBHARAT | C133: 2291.45 | D133: 2275.65 | E133: 2251.30 | F133: 2211.15 | G133: 2186.80 | H133: 2315.80 | I133: 2340.15 | J133: 2380.30 | K133: 2300 | L133: 2235.5 | M133: 2.01366
A134: 124 | B134: DEEPAKNTR | C134: 1933.4 | D134: 1937.75 | E134: 1920.65 | F134: 1907.90 | G134: 1890.80 | H134: 1950.50 | I134: 1967.60 | J134: 1980.35 | K134: 1954.85 | L134: 1925 | M134: 6.08475
A135: 125 | B135: DELTACORP | C135: 179.45 | D135: 179.07 | E135: 175.63 | F135: 171.82 | G135: 168.38 | H135: 182.88 | I135: 186.32 | J135: 190.13 | K135: 182.5 | L135: 175.25 | M135: 20.24493
A136: 126 | B136: DHANI | C136: 210.4 | D136: 207.20 | E136: 202.20 | F136: 194.00 | G136: 189.00 | H136: 215.40 | I136: 220.40 | J136: 228.60 | K136: 212.2 | L136: 199 | M136: 21.75073
A137: 127 | B137: DHANUKA | C137: 1004.95 | D137: 1008.90 | E137: 982.80 | F137: 960.65 | G137: 934.55 | H137: 1031.05 | I137: 1057.15 | J137: 1079.30 | K137: 1035 | L137: 986.75 | M137: 1.04882
A138: 128 | B138: DBL | C138: 565.2 | D138: 564.25 | E138: 556.60 | F138: 548.00 | G138: 540.35 | H138: 572.85 | I138: 580.50 | J138: 589.10 | K138: 571.9 | L138: 555.65 | M138: 1.94788
A139: 129 | B139: DISHTV | C139: 13.85 | D139: 13.93 | E139: 13.72 | F139: 13.58 | G139: 13.37 | H139: 14.07 | I139: 14.28 | J139: 14.42 | K139: 14.15 | L139: 13.8 | M139: 42.58384
A140: 130 | B140: DCAL | C140: 208.6 | D140: 211.15 | E140: 205.00 | F140: 201.40 | G140: 195.25 | H140: 214.75 | I140: 220.90 | J140: 224.50 | K140: 217.3 | L140: 207.55 | M140: 8.05804
A141: 131 | B141: DIVISLAB | C141: 4824.75 | D141: 4825.48 | E141: 4800.97 | F141: 4777.18 | G141: 4752.67 | H141: 4849.27 | I141: 4873.78 | J141: 4897.57 | K141: 4850 | L141: 4801.7 | M141: 1.77874
A142: 132 | B142: DIXON | C142: 4550.4 | D142: 4567.43 | E142: 4515.87 | F142: 4481.33 | G142: 4429.77 | H142: 4601.97 | I142: 4653.53 | J142: 4688.07 | K142: 4619 | L142: 4532.9 | M142: 1.00993
A143: 133 | B143: LALPATHLAB | C143: 3441.85 | D143: 3419.57 | E143: 3355.23 | F143: 3268.62 | G143: 3204.28 | H143: 3506.18 | I143: 3570.52 | J143: 3657.13 | K143: 3483.9 | L143: 3332.95 | M143: 4.1317
A144: 134 | B144: DRREDDY | C144: 5422.15 | D144: 5404.75 | E144: 5377.50 | F144: 5332.85 | G144: 5305.60 | H144: 5449.40 | I144: 5476.65 | J144: 5521.30 | K144: 5432 | L144: 5360.1 | M144: 3.06761
A145: 135 | B145: EIDPARRY | C145: 412.3 | D145: 413.70 | E145: 410.10 | F145: 407.90 | G145: 404.30 | H145: 415.90 | I145: 419.50 | J145: 421.70 | K145: 417.3 | L145: 411.5 | M145: 1.45922
A146: 136 | B146: EIHOTEL | C146: 112.85 | D146: 111.58 | E146: 109.17 | F146: 105.48 | G146: 103.07 | H146: 115.27 | I146: 117.68 | J146: 121.37 | K146: 114 | L146: 107.9 | M146: 5.29509
A147: 137 | B147: EPL | C147: 244.9 | D147: 247.77 | E147: 241.53 | F147: 238.17 | G147: 231.93 | H147: 251.13 | I147: 257.37 | J147: 260.73 | K147: 254 | L147: 244.4 | M147: 4.42732
A148: 138 | B148: EDELWEISS | C148: 90.65 | D148: 91.20 | E148: 89.55 | F148: 88.45 | G148: 86.80 | H148: 92.30 | I148: 93.95 | J148: 95.05 | K148: 92.85 | L148: 90.1 | M148: 19.13881
A149: 139 | B149: EICHERMOT | C149: 2549.65 | D149: 2556.55 | E149: 2535.10 | F149: 2520.55 | G149: 2499.10 | H149: 2571.10 | I149: 2592.55 | J149: 2607.10 | K149: 2578 | L149: 2542 | M149: 3.79798
A150: 140 | B150: ELGIEQUIP | C150: 205.6 | D150: 206.45 | E150: 203.25 | F150: 200.90 | G150: 197.70 | H150: 208.80 | I150: 212.00 | J150: 214.35 | K150: 209.65 | L150: 204.1 | M150: 1.03402
A151: 141 | B151: EMAMILTD | C151: 549.95 | D151: 552.50 | E151: 545.55 | F151: 541.15 | G151: 534.20 | H151: 556.90 | I151: 563.85 | J151: 568.25 | K151: 559.45 | L151: 548.1 | M151: 3.8973
A152: 142 | B152: ENDURANCE | C152: 1657.5 | D152: 1649.32 | E152: 1635.88 | F152: 1614.27 | G152: 1600.83 | H152: 1670.93 | I152: 1684.37 | J152: 1705.98 | K152: 1662.75 | L152: 1627.7 | M152: 1.33921
A153: 143 | B153: ENGINERSIN | C153: 74.85 | D153: 75.32 | E153: 74.23 | F153: 73.62 | G153: 72.53 | H153: 75.93 | I153: 77.02 | J153: 77.63 | K153: 76.4 | L153: 74.7 | M153: 28.5563
A154: 144 | B154: EQUITAS | C154: 124.3 | D154: 124.78 | E154: 121.72 | F154: 119.13 | G154: 116.07 | H154: 127.37 | I154: 130.43 | J154: 133.02 | K154: 127.85 | L154: 122.2 | M154: 35.65834
A155: 145 | B155: ERIS | C155: 762.75 | D155: 762.40 | E155: 756.80 | F155: 750.85 | G155: 745.25 | H155: 768.35 | I155: 773.95 | J155: 779.90 | K155: 768 | L155: 756.45 | M155: 0.53332
A156: 146 | B156: ESCORTS | C156: 1160.65 | D156: 1161.55 | E156: 1154.10 | F156: 1147.55 | G156: 1140.10 | H156: 1168.10 | I156: 1175.55 | J156: 1182.10 | K156: 1169 | L156: 1155 | M156: 4.50466
A157: 147 | B157: EXIDEIND | C157: 178.7 | D157: 179.12 | E157: 177.88 | F157: 177.07 | G157: 175.83 | H157: 179.93 | I157: 181.17 | J157: 181.98 | K157: 180.35 | L157: 178.3 | M157: 13.43616
A158: 148 | B158: FDC | C158: 379.35 | D158: 382.02 | E158: 375.33 | F158: 371.32 | G158: 364.63 | H158: 386.03 | I158: 392.72 | J158: 396.73 | K158: 388.7 | L158: 378 | M158: 2.32566
A159: 149 | B159: FEDERALBNK | C159: 85.4 | D159: 85.37 | E159: 83.73 | F159: 82.07 | G159: 80.43 | H159: 87.03 | I159: 88.67 | J159: 90.33 | K159: 87 | L159: 83.7 | M159: 521.35646
A160: 150 | B160: FINEORG | C160: 2970.05 | D160: 2960.02 | E160: 2915.03 | F160: 2860.02 | G160: 2815.03 | H160: 3015.03 | I160: 3060.02 | J160: 3115.03 | K160: 3005 | L160: 2905 | M160: 0.21112
A161: 151 | B161: FINCABLES | C161: 526.45 | D161: 528.98 | E161: 512.97 | F161: 499.48 | G161: 483.47 | H161: 542.47 | I161: 558.48 | J161: 571.97 | K161: 545 | L161: 515.5 | M161: 4.8209
A162: 152 | B162: FINPIPE | C162: 176.2 | D162: 176.48 | E162: 174.12 | F162: 172.03 | G162: 169.67 | H162: 178.57 | I162: 180.93 | J162: 183.02 | K162: 178.85 | L162: 174.4 | M162: 10.62643
A163: 153 | B163: FSL | C163: 220.85 | D163: 222.95 | E163: 217.10 | F163: 213.35 | G163: 207.50 | H163: 226.70 | I163: 232.55 | J163: 236.30 | K163: 228.8 | L163: 219.2 | M163: 45.18901
A164: 154 | B164: FORTIS | C164: 241.9 | D164: 240.98 | E164: 238.17 | F164: 234.43 | G164: 231.62 | H164: 244.72 | I164: 247.53 | J164: 251.27 | K164: 243.8 | L164: 237.25 | M164: 18.97182
A165: 155 | B165: FCONSUMER | C165: 8.85 | D165: 8.95 | E165: 8.70 | F165: 8.55 | G165: 8.30 | H165: 9.10 | I165: 9.35 | J165: 9.50 | K165: 9.2 | L165: 8.8 | M165: 62.39968
A166: 156 | B166: FRETAIL | C166: 63.05 | D166: 63.68 | E166: 61.87 | F166: 60.68 | G166: 58.87 | H166: 64.87 | I166: 66.68 | J166: 67.87 | K166: 65.5 | L166: 62.5 | M166: 21.7381
A167: 157 | B167: GAIL | C167: 142.4 | D167: 143.13 | E167: 141.27 | F167: 140.13 | G167: 138.27 | H167: 144.27 | I167: 146.13 | J167: 147.27 | K167: 145 | L167: 142 | M167: 73.67072
A168: 158 | B168: GEPIL | C168: 325.6 | D168: 326.03 | E168: 322.67 | F168: 319.73 | G168: 316.37 | H168: 328.97 | I168: 332.33 | J168: 335.27 | K168: 329.4 | L168: 323.1 | M168: 0.65566
A169: 159 | B169: GMMPFAUDLR | C169: 4572.35 | D169: 4586.42 | E169: 4547.58 | F169: 4522.82 | G169: 4483.98 | H169: 4611.18 | I169: 4650.02 | J169: 4674.78 | K169: 4625.25 | L169: 4561.65 | M169: 0.13305
A170: 160 | B170: GMRINFRA | C170: 29 | D170: 29.08 | E170: 28.57 | F170: 28.13 | G170: 27.62 | H170: 29.52 | I170: 30.03 | J170: 30.47 | K170: 29.6 | L170: 28.65 | M170: 155.11883
A171: 161 | B171: GALAXYSURF | C171: 3060.9 | D171: 3086.63 | E171: 3034.27 | F171: 3007.63 | G171: 2955.27 | H171: 3113.27 | I171: 3165.63 | J171: 3192.27 | K171: 3139 | L171: 3060 | M171: 0.21537
A172: 162 | B172: GRSE | C172: 203.05 | D172: 203.50 | E172: 201.55 | F172: 200.05 | G172: 198.10 | H172: 205.00 | I172: 206.95 | J172: 208.45 | K172: 205.45 | L172: 202 | M172: 1.36557
A173: 163 | B173: GARFIBRES | C173: 3501.25 | D173: 3475.32 | E173: 3420.63 | F173: 3340.02 | G173: 3285.33 | H173: 3555.93 | I173: 3610.62 | J173: 3691.23 | K173: 3530 | L173: 3394.7 | M173: 0.27535
A174: 164 | B174: GICRE | C174: 173.75 | D174: 174.55 | E174: 172.00 | F174: 170.25 | G174: 167.70 | H174: 176.30 | I174: 178.85 | J174: 180.60 | K174: 177.1 | L174: 172.8 | M174: 4.15096
A175: 165 | B175: GILLETTE | C175: 6081.05 | D175: 6109.27 | E175: 6002.88 | F175: 5924.72 | G175: 5818.33 | H175: 6187.43 | I175: 6293.82 | J175: 6371.98 | K175: 6215.65 | L175: 6031.1 | M175: 0.09635
A176: 166 | B176: GLAND | C176: 4016.85 | D176: 4043.58 | E176: 3915.17 | F176: 3813.48 | G176: 3685.07 | H176: 4145.27 | I176: 4273.68 | J176: 4375.37 | K176: 4172 | L176: 3941.9 | M176: 7.27749
A177: 167 | B177: GLAXO | C177: 1681.75 | D177: 1665.25 | E177: 1643.50 | F177: 1605.25 | G177: 1583.50 | H177: 1703.50 | I177: 1725.25 | J177: 1763.50 | K177: 1687 | L177: 1627 | M177: 2.64189
A178: 168 | B178: GLENMARK | C178: 649.9 | D178: 656.48 | E178: 638.42 | F178: 626.93 | G178: 608.87 | H178: 667.97 | I178: 686.03 | J178: 697.52 | K178: 674.55 | L178: 645 | M178: 32.92401
A179: 169 | B179: GODFRYPHLP | C179: 1044 | D179: 1041.87 | E179: 1033.78 | F179: 1023.57 | G179: 1015.48 | H179: 1052.08 | I179: 1060.17 | J179: 1070.38 | K179: 1049.95 | L179: 1031.65 | M179: 0.45727
A180: 170 | B180: GODREJAGRO | C180: 649.5 | D180: 649.13 | E180: 643.47 | F180: 637.43 | G180: 631.77 | H180: 655.17 | I180: 660.83 | J180: 666.87 | K180: 654.8 | L180: 643.1 | M180: 1.55267
A181: 171 | B181: GODREJCP | C181: 980.15 | D181: 975.47 | E181: 966.93 | F181: 953.72 | G181: 945.18 | H181: 988.68 | I181: 997.22 | J181: 1010.43 | K181: 984 | L181: 962.25 | M181: 10.52281
A182: 172 | B182: GODREJIND | C182: 547.2 | D182: 546.18 | E182: 535.02 | F182: 522.83 | G182: 511.67 | H182: 558.37 | I182: 569.53 | J182: 581.72 | K182: 557.35 | L182: 534 | M182: 2.84694
A183: 173 | B183: GODREJPROP | C183: 1561.55 | D183: 1561.85 | E183: 1543.70 | F183: 1525.85 | G183: 1507.70 | H183: 1579.70 | I183: 1597.85 | J183: 1615.70 | K183: 1580 | L183: 1544 | M183: 4.83303
A184: 174 | B184: GRANULES | C184: 379.45 | D184: 381.65 | E184: 375.80 | F184: 372.15 | G184: 366.30 | H184: 385.30 | I184: 391.15 | J184: 394.80 | K184: 387.5 | L184: 378 | M184: 22.78257
A185: 175 | B185: GRAPHITE | C185: 660.9 | D185: 665.58 | E185: 650.32 | F185: 639.73 | G185: 624.47 | H185: 676.17 | I185: 691.43 | J185: 702.02 | K185: 680.85 | L185: 655 | M185: 13.43908
A186: 176 | B186: GRASIM | C186: 1549.5 | D186: 1561.20 | E186: 1533.45 | F186: 1517.40 | G186: 1489.65 | H186: 1577.25 | I186: 1605.00 | J186: 1621.05 | K186: 1588.95 | L186: 1545.15 | M186: 14.09312
A187: 177 | B187: GESHIP | C187: 362 | D187: 362.98 | E187: 360.02 | F187: 358.03 | G187: 355.07 | H187: 364.97 | I187: 367.93 | J187: 369.92 | K187: 365.95 | L187: 361 | M187: 2.12049
A188: 178 | B188: GREAVESCOT | C188: 168.95 | D188: 167.02 | E188: 163.48 | F188: 158.02 | G188: 154.48 | H188: 172.48 | I188: 176.02 | J188: 181.48 | K188: 170.55 | L188: 161.55 | M188: 40.16065
A189: 179 | B189: GRINDWELL | C189: 1267.95 | D189: 1255.63 | E189: 1233.32 | F189: 1198.68 | G189: 1176.37 | H189: 1290.27 | I189: 1312.58 | J189: 1347.22 | K189: 1277.95 | L189: 1221 | M189: 0.73643
A190: 180 | B190: GUJALKALI | C190: 466.8 | D190: 469.10 | E190: 460.85 | F190: 454.90 | G190: 446.65 | H190: 475.05 | I190: 483.30 | J190: 489.25 | K190: 477.35 | L190: 463.15 | M190: 4.80925
A191: 181 | B191: GAEL | C191: 185.2 | D191: 184.53 | E191: 182.17 | F191: 179.13 | G191: 176.77 | H191: 187.57 | I191: 189.93 | J191: 192.97 | K191: 186.9 | L191: 181.5 | M191: 3.19472
A192: 182 | B192: FLUOROCHEM | C192: 1579.5 | D192: 1590.12 | E192: 1550.38 | F192: 1521.27 | G192: 1481.53 | H192: 1619.23 | I192: 1658.97 | J192: 1688.08 | K192: 1629.85 | L192: 1561 | M192: 0.90849
A193: 183 | B193: GUJGASLTD | C193: 730.6 | D193: 729.97 | E193: 717.13 | F193: 703.67 | G193: 690.83 | H193: 743.43 | I193: 756.27 | J193: 769.73 | K193: 742.8 | L193: 716.5 | M193: 41.02053
A194: 184 | B194: GNFC | C194: 364.6 | D194: 365.87 | E194: 359.73 | F194: 354.87 | G194: 348.73 | H194: 370.73 | I194: 376.87 | J194: 381.73 | K194: 372 | L194: 361 | M194: 7.87263
A195: 185 | B195: GPPL | C195: 106.15 | D195: 106.68 | E195: 105.37 | F195: 104.58 | G195: 103.27 | H195: 107.47 | I195: 108.78 | J195: 109.57 | K195: 108 | L195: 105.9 | M195: 3.28822
A196: 186 | B196: GSFC | C196: 117.85 | D196: 117.08 | E196: 115.32 | F196: 112.78 | G196: 111.02 | H196: 119.62 | I196: 121.38 | J196: 123.92 | K196: 118.85 | L196: 114.55 | M196: 31.12495
A197: 187 | B197: GSPL | C197: 338.35 | D197: 337.47 | E197: 331.18 | F197: 324.02 | G197: 317.73 | H197: 344.63 | I197: 350.92 | J197: 358.08 | K197: 343.75 | L197: 330.3 | M197: 13.81749
A198: 188 | B198: GULFOILLUB | C198: 649 | D198: 654.67 | E198: 641.33 | F198: 633.67 | G198: 620.33 | H198: 662.33 | I198: 675.67 | J198: 683.33 | K198: 668 | L198: 647 | M198: 0.43492
A199: 189 | B199: HEG | C199: 2226.6 | D199: 2228.92 | E199: 2198.83 | F199: 2171.07 | G199: 2140.98 | H199: 2256.68 | I199: 2286.77 | J199: 2314.53 | K199: 2259 | L199: 2201.15 | M199: 1.50329
A200: 190 | B200: HCLTECH | C200: 994 | D200: 993.50 | E200: 983.10 | F200: 972.20 | G200: 961.80 | H200: 1004.40 | I200: 1014.80 | J200: 1025.70 | K200: 1003.9 | L200: 982.6 | M200: 52.65839
A201: 191 | B201: HDFCAMC | C201: 2899.6 | D201: 2898.15 | E201: 2884.45 | F201: 2869.30 | G201: 2855.60 | H201: 2913.30 | I201: 2927.00 | J201: 2942.15 | K201: 2911.85 | L201: 2883 | M201: 2.36653
A202: 192 | B202: HDFCBANK | C202: 1442.75 | D202: 1445.17 | E202: 1432.88 | F202: 1423.02 | G202: 1410.73 | H202: 1455.03 | I202: 1467.32 | J202: 1477.18 | K202: 1457.45 | L202: 1435.3 | M202: 65.63342
A203: 193 | B203: HDFCLIFE | C203: 665.35 | D203: 665.03 | E203: 662.12 | F203: 658.88 | G203: 655.97 | H203: 668.27 | I203: 671.18 | J203: 674.42 | K203: 667.95 | L203: 661.8 | M203: 27.96725
A204: 194 | B204: HFCL | C204: 73 | D204: 74.65 | E204: 71.35 | F204: 69.70 | G204: 66.40 | H204: 76.30 | I204: 79.60 | J204: 81.25 | K204: 77.95 | L204: 73 | M204: 58.77681
A205: 195 | B205: HAPPSTMNDS | C205: 1395.65 | D205: 1412.45 | E205: 1358.90 | F205: 1322.15 | G205: 1268.60 | H205: 1449.20 | I205: 1502.75 | J205: 1539.50 | K205: 1466 | L205: 1375.7 | M205: 22.00229
A206: 196 | B206: HATSUN | C206: 937.35 | D206: 942.92 | E206: 929.43 | F206: 921.52 | G206: 908.03 | H206: 950.83 | I206: 964.32 | J206: 972.23 | K206: 956.4 | L206: 935 | M206: 0.27437
... 321 more rows

Sheet Bulk Deals
E6: Back To Main Page
A7: Subject : | B7: BULK DEAL | D7: =Main!B10 -> 2021-07-26
A9: Date | B9: Scrip code | C9: Scrip Name | D9: Client Name | E9: Buy / Sell | F9: Quantity Traded | G9: Trade Price / Wt.Avg.trade price | H9: Exchange
A10: 2021-07-23 | B10: 530109 | C10: ANUPAM | D10: AKSHAY RAJENDRABHAI OSWAL | E10: BUY | F10: 252,010 | G10: 12.21 | H10: BSE
A11: 2021-07-23 | B11: 530109 | C11: ANUPAM | D11: AKSHAY RAJENDRABHAI OSWAL | E11: SELL | F11: 252,010 | G11: 12.68 | H11: BSE
A12: 2021-07-23 | B12: 530109 | C12: ANUPAM | D12: SIBI VARGHESE | E12: SELL | F12: 100,000 | G12: 12.5 | H12: BSE
A13: 2021-07-23 | B13: 530109 | C13: ANUPAM | D13: KRUNALBHIKHALALSHAH | E13: BUY | F13: 63,036 | G13: 12.61 | H13: BSE
A14: 2021-07-23 | B14: 530109 | C14: ANUPAM | D14: KRUNALBHIKHALALSHAH | E14: SELL | F14: 23,036 | G14: 12.68 | H14: BSE
A15: 2021-07-23 | B15: 530109 | C15: ANUPAM | D15: BP EQUITIES PVT. LTD. | E15: BUY | F15: 98,902 | G15: 12.68 | H15: BSE
A16: 2021-07-23 | B16: 530109 | C16: ANUPAM | D16: BP EQUITIES PVT. LTD. | E16: SELL | F16: 81,010 | G16: 12.64 | H16: BSE
A17: 2021-07-23 | B17: 532493 | C17: ASTRAMICRO | D17: HRTI PRIVATE LIMITED | E17: BUY | F17: 489,833 | G17: 172.05 | H17: BSE
A18: 2021-07-23 | B18: 532493 | C18: ASTRAMICRO | D18: HRTI PRIVATE LIMITED | E18: SELL | F18: 493,684 | G18: 171.62 | H18: BSE
A19: 2021-07-23 | B19: 532493 | C19: ASTRAMICRO | D19: ADROIT FINANCIAL SERVICES PRIVATE LIMITED | E19: BUY | F19: 555,468 | G19: 171.66 | H19: BSE
A20: 2021-07-23 | B20: 532493 | C20: ASTRAMICRO | D20: ADROIT FINANCIAL SERVICES PRIVATE LIMITED | E20: SELL | F20: 525,728 | G20: 172.06 | H20: BSE
A21: 2021-07-23 | B21: 530309 | C21: CHANDRAP | D21: ASHOK KUMAR KHETARPAL | E21: SELL | F21: 29,000 | G21: 107.23 | H21: BSE
A22: 2021-07-23 | B22: 530309 | C22: CHANDRAP | D22: CHANDAN MITTAL | E22: BUY | F22: 33,887 | G22: 107.16 | H22: BSE
A23: 2021-07-23 | B23: 539770 | C23: DARJEELING | D23: BHIM CHAUDHRY | E23: SELL | F23: 21,744 | G23: 4.49 | H23: BSE
A24: 2021-07-23 | B24: 539770 | C24: DARJEELING | D24: SURBHI PIYUSH SHAH | E24: SELL | F24: 35,000 | G24: 4.57 | H24: BSE
A25: 2021-07-23 | B25: 539770 | C25: DARJEELING | D25: NIRAJ RAJNIKANT SHAH | E25: SELL | F25: 60,811 | G25: 4.39 | H25: BSE
A26: 2021-07-23 | B26: 539770 | C26: DARJEELING | D26: KUSUM DILIPKUMAR JAIN | E26: BUY | F26: 21,000 | G26: 4.39 | H26: BSE
A27: 2021-07-23 | B27: 539197 | C27: DEVHARI | D27: RAMESHCHANDRA SAMPATLAL GANNA | E27: BUY | F27: 1,168,200 | G27: 0.77 | H27: BSE
A28: 2021-07-23 | B28: 539197 | C28: DEVHARI | D28: ASHOK KIRTANLAL SHAH | E28: SELL | F28: 1,050,000 | G28: 0.77 | H28: BSE
A29: 2021-07-23 | B29: 539197 | C29: DEVHARI | D29: PARUL ASHOK SHAH | E29: SELL | F29: 1,100,000 | G29: 0.77 | H29: BSE
A30: 2021-07-23 | B30: 539197 | C30: DEVHARI | D30: DHARMIK NITINBHAI CHAUHAN | E30: BUY | F30: 737,563 | G30: 0.77 | H30: BSE
A31: 2021-07-23 | B31: 539197 | C31: DEVHARI | D31: DHARMIK NITINBHAI CHAUHAN | E31: SELL | F31: 1,000,000 | G31: 0.77 | H31: BSE
A32: 2021-07-23 | B32: 540811 | C32: DML | D32: SHERWOOD SECURITIES PVT LTD | E32: SELL | F32: 100,000 | G32: 12.1 | H32: BSE
A33: 2021-07-23 | B33: 540811 | C33: DML | D33: LEENA SACHIN SHETTY | E33: BUY | F33: 130,000 | G33: 12.1 | H33: BSE
A34: 2021-07-23 | B34: 540811 | C34: DML | D34: JYOTI KETAN VAKHARIA | E34: BUY | F34: 110,000 | G34: 12.05 | H34: BSE
A35: 2021-07-23 | B35: 524818 | C35: DYNAMIND | D35: ASITA HARIN MAMLATDARNA | E35: BUY | F35: 30,000 | G35: 108.46 | H35: BSE
A36: 2021-07-23 | B36: 517372 | C36: GUJINTRX | D36: DIPAK KANAYALAL SHAH | E36: BUY | F36: 34,000 | G36: 124.49 | H36: BSE
A37: 2021-07-23 | B37: 517372 | C37: GUJINTRX | D37: SHARAD KANAYALAL SHAH | E37: SELL | F37: 36,936 | G37: 124.47 | H37: BSE
A38: 2021-07-23 | B38: 540134 | C38: IISL | D38: POOJA DUSAJ | E38: BUY | F38: 50,000 | G38: 4.14 | H38: BSE
A39: 2021-07-23 | B39: 531778 | C39: KACHCHH | D39: PURSHOTTAM AGARWAL | E39: SELL | F39: 28,487 | G39: 7.93 | H39: BSE
A40: 2021-07-23 | B40: 530215 | C40: KINGSINFR | D40: UMA KANT DUBE | E40: BUY | F40: 21,897 | G40: 35.4 | H40: BSE
A41: 2021-07-23 | B41: 530215 | C41: KINGSINFR | D41: UMA KANT DUBE | E41: SELL | F41: 128,300 | G41: 36.12 | H41: BSE
A42: 2021-07-23 | B42: 523550 | C42: KRYPTONQ | D42: N ESWARA RAO | E42: BUY | F42: 122 | G42: 19.35 | H42: BSE
A43: 2021-07-23 | B43: 523550 | C43: KRYPTONQ | D43: N ESWARA RAO | E43: SELL | F43: 172,600 | G43: 19.07 | H43: BSE
A44: 2021-07-23 | B44: 505523 | C44: MAHACORP | D44: NISHIL SURENDRABHAI MARFATIA | E44: SELL | F44: 1,950,000 | G44: 0.53 | H44: BSE
A45: 2021-07-23 | B45: 538891 | C45: MCLOUD | D45: VARSHA CHAUHAN | E45: BUY | F45: 199,196 | G45: 61.07 | H45: BSE
A46: 2021-07-23 | B46: 539521 | C46: NAVIGANT | D46: IRIS BUSINESS SOLUTIONS PRIVATE LIMITED | E46: BUY | F46: 60,000 | G46: 13.9 | H46: BSE
A47: 2021-07-23 | B47: 539521 | C47: NAVIGANT | D47: ARNOLD HOLDINGS LIMITED | E47: SELL | F47: 60,000 | G47: 13.9 | H47: BSE
A48: 2021-07-23 | B48: 543305 | C48: NAVODAYENT | D48: NNM SECURITIES PVT LTD | E48: BUY | F48: 12,000 | G48: 14.5 | H48: BSE
A49: 2021-07-23 | B49: 543305 | C49: NAVODAYENT | D49: NNM SECURITIES PVT LTD | E49: SELL | F49: 24,000 | G49: 14.25 | H49: BSE
A50: 2021-07-23 | B50: 541206 | C50: OBCL | D50: MIKER FINANCIAL CONSULTANTS PRIVATE LIMITED | E50: BUY | F50: 126,000 | G50: 41.25 | H50: BSE
A51: 2021-07-23 | B51: 541206 | C51: OBCL | D51: FLOYD FILANDRO LINHARES | E51: SELL | F51: 126,000 | G51: 41.25 | H51: BSE
A52: 2021-07-23 | B52: 541206 | C52: OBCL | D52: AJMERA ASSOCIATES PVT LTD | E52: SELL | F52: 124,000 | G52: 41.5 | H52: BSE
A53: 2021-07-23 | B53: 538019 | C53: OBIL | D53: LOURDHUSAMY RAJKUMAR | E53: SELL | F53: 75,000 | G53: 4.08 | H53: BSE
A54: 2021-07-23 | B54: 540198 | C54: OSIAJEE | D54: BALJINDER KAUR | E54: SELL | F54: 54,596 | G54: 41.82 | H54: BSE
A55: 2021-07-23 | B55: 539291 | C55: OZONEWORLD | D55: AARNAH CAPITAL ADVISORS PVT LTD | E55: SELL | F55: 33,308 | G55: 14.23 | H55: BSE
A56: 2021-07-23 | B56: 539291 | C56: OZONEWORLD | D56: DISHANT BHARATBHAI SHAH | E56: SELL | F56: 25,000 | G56: 14.65 | H56: BSE
A57: 2021-07-23 | B57: 539291 | C57: OZONEWORLD | D57: MASUDKHANABDULRASHIDKHANPATHAN | E57: BUY | F57: 25,000 | G57: 14.8 | H57: BSE
A58: 2021-07-23 | B58: 539291 | C58: OZONEWORLD | D58: MANISH RAMESHBHAI PATEL | E58: BUY | F58: 15,585 | G58: 14.34 | H58: BSE
A59: 2021-07-23 | B59: 539291 | C59: OZONEWORLD | D59: ARUN DASHRATHBHAI PRAJAPATI | E59: BUY | F59: 111,658 | G59: 14.71 | H59: BSE
A60: 2021-07-23 | B60: 539291 | C60: OZONEWORLD | D60: MANISH RAMESHBHAI PATEL | E60: SELL | F60: 20,814 | G60: 14.37 | H60: BSE
A61: 2021-07-23 | B61: 539291 | C61: OZONEWORLD | D61: ARUN DASHRATHBHAI PRAJAPATI | E61: SELL | F61: 113,196 | G61: 14.74 | H61: BSE
A62: 2021-07-23 | B62: 539291 | C62: OZONEWORLD | D62: KAPIL SATYANARAYAN SONI | E62: BUY | F62: 35,000 | G62: 14.65 | H62: BSE
A63: 2021-07-23 | B63: 539291 | C63: OZONEWORLD | D63: RAJ KUMAR AGARWAL | E63: BUY | F63: 20,000 | G63: 14.8 | H63: BSE
A64: 2021-07-23 | B64: 531952 | C64: RIBATEX | D64: VIBHU GUPTA | E64: BUY | F64: 61,000 | G64: 46.12 | H64: BSE
A65: 2021-07-23 | B65: 531952 | C65: RIBATEX | D65: VIBHU GUPTA | E65: SELL | F65: 61,000 | G65: 45.71 | H65: BSE
A66: 2021-07-23 | B66: 531215 | C66: RTSPOWR | D66: HIMANSHUMAHENDRABHAIPATEL | E66: BUY | F66: 65,649 | G66: 56.49 | H66: BSE
A67: 2021-07-23 | B67: 531215 | C67: RTSPOWR | D67: HIMANSHUMAHENDRABHAIPATEL | E67: SELL | F67: 5,649 | G67: 60.82 | H67: BSE
A68: 2021-07-23 | B68: 540715 | C68: SAGAR | D68: SANJAY POPATLAL JAIN | E68: BUY | F68: 114,000 | G68: 31.2 | H68: BSE
A69: 2021-07-23 | B69: 540715 | C69: SAGAR | D69: PINKY POPATLAL JAIN | E69: SELL | F69: 69,000 | G69: 31.2 | H69: BSE
A70: 2021-07-23 | B70: 500370 | C70: SALORAINTL | D70: HAMLAI SUJAY AJITKUMAR | E70: SELL | F70: 48,900 | G70: 39.59 | H70: BSE
A71: 2021-07-23 | B71: 539833 | C71: SICLTD | D71: ROHIT | E71: BUY | F71: 500,000 | G71: 0.42 | H71: BSE
A72: 2021-07-23 | B72: 540393 | C72: SMLT | D72: SANJAY POPATLAL JAIN | E72: BUY | F72: 76,000 | G72: 63.84 | H72: BSE
A73: 2021-07-23 | B73: 539026 | C73: SSPNFIN | D73: ESPS FINSERVE PRIVATE LIMITED. | E73: SELL | F73: 24,000 | G73: 10.3 | H73: BSE
A74: 2021-07-23 | B74: 513488 | C74: SSWRL | D74: POLINENI | E74: BUY | F74: 25,000 | G74: 30.02 | H74: BSE
A75: 2021-07-23 | B75: 539041 | C75: SVPHOUSING | D75: R N FINANCE LIMITED | E75: SELL | F75: 85,000 | G75: 5.15 | H75: BSE
A76: 2021-07-23 | B76: 539041 | C76: SVPHOUSING | D76: VIPUL FINVEST LTD | E76: BUY | F76: 80,000 | G76: 5.15 | H76: BSE
A77: 2021-07-23 | B77: 538607 | C77: TOYAMIND | D77: SILVERTOSS SHOPPERS PVT LTD | E77: BUY | F77: 1,456,344 | G77: 3.32 | H77: BSE
A78: 2021-07-23 | B78: 538607 | C78: TOYAMIND | D78: SILVERTOSS SHOPPERS PVT LTD | E78: SELL | F78: 344 | G78: 3.34 | H78: BSE
A79: 2021-07-23 | B79: 532444 | C79: TSPIRITUAL | D79: PANANGHAT MURALEEDHARAN | E79: SELL | F79: 104,025 | G79: 1.27 | H79: BSE
A80: 2021-07-23 | B80: 530961 | C80: VIKASECO | D80: MULTIPLIER SHARE & STOCK ADVISORS PRIVATE LIMITED | E80: BUY | F80: 500,000 | G80: 2.22 | H80: BSE
A81: 2021-07-23 | B81: 530961 | C81: VIKASECO | D81: MULTIPLIER SHARE & STOCK ADVISORS PRIVATE LIMITED | E81: SELL | F81: 5,085,262 | G81: 2.22 | H81: BSE
A82: 2021-07-23 | B82: 530961 | C82: VIKASECO | D82: SURESH CHAND GARG | E82: BUY | F82: 5,000,000 | G82: 2.22 | H82: BSE
A83: 2021-07-23 | B83: 530961 | C83: VIKASECO | D83: ALPHA LEON ENTERPRISES LLP | E83: BUY | F83: 11,215,822 | G83: 2.22 | H83: BSE
A84: 2021-07-23 | B84: 530961 | C84: VIKASECO | D84: ALPHA LEON ENTERPRISES LLP | E84: SELL | F84: 13,429,356 | G84: 2.22 | H84: BSE
A85: 2021-07-23 | B85: 530961 | C85: VIKASECO | D85: TOPGAIN FINANCE PRIVATE LIMITED | E85: BUY | F85: 500,000 | G85: 2.22 | H85: BSE
A86: 2021-07-23 | B86: 530961 | C86: VIKASECO | D86: TOPGAIN FINANCE PRIVATE LIMITED | E86: SELL | F86: 4,011,430 | G86: 2.22 | H86: BSE
A87: 2021-07-23 | B87: 530961 | C87: VIKASECO | D87: LGOF GLOBAL OPPORTUNITIES LIMITED | E87: BUY | F87: 3,400,000 | G87: 2.22 | H87: BSE
A88: 2021-07-23 | B88: 531025 | C88: VISAGAR | D88: TURBOT TRADERS PRIVATE LIMITED | E88: SELL | F88: 294,522 | G88: 1.42 | H88: BSE
A89: 2021-07-23 | B89: 530697 | C89: ZENLABS | D89: USHA JAWAHARLAL KALRO | E89: BUY | F89: 79,726 | G89: 47.28 | H89: BSE
A90: 2021-07-23 | B90: 530697 | C90: ZENLABS | D90: USHA JAWAHARLAL KALRO | E90: SELL | F90: 62,880 | G90: 47.84 | H90: BSE
A91: 2021-07-23 | B91: AAATECH | C91: AAA Technologies Limited | D91: SHREE SHYAMJEE SHEET GRAH | E91: BUY | F91: 108,000 | G91: 54.73 | H91: NSE
A92: 2021-07-23 | B92: APOLLOPIPE | C92: Apollo Pipes Limited | D92: SDM ENTERPRISES | E92: BUY | F92: 160,000 | G92: 1001.1 | H92: NSE
A93: 2021-07-23 | B93: BANARBEADS | C93: Banaras Beads Ltd | D93: NK SECURITIES RESEARCH PRIVATE LIMITED | E93: BUY | F93: 35,887 | G93: 87.15 | H93: NSE
A94: 2021-07-23 | B94: BANARBEADS | C94: Banaras Beads Ltd | D94: MUDUPULAVEMULA SURENDRANADHA REDDY | E94: BUY | F94: 59,041 | G94: 84.87 | H94: NSE
A95: 2021-07-23 | B95: BANARBEADS | C95: Banaras Beads Ltd | D95: GRAVITON RESEARCH CAPITAL LLP | E95: BUY | F95: 121,657 | G95: 86.16 | H95: NSE
A96: 2021-07-23 | B96: GREENPOWER | C96: Orient Green Power Co Ltd | D96: ANKITA VISHAL SHAH | E96: BUY | F96: 5,646,414 | G96: 3.15 | H96: NSE
A97: 2021-07-23 | B97: GREENPOWER | C97: Orient Green Power Co Ltd | D97: ADROIT FINANCIAL SERVICES PVT LTD | E97: BUY | F97: 3,274,318 | G97: 3.04 | H97: NSE
A98: 2021-07-23 | B98: JAYSREETEA | C98: Jayashree Tea Ltd. | D98: VIJETA BROKING INDIA.PVT.LTD. | E98: BUY | F98: 307,385 | G98: 124.23 | H98: NSE
A99: 2021-07-23 | B99: JAYSREETEA | C99: Jayashree Tea Ltd. | D99: GRAVITON RESEARCH CAPITAL LLP | E99: BUY | F99: 275,337 | G99: 123.56 | H99: NSE
A100: 2021-07-23 | B100: JOCIL | C100: Jocil Limited | D100: GRAVITON RESEARCH CAPITAL LLP | E100: BUY | F100: 63,910 | G100: 220.02 | H100: NSE
A101: 2021-07-23 | B101: JOCIL | C101: Jocil Limited | D101: YUGA DOSHI | E101: BUY | F101: 52,742 | G101: 233.93 | H101: NSE
A102: 2021-07-23 | B102: JOCIL | C102: Jocil Limited | D102: NK SECURITIES RESEARCH PRIVATE LIMITED | E102: BUY | F102: 47,100 | G102: 226.46 | H102: NSE
A103: 2021-07-23 | B103: LASA | C103: Lasa Supergenerics Ltd | D103: SHREE VASUDEV EXIM | E103: BUY | F103: 1,000 | G103: 85 | H103: NSE
A104: 2021-07-23 | B104: LIBERTSHOE | C104: Liberty Shoes Ltd | D104: MBL & CO. LIMITED | E104: BUY | F104: 98,003 | G104: 185.29 | H104: NSE
A105: 2021-07-23 | B105: LINCOLN | C105: Lincoln Pharma Ltd | D105: MBL & CO. LIMITED | E105: BUY | F105: 108,405 | G105: 368.08 | H105: NSE
A106: 2021-07-23 | B106: MCL | C106: Madhav Copper Limited | D106: VISHAL M DHAMELIYA | E106: BUY | F106: 186,443 | G106: 49.49 | H106: NSE
A107: 2021-07-23 | B107: MCL | C107: Madhav Copper Limited | D107: AMIT KANTILAL KOTHARI | E107: BUY | F107: 177,902 | G107: 48.4 | H107: NSE
A108: 2021-07-23 | B108: MIRZAINT | C108: Mirza International Ltd. | D108: GRAVITON RESEARCH CAPITAL LLP | E108: BUY | F108: 802,544 | G108: 61.87 | H108: NSE
A109: 2021-07-23 | B109: MUTHOOTCAP | C109: Muthoot Cap Serv Ltd | D109: GRAVITON RESEARCH CAPITAL LLP | E109: BUY | F109: 120,678 | G109: 480.21 | H109: NSE
A110: 2021-07-23 | B110: NIPPOBATRY | C110: Indo-National Limited | D110: CRONY VYAPAR PVT LTD | E110: BUY | F110: 24,109 | G110: 1108.17 | H110: NSE
A111: 2021-07-23 | B111: NIPPOBATRY | C111: Indo-National Limited | D111: PARTH INFIN BROKERS PVT LTD | E111: BUY | F111: 57,409 | G111: 1116.38 | H111: NSE
A112: 2021-07-23 | B112: NIPPOBATRY | C112: Indo-National Limited | D112: GRAVITON RESEARCH CAPITAL LLP | E112: BUY | F112: 23,385 | G112: 1120.14 | H112: NSE
A113: 2021-07-23 | B113: NIPPOBATRY | C113: Indo-National Limited | D113: SETU SECURITIES PVT LTD | E113: BUY | F113: 30,810 | G113: 1097.88 | H113: NSE
A114: 2021-07-23 | B114: PILITA | C114: PIL Italica Lifestyle Ltd | D114: OLGA TRADING PRIVATE LIMITED | E114: BUY | F114: 1,245,800 | G114: 8 | H114: NSE
A115: 2021-07-23 | B115: UTTAMSTL | C115: Uttam Galva Steels Limite | D115: MOUNTAIN VENTURES | E115: BUY | F115: 1,000,000 | G115: 6 | H115: NSE
A116: 2021-07-23 | B116: UTTAMSTL | C116: Uttam Galva Steels Limite | D116: ALPHA LEON ENTERPRISES LLP | E116: BUY | F116: 3,100,000 | G116: 5.5 | H116: NSE
A117: 2021-07-23 | B117: VASA | C117: Vasa Retail & Oversea Ltd | D117: JAIN SANJAY POPATLAL | E117: BUY | F117: 48,000 | G117: 5.65 | H117: NSE
A118: 2021-07-23 | B118: VERTOZ | C118: Vertoz Advertising Ltd | D118: SHREE SHIVSHAKTI PROJECT CONSULTANT PRIVATE LIMITE | E118: BUY | F118: 68,095 | G118: 148.89 | H118: NSE
A119: 2021-07-23 | B119: VERTOZ | C119: Vertoz Advertising Ltd | D119: OLGA TRADING PRIVATE LIMITED | E119: BUY | F119: 123,486 | G119: 152.95 | H119: NSE
A120: 2021-07-23 | B120: VIKASLIFE | C120: Vikas Lifecare Limited | D120: ALPHA LEON ENTERPRISES LLP | E120: BUY | F120: 10,597,109 | G120: 4.3 | H120: NSE
A121: 2021-07-23 | B121: VIKASLIFE | C121: Vikas Lifecare Limited | D121: TOPGAIN FINANCE PRIVATE LIMITED | E121: BUY | F121: 5,494,532 | G121: 4.11 | H121: NSE
A122: 2021-07-23 | B122: VIPCLOTHNG | C122: Vip Clothing Ltd. | D122: B.W.TRADERS | E122: BUY | F122: 65,437 | G122: 22.49 | H122: NSE
A123: 2021-07-23 | B123: VIPCLOTHNG | C123: Vip Clothing Ltd. | D123: B M TRADERS | E123: BUY | F123: 860,800 | G123: 22.87 | H123: NSE
A124: 2021-07-23 | B124: AAATECH | C124: AAA Technologies Limited | D124: MIKER FINANCIAL CONSULTANTS PVT LTD | E124: SELL | F124: 99,000 | G124: 54.73 | H124: NSE
A125: 2021-07-23 | B125: APOLLOPIPE | C125: Apollo Pipes Limited | D125: ASHISH RAMESHCHANDRA KACHOLIA | E125: SELL | F125: 273,723 | G125: 1001.89 | H125: NSE
A126: 2021-07-23 | B126: BANARBEADS | C126: Banaras Beads Ltd | D126: MUDUPULAVEMULA SURENDRANADHA REDDY | E126: SELL | F126: 59,041 | G126: 86.34 | H126: NSE
A127: 2021-07-23 | B127: BANARBEADS | C127: Banaras Beads Ltd | D127: GRAVITON RESEARCH CAPITAL LLP | E127: SELL | F127: 121,657 | G127: 86.64 | H127: NSE
A128: 2021-07-23 | B128: BANARBEADS | C128: Banaras Beads Ltd | D128: NK SECURITIES RESEARCH PRIVATE LIMITED | E128: SELL | F128: 35,887 | G128: 87.23 | H128: NSE
A129: 2021-07-23 | B129: GREENPOWER | C129: Orient Green Power Co Ltd | D129: ANKITA VISHAL SHAH | E129: SELL | F129: 2,446,414 | G129: 3.15 | H129: NSE
A130: 2021-07-23 | B130: GREENPOWER | C130: Orient Green Power Co Ltd | D130: ADROIT FINANCIAL SERVICES PVT LTD | E130: SELL | F130: 4,053,630 | G130: 3.09 | H130: NSE
A131: 2021-07-23 | B131: INFIBEAM | C131: Infibeam Avenues Limited | D131: RAVI OMPRAKASH AGRAWAL | E131: SELL | F131: 7,176,818 | G131: 45.96 | H131: NSE
A132: 2021-07-23 | B132: JAYSREETEA | C132: Jayashree Tea Ltd. | D132: GRAVITON RESEARCH CAPITAL LLP | E132: SELL | F132: 275,337 | G132: 123.52 | H132: NSE
A133: 2021-07-23 | B133: JAYSREETEA | C133: Jayashree Tea Ltd. | D133: VIJETA BROKING INDIA.PVT.LTD. | E133: SELL | F133: 307,385 | G133: 124.33 | H133: NSE
A134: 2021-07-23 | B134: JOCIL | C134: Jocil Limited | D134: NK SECURITIES RESEARCH PRIVATE LIMITED | E134: SELL | F134: 47,100 | G134: 226.67 | H134: NSE
A135: 2021-07-23 | B135: JOCIL | C135: Jocil Limited | D135: YUGA DOSHI | E135: SELL | F135: 52,742 | G135: 233.19 | H135: NSE
A136: 2021-07-23 | B136: JOCIL | C136: Jocil Limited | D136: GRAVITON RESEARCH CAPITAL LLP | E136: SELL | F136: 63,910 | G136: 220.13 | H136: NSE
A137: 2021-07-23 | B137: LASA | C137: Lasa Supergenerics Ltd | D137: SHREE VASUDEV EXIM | E137: SELL | F137: 290,185 | G137: 82.15 | H137: NSE
A138: 2021-07-23 | B138: LIBERTSHOE | C138: Liberty Shoes Ltd | D138: MBL & CO. LIMITED | E138: SELL | F138: 96,603 | G138: 185.45 | H138: NSE
A139: 2021-07-23 | B139: LINCOLN | C139: Lincoln Pharma Ltd | D139: MBL & CO. LIMITED | E139: SELL | F139: 103,857 | G139: 369.48 | H139: NSE
A140: 2021-07-23 | B140: MCL | C140: Madhav Copper Limited | D140: AMIT KANTILAL KOTHARI | E140: SELL | F140: 177,902 | G140: 50.27 | H140: NSE
A141: 2021-07-23 | B141: MIRZAINT | C141: Mirza International Ltd. | D141: GRAVITON RESEARCH CAPITAL LLP | E141: SELL | F141: 802,544 | G141: 61.89 | H141: NSE
A142: 2021-07-23 | B142: MUTHOOTCAP | C142: Muthoot Cap Serv Ltd | D142: GRAVITON RESEARCH CAPITAL LLP | E142: SELL | F142: 120,678 | G142: 480.55 | H142: NSE
A143: 2021-07-23 | B143: NIPPOBATRY | C143: Indo-National Limited | D143: HDFC BANK LIMITED | E143: SELL | F143: 20,000 | G143: 1088.12 | H143: NSE
A144: 2021-07-23 | B144: NIPPOBATRY | C144: Indo-National Limited | D144: GRAVITON RESEARCH CAPITAL LLP | E144: SELL | F144: 23,385 | G144: 1117.28 | H144: NSE
A145: 2021-07-23 | B145: NIPPOBATRY | C145: Indo-National Limited | D145: CRONY VYAPAR PVT LTD | E145: SELL | F145: 30,358 | G145: 1107.95 | H145: NSE
A146: 2021-07-23 | B146: NIPPOBATRY | C146: Indo-National Limited | D146: PARTH INFIN BROKERS PVT LTD | E146: SELL | F146: 57,409 | G146: 1116.46 | H146: NSE
A147: 2021-07-23 | B147: NIPPOBATRY | C147: Indo-National Limited | D147: SETU SECURITIES PVT LTD | E147: SELL | F147: 29,388 | G147: 1105.21 | H147: NSE
A148: 2021-07-23 | B148: PILITA | C148: PIL Italica Lifestyle Ltd | D148: OLGA TRADING PRIVATE LIMITED | E148: SELL | F148: 1,209,187 | G148: 7.94 | H148: NSE
A149: 2021-07-23 | B149: TEMBO | C149: Tembo Global Ind Ltd | D149: TIA ENTERPRISES PRIVATE LIMITED | E149: SELL | F149: 60,000 | G149: 203.3 | H149: NSE
A150: 2021-07-23 | B150: UTTAMSTL | C150: Uttam Galva Steels Limite | D150: ALPHA LEON ENTERPRISES LLP | E150: SELL | F150: 3,100,000 | G150: 6 | H150: NSE
A151: 2021-07-23 | B151: UTTAMSTL | C151: Uttam Galva Steels Limite | D151: MOUNTAIN VENTURES | E151: SELL | F151: 846,582 | G151: 5.5 | H151: NSE
A152: 2021-07-23 | B152: VASA | C152: Vasa Retail & Oversea Ltd | D152: SANJAY POPATLAL JAIN HUF | E152: SELL | F152: 48,000 | G152: 5.65 | H152: NSE
A153: 2021-07-23 | B153: VERTOZ | C153: Vertoz Advertising Ltd | D153: OLGA TRADING PRIVATE LIMITED | E153: SELL | F153: 123,486 | G153: 151.62 | H153: NSE
A154: 2021-07-23 | B154: VERTOZ | C154: Vertoz Advertising Ltd | D154: RELITRADE STOCK BROKING PVT. LTD. | E154: SELL | F154: 61,552 | G154: 148.94 | H154: NSE
A155: 2021-07-23 | B155: VERTOZ | C155: Vertoz Advertising Ltd | D155: SHREE SHIVSHAKTI PROJECT CONSULTANT PRIVATE LIMITE | E155: SELL | F155: 68,095 | G155: 150.54 | H155: NSE
A156: 2021-07-23 | B156: VIKASLIFE | C156: Vikas Lifecare Limited | D156: ALPHA LEON ENTERPRISES LLP | E156: SELL | F156: 11,877,111 | G156: 4.41 | H156: NSE
A157: 2021-07-23 | B157: VIKASLIFE | C157: Vikas Lifecare Limited | D157: TOPGAIN FINANCE PRIVATE LIMITED | E157: SELL | F157: 5,494,532 | G157: 4.15 | H157: NSE
A158: 2021-07-23 | B158: VIPCLOTHNG | C158: Vip Clothing Ltd. | D158: B M TRADERS | E158: SELL | F158: 860,800 | G158: 23.78 | H158: NSE
A159: 2021-07-23 | B159: VIPCLOTHNG | C159: Vip Clothing Ltd. | D159: B.W.TRADERS | E159: SELL | F159: 512,437 | G159: 23.64 | H159: NSE
A160: 2021-07-23 | B160: VIVIDHA | C160: Visagar Polytex Ltd | D160: ALPHA LEON ENTERPRISES LLP | E160: SELL | F160: 5,000,000 | G160: 0.8 | H160: NSE

Sheet Call Tracker (Equity & F&O)
M5: Back To Main Page
A6: Retail Research Technical Calls & Fundamental Performance Report for the month of July-2021
M7: =Main!B10 -> 2021-07-26
B8: Positional Call
A9: Sr.no | B9: Date | D9: Company | E9: Rec | F9: Rec Price | G9: Stop Loss*** | H9: Call Closed At | I9: Target | J9: Remark | K9: Profit / Loss per Share | L9: All charges | M9: Net Gain / Loss % | N9: Status | O9: Closed Date
A10: 1 | B10: 2021-04-05 | D10: HDFCBANK | E10: Buy<> | F10: 1463.5 | G10: 1370 | H10: =1505.75 -> 1,505.75 | I10: 1600-1700 | J10: Profit of Rs.42.25/- | K10: =H10-F10 -> 42.25 | L10: =(F10*-0.8)/100 -> -11.71 | M10: =(K10+L10)/F10 -> 2.09% | N10: Successful | O10: 2021-07-19 | R10: H
A11: 2 | B11: 2021-05-26 | D11: JKCEMENT | E11: Buy | F11: 2840 | G11: 2650 | H11: 2,970.00 | I11: 3100-3200 | J11: Profit of Rs.130/- | K11: 130.00 | L11: -22.72 | M11: 3.78% | N11: Successful | O11: 2021-07-06 | R11: H
A12: 3 | B12: 2021-05-27 | D12: BHARTIARTL | E12: Buy | F12: 522.5 | G12: 488 | H12: 558.50 | I12: 590-610 | J12: Profit of Rs.36/- | K12: 36.00 | L12: -4.18 | M12: 6.09% | N12: Successful | O12: 2021-07-23 | R12: H
A13: 4 | B13: 2021-06-01 | D13: HEROMOTOCO | E13: Buy<> | F13: 2940-2960 | G13: 2765 | I13: 3300-3350 | J13: Open | R13: H
A14: 5 | B14: 2021-06-03 | D14: HUHTAMAKI | E14: Buy<> | F14: 292 | G14: 275 | H14: 315.00 | I14: 317-327 | J14: Profit of Rs.23/- | K14: =H14-F14 -> 23.00 | L14: =(F14*-0.8)/100 -> -2.34 | M14: =(K14+L14)/F14 -> 7.08% | N14: Successful | O14: 2021-07-13 | R14: H
A15: 6 | B15: 2021-06-10 | D15: BRITANNIA | E15: Buy | F15: 3570-3600 | G15: 3345 | I15: 3900-4000 | J15: Open | R15: H
A16: 7 | B16: 2021-06-15 | D16: PRSMJOHNSN | E16: Buy | F16: 131 | G16: 123 | H16: 141.00 | I16: 150 | J16: Profit of Rs.10/- | K16: =H16-F16 -> 10.00 | L16: =(F16*-0.8)/100 -> -1.05 | M16: =(K16+L16)/F16 -> 6.83% | N16: Successful | O16: 2021-07-06 | R16: N
A17: 8 | B17: 2021-06-16 | D17: ESCORTS | E17: Buy<> | F17: 1182.5-1197.5 | G17: 1111.5 | I17: 1300-1350 | J17: Open | R17: H
A18: 9 | B18: 2021-07-05 | D18: CYIENT | E18: Buy | F18: 855 | G18: 795 | H18: 905.00 | I18: 950-970 | J18: Profit of Rs.50/- | K18: =H18-F18 -> 50.00 | L18: =(F18*-0.8)/100 -> -6.84 | M18: =(K18+L18)/F18 -> 5.05% | N18: Successful | O18: 2021-07-15 | R18: N
A19: 10 | B19: 2021-07-07 | D19: NMDC | E19: Buy | F19: 166 | G19: 157 | H19: 176.50 | I19: 180-185 | J19: Profit of Rs.10.5/- | K19: =H19-F19 -> 10.50 | L19: =(F19*-0.8)/100 -> -1.33 | M19: =(K19+L19)/F19 -> 5.53% | N19: Successful | O19: 2021-07-14 | R19: H
A20: 11 | B20: 2021-07-07 | D20: AARTIIND | E20: Buy | F20: 852 | G20: 814 | H20: 889.00 | I20: 900-930 | J20: Profit of Rs.37/- | K20: =H20-F20 -> 37.00 | L20: =(F20*-0.8)/100 -> -6.82 | M20: =(K20+L20)/F20 -> 3.54% | N20: Successful | O20: 2021-07-23 | R20: H
A21: 12 | B21: 2021-07-08 | D21: ZYDUSWELL | E21: Buy | F21: 2190-2210 | G21: 2060 | I21: 2500 | J21: Open | R21: N
A22: 13 | B22: 2021-07-08 | D22: MARUTI | E22: Buy | F22: 7350-7410 | G22: 6950 | I22: 8000-8200 | J22: Open | R22: H
A23: 14 | B23: 2021-07-19 | D23: IGL | E23: Buy | F23: 545-550 | G23: 510 | I23: 620-640 | J23: Open | R23: H
A24: 15 | B24: 2021-07-20 | D24: IOC | E24: Buy | F24: 104-105 | G24: 96.5 | I24: 120-122 | J24: Open | R24: H
A25: 16 | B25: 2021-07-22 | D25: LT | E25: Buy | F25: 1590-1600 | G25: 1445 | I25: 1800-1850 | J25: Open | R25: H
A26: 17 | B26: 2021-07-22 | D26: MAHINDCIE | E26: Buy | F26: 242-244 | G26: 228 | I26: 265-275 | J26: Open | R26: N
A31: CLBS = Closing Basis ***
A32: Dividend adjusted <> | F32: Reinitiated $
A33: Part book {} | F33: Revised stoploss #
B35: Momentum Call
A36: Sr.no | B36: Date | D36: Company | E36: Rec | F36: Rec Price | G36: Stop Loss | H36: Call Closed At | I36: Target | J36: Remark | K36: Profit / Loss per Share/Lot | L36: All charges | M36: Net Gain / Loss % | N36: Status | O36: Closed Date
A37: 1 | B37: 2021-06-24 | D37: AMARAJABAT | E37: Buy | F37: 743 | G37: 718 | H37: 737 | I37: 780-790 | J37: Loss of Rs.6/- | K37: =H37-F37 -> -6 | L37: =(F37*-0.7)/100 -> -5.20 | M37: =(K37+L37)/F37 -> -1.51% | N37: Unsuccessful | O37: 2021-07-15 | R37: H
A38: 2 | B38: 2021-06-25 | D38: KOTAKBANK | E38: Buy | F38: 1725 | G38: 1665 | H38: 1764 | I38: 1800-1830 | J38: Profit of Rs.39/- | K38: =H38-F38 -> 39 | L38: =(F38*-0.7)/100 -> -12.08 | M38: =(K38+L38)/F38 -> 1.56% | N38: Successful | O38: 2021-07-07 | R38: H
A39: 3 | B39: 2021-06-28 | D39: METROPOLIS | E39: Buy | F39: 2825 | G39: 2735 | H39: 2902.5 | I39: 3000 | J39: Profit of Rs.77.5/- | K39: 77.5 | L39: -19.78 | M39: 2.04% | N39: Successful | O39: 2021-07-05 | R39: N
A40: 4 | B40: 2021-06-30 | D40: MIDHANI | E40: Buy | F40: 205 | G40: 199 | H40: 199 | I40: 215 | J40: Loss of Rs.6/- | K40: -6 | L40: =(F40*-0.07)/100 -> -0.14 | M40: -3.00% | N40: Unsuccessful | O40: 2021-07-12 | R40: H
A41: 5 | B41: 2021-06-30 | D41: BATAINDIA | E41: Buy | F41: 1598 | G41: 1545 | H41: 1605 | I41: 1700 | J41: Profit of Rs.7/- | K41: =H41-F41 -> 7 | L41: =(F41*-0.7)/100 -> -11.19 | M41: =(K41+L41)/F41 -> -0.26% | N41: Neutral | O41: 2021-07-23 | R41: N
A42: 6 | B42: 2021-06-30 | D42: ERIS | E42: Buy | F42: 712.5 | G42: 695 | H42: 733.5 | I42: 760 | J42: Profit of Rs.21/- | K42: =H42-F42 -> 21 | L42: =(F42*-0.7)/100 -> -4.99 | M42: =(K42+L42)/F42 -> 2.25% | N42: Successful | O42: 2021-07-01 | R42: N
A43: 7 | B43: 2021-07-01 | D43: HSCL | E43: Buy | F43: 54.75 | G43: 53 | H43: 56.4 | I43: 58-60 | J43: Profit of Rs.1.65/- | K43: 1.65 | L43: -0.38 | M43: 2.31% | N43: Successful | O43: 2021-07-02 | R43: H
A44: 8 | B44: 2021-07-01 | D44: DELTACORP | E44: Buy | F44: 182.5 | G44: 177 | H44: 188 | I44: 193 | J44: Profit of Rs.5.5/- | K44: 5.5 | L44: -1.28 | M44: 2.31% | N44: Successful | O44: 2021-07-02 | R44: N
A45: 9 | B45: 2021-07-02 | D45: GREAVESCOT | E45: Buy | F45: 159.5 | G45: 154 | H45: 164.25 | I45: 168-170 | J45: Profit of Rs.4.75/- | K45: 4.75 | L45: =(F45*-0.07)/100 -> -0.11 | M45: 2.91% | N45: Successful | O45: 2021-07-02 | R45: H
A46: 10 | B46: 2021-07-02 | D46: JUSTDIAL | E46: Buy | F46: 1003 | G46: 970 | H46: 1032.5 | I46: 1060 | J46: Profit of Rs.29.5/- | K46: 29.5 | L46: =(F46*-0.7)/100 -> -7.02 | M46: 2.24% | N46: Successful | O46: 2021-07-05 | R46: N
A47: 11 | B47: 2021-07-05 | D47: SWSOLAR | E47: Buy | F47: 280.5 | G47: 273 | H47: 287.5 | I47: 290-295 | J47: Profit of Rs.7/- | K47: 7 | L47: =(F47*-0.07)/100 -> -0.20 | M47: 2.43% | N47: Successful | O47: 2021-07-05 | R47: H
A48: 12 | B48: 2021-07-06 | D48: GNA | E48: Buy | F48: 473.5 | G48: 458 | H48: 458 | I48: 500 | J48: Loss of Rs.15.5/- | K48: -15.5 | L48: -0.33 | M48: -3.34% | N48: Unsuccessful | O48: 2021-07-06 | R48: N
A49: 13 | B49: 2021-07-06 | D49: SWSOLAR | E49: Buy | F49: 281 | G49: 273 | H49: 273 | I49: 290-295 | J49: Loss of Rs.8/- | K49: -8 | L49: -0.20 | M49: -2.92% | N49: Unsuccessful | O49: 2021-07-06 | R49: H
A50: 14 | B50: 2021-07-06 | D50: MUTHOOTFIN | E50: Buy | F50: 1545 | G50: 1514 | H50: 1576 | I50: 1620-1640 | J50: Profit of Rs.31/- | K50: 31 | L50: -1.08 | M50: 1.94% | N50: Successful | O50: 2021-07-06 | R50: H
A51: 15 | B51: 2021-07-07 | D51: MUTHOOTFIN | E51: Buy | F51: 1532 | G51: 1490 | H51: 1562 | I51: 1600-1620 | J51: Profit of Rs.30/- | K51: 30 | L51: -1.07 | M51: 1.89% | N51: Successful | O51: 2021-07-07 | R51: H
A52: 16 | B52: 2021-07-07 | D52: JUSTDIAL | E52: Buy | F52: 1003.5 | G52: 970 | H52: 1034.5 | I52: 1060 | J52: Profit of Rs.31/- | K52: 31 | L52: =(F52*-0.7)/100 -> -7.02 | M52: 2.39% | N52: Successful | O52: 2021-07-08 | R52: N
A53: 17 | B53: 2021-07-12 | D53: LICHSGFIN | E53: Buy | F53: 460 | G53: 448 | H53: 467.5 | I53: 485 | J53: Profit of Rs.7.5/- | K53: 7.5 | L53: =(F53*-0.07)/100 -> -0.32 | M53: 1.56% | N53: Successful | O53: 2021-07-12 | R53: H
A54: 18 | B54: 2021-07-12 | D54: BLUESTARCO | E54: Buy | F54: 850.5 | G54: 829 | H54: 869 | I54: 885-895 | J54: Profit of Rs.18.5/- | K54: 18.5 | L54: -0.60 | M54: 2.11% | N54: Successful | O54: 2021-07-12 | R54: H
A55: 19 | B55: 2021-07-13 | D55: LICHSGFIN | E55: Buy | F55: 461.5 | G55: 449 | H55: 474.5 | I55: 485 | J55: Profit of Rs.13/- | K55: =H55-F55 -> 13 | L55: =(F55*-0.7)/100 -> -3.23 | M55: =(K55+L55)/F55 -> 2.12% | N55: Successful | O55: 2021-07-15 | R55: H
A56: 20 | B56: 2021-07-13 | D56: BLUESTARCO | E56: Buy | F56: 853.5 | G56: 829 | H56: 868 | I56: 885-895 | J56: Profit of Rs.14.5/- | K56: =H56-F56 -> 14.5 | L56: =(F56*-0.07)/100 -> -0.60 | M56: =(K56+L56)/F56 -> 1.63% | N56: Successful | O56: 2021-07-13 | R56: H
A57: 21 | B57: 2021-07-14 | D57: ZENSARTECH | E57: Buy | F57: 342 | G57: 330 | H57: 355 | I57: 365 | J57: Profit of Rs.13/- | K57: =H57-F57 -> 13 | L57: =(F57*-0.7)/100 -> -2.39 | M57: =(K57+L57)/F57 -> 3.10% | N57: Successful | O57: 2021-07-15 | R57: N
A58: 22 | B58: 2021-07-15 | D58: ABFRL | E58: Buy | F58: 225.5 | G58: 219 | H58: 219 | I58: 235-240 | J58: Loss of Rs.6.5/- | K58: -6.5 | L58: =(F58*-0.7)/100 -> -1.58 | M58: -3.58% | N58: Unsuccessful | O58: 2021-07-19 | R58: H
A59: 23 | B59: 2021-07-15 | D59: ACC | E59: Buy | F59: 2095 | G59: 2045 | H59: 2135 | I59: 2190 | J59: Profit of Rs.40/- | K59: 40 | L59: -14.67 | M59: 1.21% | N59: Successful | O59: 2021-07-19 | R59: N
A60: 24 | B60: 2021-07-15 | D60: SYNGENE | E60: Buy | F60: 580 | G60: 564 | H60: 596 | I60: 600-610 | J60: Profit of Rs.16/- | K60: =H60-F60 -> 16 | L60: =(F60*-0.07)/100 -> -0.41 | M60: =(K60+L60)/F60 -> 2.69% | N60: Successful | O60: 2021-07-15 | R60: H
A61: 25 | B61: 2021-07-15 | D61: LAURUSLABS | E61: Buy | F61: 667.5 | G61: 649 | H61: 649 | I61: 700-710 | J61: Loss of Rs.18.5/- | K61: =H61-F61 -> -18.5 | L61: =(F61*-0.7)/100 -> -4.67 | M61: =(K61+L61)/F61 -> -3.47% | N61: Unsuccessful | O61: 2021-07-23 | R61: N
A62: 26 | B62: 2021-07-16 | D62: BLUESTARCO | E62: Buy | F62: 850.5 | G62: 825 | H62: 864.5 | I62: 895 | J62: Profit of Rs.14/- | K62: =H62-F62 -> 14 | L62: =(F62*-0.07)/100 -> -0.60 | M62: =(K62+L62)/F62 -> 1.58% | N62: Successful | O62: 2021-07-16 | R62: H
A63: 27 | B63: 2021-07-16 | D63: KHADIM | E63: Buy | F63: 310 | G63: 300 | H63: 300 | I63: 330 | J63: Loss of Rs.10/- | K63: =H63-F63 -> -10 | L63: =(F63*-0.7)/100 -> -2.17 | M63: =(K63+L63)/F63 -> -3.93% | N63: Unsuccessful | O63: 2021-07-19 | R63: N
A64: 28 | B64: 2021-07-20 | D64: BLUESTARCO | E64: Buy | F64: 845-847 | G64: 821 | I64: 895 | J64: Open | R64: H
A65: 29 | B65: 2021-07-20 | D65: ICICIBANK | E65: Buy | F65: 640.5 | G65: 619 | H65: 643 | I65: 670-680 | J65: Profit of Rs.2.5/- | K65: =H65-F65 -> 2.5 | L65: =(F65*-0.07)/100 -> -0.45 | M65: =(K65+L65)/F65 -> 0.32% | N65: Neutral | O65: 2021-07-20 | R65: H
A66: 30 | B66: 2021-07-22 | D66: LICHSGFIN | E66: Buy | F66: 456-458 | G66: 444 | I66: 485 | J66: Open | R66: H
A67: 31 | B67: 2021-07-22 | D67: SUPREMEIND | E67: Buy | F67: 2094-2100 | G67: 2040 | I67: 2180-2200 | J67: Open | R67: H
A72: CLBS = Closing Basis *** | H72: *
A73: Dividend adjusted <> | F73: Reinitiated $
F74: Revised stoploss #
A76: Master Trade High Risk
A77: Sr.no | B77: Date | D77: Company | E77: Rec | F77: Rec Price | G77: Stop Loss | H77: Call Closed At | I77: Target | J77: Remark | K77: Profit / Loss per share | L77: All charges | M77: Gain / Loss per Lot | N77: Lot | O77: Status | P77: Closed Date
A78: 1 | B78: 2021-06-29 | D78: SBIN JUL FUT | E78: Buy | F78: 426.5 | G78: 418 | H78: 432 | I78: 445 | J78: Profit of Rs.5.5/- | K78: =H78-F78 -> 5.5 | L78: =(H78*N78)*0.07% -> 453.60 | M78: =(K78*N78)-L78 -> 7796.4 | N78: 1500 | O78: Successful | P78: 2021-07-05 | R78: H
A79: 2 | B79: 2021-06-30 | D79: COLPAL JUL FUT | E79: Buy | F79: 1679 | G79: 1645 | H79: 1702 | I79: 1740 | J79: Profit of Rs.23/- | K79: 23 | L79: 416.99 | M79: 7633.0 | N79: 350 | O79: Successful | P79: 2021-07-01 | R79: N
A80: 3 | B80: 2021-06-30 | D80: AXISBANK JUL FUT | E80: Buy | F80: 755 | G80: 745 | H80: 762 | I80: 775 | J80: Profit of Rs.7/- | K80: 7 | L80: 640.08 | M80: 7759.9 | N80: 1200 | O80: Successful | P80: 2021-07-05 | R80: H
A81: 4 | B81: 2021-06-30 | D81: HINDUNILVR JUL FUT | E81: Buy | F81: 2482.5 | G81: 2440 | H81: 2507.5 | I81: 2540-2550 | J81: Profit of Rs.25/- | K81: 25 | L81: 526.58 | M81: 6973.4 | N81: 300 | O81: Successful | P81: 2021-07-05 | R81: N
A82: 5 | B82: 2021-07-01 | D82: HDFCLIFE JUL FUT | E82: Buy | F82: 687.5 | G82: 676 | H82: 695 | I82: 700-705 | J82: Profit of Rs.7.50/- | K82: 7.5 | L82: 535.15 | M82: 7714.9 | N82: 1100 | O82: Successful | P82: 2021-07-13 | R82: H
A83: 6 | B83: 2021-07-02 | D83: AARTIIND JUL FUT | E83: Buy | F83: 861.5 | G83: 844 | H83: 871.5 | I83: 880-890 | J83: Profit of Rs.10/- | K83: 10 | L83: 518.54 | M83: 7981.5 | N83: 850 | O83: Successful | P83: 2021-07-02 | R83: H
A84: 7 | B84: 2021-07-02 | D84: COLPAL JUL FUT | E84: Buy | F84: 1691.5 | G84: 1655 | H84: 1711 | I84: 1750 | J84: Profit of Rs.19.50/- | K84: 19.5 | L84: 419.20 | M84: 6405.8 | N84: 350 | O84: Successful | P84: 2021-07-07 | R84: N
A85: 8 | B85: 2021-07-02 | D85: BRITANNIA JUL FUT | E85: Buy | F85: 3555 | G85: 3490 | H85: 3597.5 | I85: 3650-3700 | J85: Profit of Rs.42.5/- | K85: 42.5 | L85: 503.65 | M85: 7996.4 | N85: 200 | O85: Successful | P85: 2021-07-05 | R85: H
A86: 9 | B86: 2021-07-05 | D86: AARTIIND JUL FUT | E86: Buy | F86: 868 | G86: 850 | H86: 855 | I86: 900-910 | J86: Loss of Rs.13/- | K86: -13 | L86: 508.73 | M86: -11558.7 | N86: 850 | O86: Unsuccessful | P86: 2021-07-07 | R86: H
A87: 10 | B87: 2021-07-05 | D87: BRITANNIA JUL FUT | E87: Buy | F87: 3545 | G87: 3480 | H87: 3480 | I87: 3650-3700 | J87: Loss of Rs.65/- | K87: -65 | L87: 487.20 | M87: -13487.2 | N87: 200 | O87: Unsuccessful | P87: 2021-07-14 | R87: N
A88: 11 | B88: 2021-07-06 | D88: SBILIFE JUL FUT | E88: Buy | F88: 1031.5 | G88: 1012 | H88: 1012 | I88: 1070-1075 | J88: Loss of Rs.19.5/- | K88: =H88-F88 -> -19.5 | L88: =(H88*N88)*0.07% -> 531.30 | M88: =(K88*N88)-L88 -> -15156.3 | N88: 750 | O88: Unsuccessful | P88: 2021-07-08 | R88: H
A89: 12 | B89: 2021-07-06 | D89: LTI JUL FUT | E89: Buy | F89: 4020 | G89: 3930 | H89: 4072.5 | I89: 4250 | J89: 6 | K89: 52.5 | L89: 427.61 | M89: 7447.4 | N89: 150 | O89: Successful | P89: 2021-07-07 | R89: N
A90: 13 | B90: 2021-07-07 | D90: LUPIN JUL FUT | E90: Buy | F90: 1144 | G90: 1129 | H90: 1153.5 | I90: 1175 | J90: Profit of Rs.9.5/- | K90: 9.5 | L90: 686.33 | M90: 7388.7 | N90: 850 | O90: Successful | P90: 2021-07-08 | R90: N
A91: 14 | B91: 2021-07-07 | D91: GRASIM JUL FUT | E91: Buy | F91: 1488 | G91: 1462 | H91: 1511.5 | I91: 1540 | J91: Profit of Rs.23.5/- | K91: 23.5 | L91: 502.57 | M91: 10659.9 | N91: 475 | O91: Successful | P91: 2021-07-09 | R91: N
A92: 15 | B92: 2021-07-07 | D92: TECHM JUL FUT | E92: Buy | F92: 1021 | G92: 998 | H92: 1035 | I92: 1060-1070 | J92: Profit of Rs.14/- | K92: 14 | L92: 434.70 | M92: 7965.3 | N92: 600 | O92: Successful | P92: 2021-07-08 | R92: H
A93: 16 | B93: 2021-07-08 | D93: TECHM JUL FUT | E93: Buy | F93: 1020.5 | G93: 998 | H93: 1033.5 | I93: 1060-1070 | J93: Profit of Rs.13/- | K93: 13 | L93: 434.07 | M93: 7365.9 | N93: 600 | O93: Successful | P93: 2021-07-08 | R93: H
A94: 17 | B94: 2021-07-08 | D94: HINDUNILVR JUL FUT | E94: Buy | F94: 2472 | G94: 2440 | H94: 2440 | I94: 2540 | J94: Loss of Rs.32/- | K94: -32 | L94: 512.40 | M94: -10112.4 | N94: 300 | O94: Unsuccessful | P94: 2021-07-12 | R94: N
A95: 18 | B95: 2021-07-09 | D95: SBILIFE JUL FUT | E95: Buy | F95: 1016.5 | G95: 999 | H95: 1028 | I95: 1050-1060 | J95: Profit of Rs.11.5/- | K95: 11.5 | L95: 611.66 | M95: 9163.3 | N95: 850 | O95: Successful | P95: 2021-07-12 | R95: H
A96: 19 | B96: 2021-07-09 | D96: TECHM JUL FUT | E96: Buy | F96: 1021 | G96: 998 | H96: 1034 | I96: 1060-1070 | J96: Profit of Rs.13/- | K96: 13 | L96: 434.28 | M96: 7365.7 | N96: 600 | O96: Successful | P96: 2021-07-13 | R96: H
A97: 20 | B97: 2021-07-12 | D97: HDFCAMC JUL FUT | E97: Buy | F97: 2935 | G97: 2870 | H97: 2977.5 | I97: 3050-3070 | J97: Profit of Rs.42.5/- | K97: 42.5 | L97: 416.85 | M97: 8083.2 | N97: 200 | O97: Successful | P97: 2021-07-12 | R97: N
A98: 21 | B98: 2021-07-13 | D98: LTI JUL FUT | E98: Buy | F98: 3995 | G98: 3895 | H98: 4070 | I98: 4200 | J98: Profit of Rs.75/- | K98: 75 | L98: 427.35 | M98: 10822.7 | N98: 150 | O98: Successful | P98: 2021-07-14 | R98: N
A99: 22 | B99: 2021-07-13 | D99: HDFCAMC JUL FUT | E99: Buy | F99: 2940 | G99: 2875 | H99: 2979 | I99: 3050-3070 | J99: Profit of Rs.39/- | K99: =H99-F99 -> 39 | L99: =(H99*N99)*0.07% -> 417.06 | M99: =(K99*N99)-L99 -> 7382.9 | N99: 200 | O99: Successful | P99: 2021-07-15 | R99: N
A100: 23 | B100: 2021-07-13 | D100: LICHSGFIN JUL FUT | E100: Buy | F100: 460.5 | G100: 454 | H100: 465.25 | I100: 475 | J100: Profit of Rs.4.75/- | K100: =H100-F100 -> 4.75 | L100: =(H100*N100)*0.07% -> 651.35 | M100: =(K100*N100)-L100 -> 8848.7 | N100: 2000 | O100: Successful | P100: 2021-07-13 | R100: H
A101: 24 | B101: 2021-07-13 | D101: BATAINDIA JUL FUT | E101: Buy | F101: 1567.5 | G101: 1540 | H101: 1583.5 | I101: 1620-1630 | J101: Profit of Rs.16/- | K101: =H101-F101 -> 16 | L101: =(H101*N101)*0.07% -> 609.65 | M101: =(K101*N101)-L101 -> 8190.4 | N101: 550 | O101: Successful | P101: 2021-07-14 | R101: H
A102: 25 | B102: 2021-07-13 | D102: TECHM JUL FUT | E102: Buy | F102: 1020.5 | G102: 998 | H102: 1035.5 | I102: 1060-1070 | J102: Profit of Rs.15/- | K102: =H102-F102 -> 15 | L102: =(H102*N102)*0.07% -> 434.91 | M102: =(K102*N102)-L102 -> 8565.1 | N102: 600 | O102: Successful | P102: 2021-07-14 | R102: H
A103: 26 | B103: 2021-07-14 | D103: HINDUNILVR JUL FUT | E103: Buy | F103: 2420 | G103: 2375 | H103: 2440 | I103: 2500 | J103: Profit of Rs.20/- | K103: 20 | L103: 512.40 | M103: 5487.6 | N103: 300 | O103: Successful | P103: 2021-07-20 | R103: H
A104: 27 | B104: 2021-07-14 | D104: SIEMENS JUL FUT | E104: Buy | F104: 2009 | G104: 1962 | H104: 2039.5 | I104: 2100 | J104: Profit of Rs.30.5/- | K104: =H104-F104 -> 30.5 | L104: =(H104*N104)*0.07% -> 392.60 | M104: =(K104*N104)-L104 -> 7994.9 | N104: 275 | O104: Successful | P104: 2021-07-15 | R104: H
A105: 28 | B105: 2021-07-15 | D105: TCS JUL FUT | E105: Buy | F105: 3205 | G105: 3160 | H105: 3240 | I105: 3280 | J105: Profit of Rs.35/- | K105: =H105-F105 -> 35 | L105: =(H105*N105)*0.07% -> 680.40 | M105: =(K105*N105)-L105 -> 9819.6 | N105: 300 | O105: Successful | P105: 2021-07-23 | R105: H
A106: 29 | B106: 2021-07-16 | D106: SIEMENS JUL FUT | E106: Buy | F106: 2026 | G106: 1982 | H106: 1982 | I106: 2120 | J106: Loss of Rs.44/- | K106: =H106-F106 -> -44 | L106: =(H106*N106)*0.07% -> 381.54 | M106: =(K106*N106)-L106 -> -12481.5 | N106: 275 | O106: Unsuccessful | P106: 2021-07-19 | R106: H
A107: 30 | B107: 2021-07-16 | D107: AUROPHARMA JUL FUT | E107: Buy | F107: 969-971 | G107: 948 | I107: 1000-1010 | J107: Open | R107: N
A108: 31 | B108: 2021-07-19 | D108: COLPAL JUL FUT | E108: Buy | F108: 1740 | G108: 1704 | H108: 1759 | I108: 1800-1810 | J108: Profit of Rs.19/- | K108: =H108-F108 -> 19 | L108: =(H108*N108)*0.07% -> 461.74 | M108: =(K108*N108)-L108 -> 6663.3 | N108: 375 | O108: Successful | P108: 2021-07-19 | R108: N
A109: 32 | B109: 2021-07-19 | D109: ASIANPAINT JUL FUT | E109: Buy | F109: 2977.5 | G109: 2935 | H109: 3015.5 | I109: 3050-3060 | J109: Profit of Rs.38/- | K109: =H109-F109 -> 38 | L109: =(H109*N109)*0.07% -> 633.26 | M109: =(K109*N109)-L109 -> 10766.7 | N109: 300 | O109: Successful | P109: 2021-07-20 | R109: N
A110: 33 | B110: 2021-07-20 | D110: BATAINDIA JUL FUT | E110: Buy | F110: 1568 | G110: 1545 | H110: 1584 | I110: 1630 | J110: Profit of Rs.16/- | K110: 16 | L110: 609.84 | M110: 8190.2 | N110: 550 | O110: Successful | P110: 2021-07-22 | R110: H
A111: 34 | B111: 2021-07-20 | D111: HDFCAMC JUL FUT | E111: Buy | F111: 2885-2895 | G111: 2825 | I111: 3000 | J111: Open | R111: N
A112: 35 | B112: 2021-07-22 | D112: TECHM JUL FUT | E112: Buy | F112: 1062 | G112: 1040 | H112: 1076 | I112: 1100-1110 | J112: Profit of Rs.14/- | K112: =H112-F112 -> 14 | L112: =(H112*N112)*0.07% -> 451.92 | M112: =(K112*N112)-L112 -> 7948.1 | N112: 600 | O112: Successful | P112: 2021-07-22 | R112: N
A113: 36 | B113: 2021-07-23 | D113: COROMANDEL JUL FUT | E113: Buy | F113: 871-874 | G113: 850 | I113: 900-915 | J113: Open | R113: N
A114: 37 | B114: 2021-07-23 | D114: AXISBANK JUL FUT | E114: Buy | F114: 755-757 | G114: 745 | I114: 780 | J114: Open | R114: H
A120: Master Trade Medium Risk
A121: Sr.no | B121: Date | D121: Company | E121: Rec | F121: Rec Price | G121: Stop Loss | H121: Call Closed At | I121: Target | J121: Remark | K121: Profit/ Loss per lot | L121: All charges | M121: Gain / Loss per Lot | N121: Lot | O121: Status | P121: Closed Date
A122: 1 | B122: 2021-06-29 | C122: HEROMOTOCO APRIL FUT | D122: IRCTC JUL 2140 CE | E122: Buy | F122: 89 | H122: 125 | J122: Profit of Rs. 15/- | K122: 36.00 | L122: 100 | M122: =(15*N122)-200 -> 4675 | N122: 325 | O122: Successful | P122: 2021-07-06 | R122: H
C123: HEROMOTOCO APR 3050 CE | D123: IRCTC JUL 2200 CE | E123: Sell | F123: 69 | H123: 90 | K123: 21.00 | R123: H
A124: 2 | B124: 2021-06-30 | D124: NIFTY 15750 CE 01-JUL | E124: Buy | F124: 36 | G124: 0 | H124: 0 | I124: 90 | J124: Loss of Rs.36/- | K124: =H124-F124 -> -36.00 | L124: 100.00 | M124: =(K124*N124)-100 -> -2800 | N124: 75 | O124: Unsuccessful | P124: 2021-07-01 | R124: N
A125: 3 | B125: 2021-07-01 | C125: HEROMOTOCO APRIL FUT | D125: BANKNIFTY 8 JUL 34900 CE | E125: Buy | F125: 340 | G125: 90 | H125: 335 | J125: Profit of Rs. 60/- | K125: -5.00 | L125: 100.00 | M125: =(60*N125)-200 -> 1300 | N125: 25 | O125: Successful | P125: 2021-07-05 | R125: H
C126: HEROMOTOCO APR 3050 CE | D126: BANKNIFTY 1 JUL 34900 CE | E126: Sell | F126: 65 | H126: 0 | K126: 65.00 | L126: 100.00 | R126: H
A127: 4 | B127: 2021-07-01 | D127: CONCOR 660 PE JUL | E127: Sell | F127: 10.75 | G127: 14.5 | H127: 8.3 | I127: 5 | J127: Profit of Rs.2.45/- | K127: =F127-H127 -> 2.45 | L127: 100.00 | M127: =(K127*N127)-100 -> 3729.35 | N127: 1563 | O127: Successful | P127: 2021-07-06 | R127: N
A128: 5 | B128: 2021-07-01 | D128: DABUR 590 PE JUL | E128: Sell | F128: 13.5 | G128: 19 | H128: 10.3 | I128: 2 | J128: Profit of Rs.3.20/- | K128: 3.20 | L128: 100.00 | M128: 3900 | N128: 1250 | O128: Successful | P128: 2021-07-06 | R128: H
A129: 6 | B129: 2021-07-05 | D129: M&MFIN 175 CE JUL | E129: Sell | F129: 1.8 | G129: 3.05 | H129: 0.95 | I129: 0.1 | J129: Profit of Rs.0.85/- | K129: =F129-H129 -> 0.85 | L129: 100.00 | M129: =(K129*N129)-100 -> 3300 | N129: 4000 | O129: Successful | P129: 2021-07-19 | R129: N
A130: 7 | B130: 2021-07-06 | D130: NIFTY 15850 PE 08-JUL | E130: Buy | F130: 50 | G130: 14 | H130: 63.5 | I130: 100-120 | J130: Profit of Rs.13.50/- | K130: =H130-F130 -> 13.50 | L130: 100.00 | M130: =(K130*N130)-100 -> 912.5 | N130: 75 | O130: Successful | P130: 2021-07-06 | R130: H
A131: 8 | B131: 2021-07-07 | D131: ITC 210 CE JUL | E131: Buy | F131: 2.2 | G131: 0.9 | H131: 2.7 | I131: 4 | J131: Profit of Rs.0.50/- | K131: =H131-F131 -> 0.50 | L131: 100.00 | M131: =(K131*N131)-100 -> 1500 | N131: 3200 | O131: Successful | P131: 2021-07-15 | R131: H
A132: 9 | B132: 2021-07-07 | D132: NIFTY 15850 PE 08-JUL | E132: Buy | F132: 42 | G132: 12 | H132: 53.5 | I132: 80-90 | J132: Profit of Rs.11.50/- | K132: =H132-F132 -> 11.50 | L132: 100.00 | M132: =(K132*N132)-100 -> 762.5 | N132: 75 | O132: Successful | P132: 2021-07-08 | R132: H
A133: 10 | B133: 2021-07-08 | D133: HDFCBANK 1540 CE JUL | E133: Buy | F133: 25 | G133: 16 | H133: 16 | I133: 40-45 | J133: Loss of Rs.9/- | K133: -9.00 | L133: 100.00 | M133: -5050 | N133: 550 | O133: Unsuccessful | P133: 2021-07-09 | R133: H
A134: 11 | B134: 2021-07-08 | D134: CONCOR 660 PE JUL | E134: Sell | F134: 11.75 | G134: 15.2 | H134: 15.2 | I134: 5 | J134: Loss of Rs.3.45/- | K134: =F134-H134 -> -3.45 | L134: 100.00 | M134: -5492.35 | N134: 1563 | O134: Unsuccessful | P134: 2021-07-09 | R134: N
A135: 12 | B135: 2021-07-08 | D135: BATAINDIA 1500 PE JUL | E135: Sell | F135: 15.5 | G135: 25 | H135: 9.5 | I135: 0.1 | J135: Profit of Rs.6.00/- | K135: 6.00 | L135: 100.00 | M135: 3200 | N135: 550 | O135: Successful | P135: 2021-07-13 | R135: H
A136: 13 | B136: 2021-07-09 | D136: NIFTY 15750 CE 15-JUL | E136: Buy | F136: 58 | G136: 17 | H136: 70 | I136: 90-100 | J136: Profit of Rs.12/- | K136: =H136-F136 -> 12.00 | L136: 100.00 | M136: 800 | N136: 75 | O136: Successful | P136: 2021-07-09 | R136: H
A137: 14 | B137: 2021-07-12 | D137: AMBUJACEM 400 CE JUL | E137: Sell | F137: 2.95 | G137: 4.4 | H137: 1.95 | I137: 0.1 | J137: Profit of Rs.1/- | K137: =F137-H137 -> 1.00 | L137: 100.00 | M137: 2900 | N137: 3000 | O137: Successful | P137: 2021-07-12 | R137: H
A138: 15 | B138: 2021-07-13 | C138: HEROMOTOCO APRIL FUT | D138: BANKNIFTY 22 JUL 35900 CE | E138: Buy | F138: 275 | G138: 90 | H138: 90 | I138: =H138-F138 -> -185 | J138: Loss of Rs.135/- | K138: -185.00 | L138: 100.00 | M138: =(-135*25)-200 -> -3575 | N138: 25 | O138: Unsuccessful | P138: 2021-07-19 | R138: H
C139: HEROMOTOCO APR 3050 CE | D139: BANKNIFTY 15 JUL 35900 CE* | E139: Sell | F139: 50 | H139: 0 | I139: =F139-H139 -> 50 | K139: 50.00 | L139: 100.00 | R139: H
A140: 16 | B140: 2021-07-13 | D140: IRCTC 2400 CE JUL | E140: Sell | F140: 25 | G140: 41 | H140: 14.5 | I140: 0.1 | J140: Profit of Rs.10.5/- | K140: =F140-H140 -> 10.50 | L140: 100.00 | M140: =(K140*N140)-100 -> 3312.5 | N140: 325 | O140: Successful | P140: 2021-07-15 | R140: H
A141: 17 | B141: 2021-07-14 | D141: POWERGRID 225 PE JUL | E141: Sell | F141: 2.2 | G141: 3.5 | H141: 1.25 | I141: 0.1 | J141: Profit of Rs.0.95/- | K141: 0.95 | L141: 100.00 | M141: 3700 | N141: 4000 | O141: Successful | P141: 2021-07-16 | R141: N
A142: 18 | B142: 2021-07-14 | D142: ABFRL 220 PE JUL | E142: Sell | F142: 5 | G142: 7.1 | H142: 3.6 | I142: 0.1 | J142: Profit of Rs.1.40/- | K142: =F142-H142 -> 1.40 | L142: 100.00 | M142: =(K142*N142)-100 -> 3540 | N142: 2600 | O142: Successful | P142: 2021-07-16 | R142: H
A143: 19 | B143: 2021-07-14 | D143: ICICIBANK 650 PE JUL | E143: Sell | F143: 6.5 | G143: 10.5 | H143: 4.1 | I143: 0.1 | J143: Profit of Rs.2.40/- | K143: =F143-H143 -> 2.40 | L143: 100.00 | M143: =(K143*N143)-100 -> 3200 | N143: 1375 | O143: Successful | P143: 2021-07-15 | R143: H
A144: 20 | B144: 2021-07-14 | D144: AMBUJACEM 400 CE JUL | E144: Sell | F144: 2.5 | G144: 4.2 | H144: 4.2 | I144: 0.1 | J144: Loss of Rs.1.70/- | K144: -1.70 | L144: 100.00 | M144: -5200 | N144: 3000 | O144: Unsuccessful | P144: 2021-07-15 | R144: H
A145: 21 | B145: 2021-07-16 | D145: ITC 225 CE AUG | E145: Buy | F145: 2.25 | G145: 0.8 | H145: 3.3 | I145: 4-5.0 | J145: Profit of Rs.1.05/- | K145: =H145-F145 -> 1.05 | L145: 100.00 | M145: 3260 | N145: 3200 | O145: Successful | P145: 2021-07-23 | R145: H
A146: 22 | B146: 2021-07-16 | D146: NIFTY 15900 PE 22-JUL | E146: Buy | F146: 65 | G146: 20 | H146: 83 | I146: 110-130 | J146: Profit of Rs.18/- | K146: =H146-F146 -> 18.00 | L146: 100.00 | M146: =(K146*N146)-100 -> 1250 | N146: 75 | O146: Successful | P146: 2021-07-16 | R146: N
A147: 23 | B147: 2021-07-22 | D147: NIFTY 15800 PE 22-JUL | E147: Buy | F147: 21 | H147: 27 | I147: 50 | J147: Profit of Rs.6/- | K147: =H147-F147 -> 6.00 | L147: 100.00 | M147: =(K147*N147)-100 -> 350 | N147: 75 | O147: Successful | P147: 2021-07-22 | R147: N
A148: 24 | B148: 2021-07-22 | D148: ULTRACEMCO 7600 CE JUL | E148: Sell | F148: 70 | G148: 115 | H148: 115 | I148: 0.1 | J148: Loss of Rs.45/- | K148: =F148-H148 -> -45.00 | L148: 100.00 | M148: -4600 | N148: 100 | O148: Unsuccessful | P148: 2021-07-23 | R148: H
A149: 25 | B149: 2021-07-22 | D149: TECHM 1140 CE JUL | E149: Sell | F149: 10.25 | G149: 17 | H149: 7.25 | I149: 0.1 | J149: Profit of Rs.3.0/- | K149: 3.00 | L149: 100.00 | M149: 1700 | N149: 600 | O149: Successful | P149: 2021-07-23 | R149: N
A150: 26 | B150: 2021-07-23 | D150: HDFCLIFE 670 CE JUL | E150: Buy | F150: 3.40-3.80 | I150: 7-8.0 | J150: Open | R150: H
A158: Techno -Funda (positional)
A159: Sr.no | B159: Date | D159: Company | E159: Rec | F159: Rec Price | G159: Stop Loss*** | H159: Call Closed At | I159: Target | J159: Remark | K159: Profit / Loss per Share/Lot | L159: All charges | M159: Net Gain / Loss % | N159: Status | O159: Closed Date
A160: 1 | B160: 2021-06-16 | D160: WHIRLPOOL | E160: Buy | F160: 2260-2300 | G160: 2070 | I160: 2600-2700 | J160: Open | R160: H
A163: CLBS = Closing Basis *** | F163: Reinitiated $
A164: Dividend adjusted <> | F164: Revised stoploss #
B166: Intrday Call
A167: Sr.no | B167: Date | D167: Company | E167: Rec | F167: Rec Price | G167: Stop Loss | H167: Call Closed At | I167: Target | J167: Remark | K167: Profit / Loss per Share/Lot | L167: Gain / Loss per Lot | M167: Lot | N167: All charges | O167: Net Gain / Loss % | P167: Status | Q167: Closed Date
B180: Investment Idea
A181: Sr.no | B181: Date | D181: Company | E181: Rec | F181: Rec Price | G181: Point of Review | H181: Close Rate | I181: Target | J181: Remark | K181: Profit / Loss per Share | L181: Gain / Loss % | M181: Status | N181: Closed Date
A182: 1 | B182: 2013-11-01 | D182: L&T Finance Holding | E182: Accu | F182: 82.00 | G182: - | H182: 100 | I182: 100.00 | J182: Target Achieved | K182: =H182-F182 -> 18.00 | L182: =K182/F182 -> 21.95% | M182: Successful | N182: 2016-10-14
A183: 2 | B183: 2014-06-04 | D183: Finolex Inds | E183: Buy | F183: 257.00 | G183: - | H183: 300 | I183: 300.00 | J183: Target Achieved | K183: 43.00 | L183: 16.73% | M183: Successful | N183: 2014-07-02
A184: 3 | B184: 2014-07-08 | D184: JK Cement | E184: Buy | F184: 393.00 | G184: - | H184: 468 | I184: 468.00 | J184: Target Achieved | K184: 75.00 | L184: 19.08% | M184: Successful | N184: 2014-08-12
A185: 4 | B185: 2014-08-06 | D185: Finolex Cables | E185: Buy | F185: 205.00 | G185: - | H185: 275 | I185: 250.00 | J185: Target Achieved | K185: 70.00 | L185: 34.15% | M185: Successful | N185: 2014-11-19
A186: 5 | B186: 2014-09-04 | D186: Exide Inds | E186: Buy | F186: 162.00 | G186: - | H186: 190 | I186: 190.00 | J186: Target Achieved | K186: 28.00 | L186: 17.28% | M186: Successful | N186: 2015-01-02
A187: 6 | B187: 2014-09-04 | D187: Deepak Nitrite | E187: Buy | F187: 75.00 | G187: - | H187: 91.5 | I187: 95-100 | J187: Profit of Rs.16.50/- | K187: 16.50 | L187: 22.00% | M187: Successful | N187: 2014-11-11
A188: 7 | B188: 2014-10-01 | D188: Mercks | E188: Buy | F188: 850.00 | G188: - | H188: 982.5 | I188: 1050.00 | J188: Profit of Rs.132.50/- | K188: 132.50 | L188: 15.59% | M188: Successful | N188: 2015-02-04
A189: 8 | B189: 2014-10-01 | D189: Grindwell Norton | E189: Buy | F189: 475.00 | G189: - | H189: 515 | I189: 600.00 | J189: Profit of Rs.40/- | K189: 40.00 | L189: 8.42% | M189: Successful | N189: 2014-10-27
A190: 9 | B190: 2014-10-01 | D190: Snowman Logistics | E190: Buy | F190: 86.00 | G190: - | H190: 99 | I190: 140.00 | J190: Profit of Rs.13.00/- | K190: 13.00 | L190: 15.12% | M190: Successful | N190: 2014-10-27
A191: 10 | B191: 2014-10-14 | D191: Birla Corp | E191: Buy | F191: 496.60 | G191: - | H191: 621 | I191: 580.00 | J191: Target Achieved | K191: 124.40 | L191: 25.05% | M191: Successful | N191: 2016-08-23
A192: 11 | B192: 2014-10-14 | D192: Ultratech Cem | E192: Buy | F192: 2481.90 | G192: - | H192: 2840 | I192: 2870.00 | J192: Profit of Rs.358.10/- | K192: 358.10 | L192: 14.43% | M192: Successful | N192: 2015-01-13
A193: 12 | B193: 2014-10-16 | D193: Sintex Inds | E193: Buy | F193: 84.50 | G193: - | H193: 93 | I193: 110.00 | J193: Profit of Rs.8.50/- | K193: 8.50 | L193: 10.06% | M193: Successful | N193: 2014-10-27
A194: 13 | B194: 2014-10-16 | D194: HSIL | E194: Buy | F194: 401.00 | G194: - | H194: 428 | I194: 450.00 | J194: Profit of Rs.27.00/- | K194: 27.00 | L194: 6.73% | M194: Successful | N194: 2015-01-16
A195: 14 | B195: 2014-10-16 | D195: Eveready Inds | E195: Buy | F195: 101.00 | G195: - | H195: 112 | I195: 120.00 | J195: Profit of Rs.11.00/- | K195: 11.00 | L195: 10.89% | M195: Successful | N195: 2014-10-27
A196: 15 | B196: 2014-11-11 | D196: Pennar Inds | E196: Buy | F196: 59.00 | G196: - | H196: 76 | I196: 76.00 | J196: Target Achieved | K196: 17.00 | L196: 28.81% | M196: Successful | N196: 2017-10-24
A197: 16 | B197: 2014-11-11 | D197: Snowman Logistics | E197: Buy | F197: 99.00 | G197: - | H197: 120 | I197: 120.00 | J197: Profit of Rs.21/- | K197: 21.00 | L197: 21.21% | M197: Successful | N197: 2014-11-17
A198: 17 | B198: 2014-11-13 | D198: Dharamsi Morarji Chem | E198: Buy | F198: 22.00 | G198: - | H198: 33.55 | I198: 32.00 | J198: Profit of Rs 11.55/- | K198: 11.55 | L198: 52.50% | M198: Successful | N198: 2015-07-03
A199: 18 | B199: 2014-12-03 | D199: Tatachem | E199: Buy | F199: 440.00 | G199: - | H199: 520 | I199: 520.00 | J199: Profit of Rs 80.00/- | K199: 80.00 | L199: 18.18% | M199: Successful | N199: 2015-07-23
A200: 19 | B200: 2014-12-03 | D200: Advanta | E200: Buy | F200: 360.00 | G200: - | H200: 427 | I200: 425.00 | J200: Profit of Rs.67.00/- | K200: 67.00 | L200: 18.61% | M200: Successful | N200: 2015-02-23
A201: 20 | B201: 2015-01-08 | D201: GDL | E201: Buy | F201: 360.00 | G201: - | H201: 455 | I201: 420.00 | J201: Profit of Rs.95.00/- | K201: 95.00 | L201: 26.39% | M201: Successful | N201: 2015-01-20
A202: 21 | B202: 2015-01-08 | D202: NRB Bearing | E202: Buy | F202: 130.00 | H202: 175.5 | I202: 165.00 | J202: Profit of Rs 45.50/- | K202: 45.50 | L202: 35.00% | M202: Successful | N202: 2017-12-19
A203: 22 | B203: 2015-02-05 | D203: GSFC | E203: Accu | F203: 98.00 | H203: 120 | I203: 120.00 | J203: Target Achieved | K203: 22.00 | L203: 22.45% | M203: Successful | N203: 2017-01-18
A204: 23 | B204: 2015-02-05 | D204: Sundrmfast | E204: Accu | F204: 196.00 | H204: 262 | I204: 255.00 | J204: Target Achieved | K204: 66.00 | L204: 33.67% | M204: Successful | N204: 2016-08-17
A205: 24 | B205: 2015-03-04 | D205: GPPL | E205: Accu | F205: 235 | H205: 77.00 | I205: 280-285 | J205: Loss of Rs.158/- | K205: -158.00 | L205: -67.23% | M205: Unsuccessful | N205: 2019-02-26
A206: 25 | B206: 2015-03-04 | D206: ORIENTCEM | E206: Accu | F206: 185.00 | H206: 224 | I206: 220-225 | J206: Target Achieved | K206: 39.00 | L206: 21.08% | M206: Successful | N206: 2016-10-04
A207: 26 | B207: 2015-03-27 | D207: PFS | E207: Accu | F207: 49.5 | H207: 15.85 | I207: 67.00 | J207: Loss of Rs.33.65/- | K207: -33.65 | L207: -68% | M207: Unsuccessful | N207: 2019-06-11
A208: 27 | B208: 2015-03-30 | D208: Walchandnagar Ind Ltd | E208: Accu | F208: 183.50 | H208: 219 | I208: 218.00 | J208: Profit of Rs.35.50/- | K208: 35.50 | L208: 19.35% | M208: Successful | N208: 2015-04-09
A209: 28 | B209: 2015-04-20 | D209: Kalpataru Power Transmission Ltd | E209: Accu | F209: =(227+237)/2 -> 232.00 | H209: 298 | I209: 298.00 | J209: Target Achieved | K209: 66.00 | L209: 28.45% | M209: Successful | N209: 2017-03-29
A210: 29 | B210: 2015-05-04 | D210: Mastek Ltd | E210: Buy | F210: 385.00 | H210: =212.5+331 -> 543.5 | I210: 510.00 | J210: Profit of Rs 158.50/- | K210: 158.50 | L210: 41.17% | M210: Successful | N210: 2015-08-19
A211: 30 | B211: 2015-05-04 | D211: Suprajit Eng | E211: Buy | F211: 115.50 | H211: 146 | I211: 142.00 | J211: Profit of Rs 30.50/- | K211: 30.50 | L211: 26.41% | M211: Successful | N211: 2015-07-17
A212: 31 | B212: 2015-05-27 | D212: TCI | E212: Buy | F212: 237.50 | H212: 279.5 | I212: 278.00 | J212: Target Achieved | K212: 42.00 | L212: 17.68% | M212: Successful | N212: 2015-08-06
A213: 32 | B213: 2015-06-19 | D213: HSIL | E213: Accu | F213: 340.00 | H213: 448 | I213: 448.00 | J213: Target Achieved | K213: 108.00 | L213: 31.76% | M213: Successful | N213: 2017-10-10
A214: 33 | B214: 2015-07-06 | D214: Capital First | E214: Accu | F214: 390.00 | H214: 460 | I214: 460.00 | J214: Target Achieved | K214: 70.00 | L214: 17.95% | M214: Successful | N214: 2016-04-18
A215: 34 | B215: 2015-07-10 | D215: Dolphin OffShore | E215: Accu | F215: 122.5 | H215: 61.00 | I215: 172.00 | J215: Loss of Rs.61.50/- | K215: -61.50 | L215: -50.20% | M215: Unsuccessful | N215: 2018-08-21
A216: 35 | B216: 2015-08-03 | D216: Allcargo logistics | E216: Accu | F216: 297.50 | H216: 350 | I216: 360.00 | J216: Profit of Rs 52.50/- | K216: 52.50 | L216: 17.65% | M216: Successful | N216: 2015-08-16
A217: 36 | B217: 2015-08-03 | D217: Camline Fine | E217: Accu | F217: 115.50 | H217: 149 | I217: 140.00 | J217: Profit of Rs 33.50/- | K217: 33.50 | L217: 29.00% | M217: Successful | N217: 2017-01-05
A218: 37 | B218: 2015-09-04 | D218: TCI | E218: Accu | F218: 226.00 | H218: 292 | I218: 292.00 | J218: Target Achieved | K218: 66.00 | L218: 29.20% | M218: Successful | N218: 2015-10-09
A219: 38 | B219: 2015-09-07 | D219: Kalpataru Power Transmission Ltd | E219: Accu | F219: 232.50 | H219: 312.5 | I219: 310.00 | J219: Target Achieved | K219: 80.00 | L219: 34.41% | M219: Successful | N219: 2017-03-29
A220: 39 | B220: 2015-09-21 | D220: LLOYD ELECTRIC & ENG LTD | E220: Accu | F220: 196.50 | H220: 238 | I220: 238.00 | J220: Target Achieved | K220: 41.50 | L220: 21.12% | M220: Successful | N220: 2015-10-14
A221: 40 | B221: 2015-09-24 | D221: L&T Finance Holding | E221: Accu | F221: 65.00 | H221: 82 | I221: 82.00 | J221: Target Achieved | K221: 17.00 | L221: 26.15% | M221: Successful | N221: 2016-07-27
A222: 41 | B222: 2015-10-14 | D222: KEC International ltd | E222: Accu | F222: 144.00 | H222: 182.5 | I222: 181.00 | J222: Target Achieved | K222: 38.50 | L222: 26.74% | M222: Successful | N222: 2017-03-23
A223: 42 | B223: 2015-10-14 | D223: Gruh Finance | E223: Accu | F223: 264.00 | H223: 311 | I223: 311.00 | J223: Target Achieved | K223: 47.00 | L223: 17.80% | M223: Successful | N223: 2016-08-22
A224: 43 | B224: 2015-11-10 | D224: Pidilitind | E224: Buy | F224: 549.50 | H224: 630 | I224: 630.00 | J224: Target Achieved | K224: 80.50 | L224: 14.65% | M224: Successful | N224: 2016-02-19
A225: 44 | B225: 2015-12-04 | D225: Zensar Technology | E225: Accu | F225: 1027.50 | H225: 1315 | I225: 1250.00 | J225: Target Achieved | K225: 287.50 | L225: 27.98% | M225: Successful | N225: 2018-05-24
A226: 45 | B226: 2015-12-29 | D226: Vinati Organics Ltd | E226: Accu | F226: 465.00 | H226: 540 | I226: 540.00 | J226: Target Achieved | K226: 75.00 | L226: 16.13% | M226: Successful | N226: 2016-06-09
A227: 46 | B227: 2016-01-11 | D227: GSFC | E227: Buy | F227: 81.00 | H227: 110 | I227: 110.00 | J227: Target Achieved | K227: 29.00 | L227: 35.80% | M227: Successful | N227: 2017-01-10
A228: 47 | B228: 2016-01-13 | D228: SSWL | E228: Buy | F228: 417.50 | H228: 547 | I228: 535.00 | J228: Target Achieved | K228: 129.50 | L228: 31.02% | M228: Successful | N228: 2016-07-27
A229: 48 | B229: 2016-02-08 | D229: Persistent System Ltd | E229: Accu | F229: 650.00 | H229: 800 | I229: 800.00 | J229: Target Achieved | K229: 150.00 | L229: 23.08% | M229: Successful | N229: 2018-02-23
A230: 49 | B230: 2016-03-04 | D230: UPL | E230: Accu | F230: 437.50 | H230: 504.5 | I230: 522.00 | J230: Profit of Rs.67/- | K230: 67.00 | L230: 15.31% | M230: Successful | N230: 2016-04-20
A231: 50 | B231: 2016-03-09 | D231: Ashoka Buildcon Ltd | E231: Accu | F231: 189.50 | H231: 218 | I231: 218.00 | J231: Target Achieved | K231: 28.50 | L231: 15.04% | M231: Successful | N231: 2017-10-26
A232: 51 | B232: 2016-04-11 | D232: PTC INDIA FIN SERV LTD | E232: Accu | F232: 36.5 | H232: 15.85 | I232: 60.00 | J232: Loss of Rs.20.65/- | K232: -20.65 | L232: -56.58% | M232: Unsuccessful | N232: 2019-06-11
A233: 52 | B233: 2016-04-12 | D233: CAMLINFINE $ | E233: Accu | F233: 93.00 | H233: 149 | I233: 140.00 | J233: Profit of Rs 56/- | K233: 56.00 | L233: 60.22% | M233: Successful | N233: 2017-01-05
A234: 53 | B234: 2016-04-12 | D234: Greaves Cotton Ltd. | E234: Accu | F234: 130.00 | H234: 150 | I234: 150-155 | J234: Target Achieved | K234: 20.00 | L234: 15.38% | M234: Successful | N234: 2016-07-13
A235: 54 | B235: 2016-04-13 | D235: DHFL | E235: Accu | F235: 196.00 | H235: 299 | I235: 299.00 | J235: Target Achieved | K235: 103.00 | L235: 52.55% | M235: Successful | N235: 2016-09-07
A236: 55 | B236: 2016-04-13 | D236: Magma | E236: Accu | F236: 88.00 | H236: 103 | I236: 103.00 | J236: Target Achieved | K236: 15.00 | L236: 17.05% | M236: Successful | N236: 2016-06-09
A237: 56 | B237: 2016-05-02 | D237: KEC International ltd $ | E237: Accu | F237: 127.50 | H237: 148 | I237: 148-150 | J237: Target Achieved | K237: =H237-F237 -> 20.50 | L237: =K237/F237 -> 16.08% | M237: Successful | N237: 2016-07-13
A238: 57 | B238: 2016-05-03 | D238: Mindtree | E238: Accu | F238: 675.00 | H238: 815 | I238: 790-800 | J238: Target Achieved | K238: 140.00 | L238: 20.74% | M238: Successful | N238: 2018-02-23
A239: 58 | B239: 2016-06-01 | D239: Atulauto | E239: Accu | F239: 500 | H239: 232.50 | I239: 565-570 | J239: Loss of Rs.267.50 /- | K239: -267.50 | L239: -53.50% | M239: Unsuccessful | N239: 2019-09-27
A240: 59 | B240: 2016-06-06 | D240: TRITURBINE | E240: Accu | F240: 110.00 | H240: 126.5 | I240: 125.00 | J240: Profit of Rs.16.50/- | K240: 16.50 | L240: 15.00% | M240: Successful | N240: 2016-07-01
A241: 60 | B241: 2016-06-17 | D241: Pennar Industries Ltd | E241: Accu | F241: 44.00 | H241: 69.5 | I241: 69.50 | J241: Profit of Rs.25.50/- | K241: 25.50 | L241: 57.95% | M241: Successful | N241: 2017-08-30
... 108 more rows
